Workbook

Sheet Setup
A1: Singles | B1: 32 | D1: Θέσεις | E1: seed | H1: 0 | I1: seed | J1: space pos | K1: Index | L1: Value
A2: Draw32_S | D2: 3-4 | E2: =VALUE(LEFT(F2,1)) -> 3 | F2: 3 4 | H2: =IF(I2="-","-",IF(I2>0,H1+1,0)) -> 0 | I2: =IF(J2>0,VALUE(MID($A$32,1,J2-1)),"-") -> 0 | J2: =IF(LEN($A$32)>1,FIND(" ",$A$32,1),0) -> 2 | K2: 0 | L2: 0
A3: Διοργανωτής: | B3: Η' ΕΝΩΣΗ | E3: =VALUE(RIGHT(F2,1)) -> 4 | H3: 0 | I3: =IF(J3>0,VALUE(MID($A$32,J2+1,J3-J2-1)),"-") -> 0 | J3: =IF(AND(J2>0,LEN($A$32)>J2+1),FIND(" ",$A$32,J2+1),0) -> 4 | K3: 0 | L3: 0 | T3: Ημ/νία | U3: + | Z3: Tour lookup
A4: Έδρα αγώνων: | B4: ΑΟΑ ΑΛΕΞΑΝΔΡΟΣ Β | D4: Θέσεις | E4: seed | H4: 0 | I4: 0 | J4: 6 | K4: 0 | L4: 0 | T4: =NOW()+TIME(U4,0,0) -> 2017-11-24T20:07:14.380 | U4: 0 | Z4: =$B$8 -> 2017-11-24
A5: grade: | B5: Ε3 | D5: 5-8 | E5: =TRIM(LEFT(F5,(FIND(" ",F5,1)-1))) -> 8 | F5: 8 6 7 5 | H5: 0 | I5: 0 | J5: 8 | K5: 0 | L5: 0 | Z5: =TRIM(IF(OR($B$5="Παν",$B$5="ΠανΑΓ",$B$5="Open",$B$5="OpenΑΓ"),$B$5&" ("&VLOOKUP($B$4,tables!$X:$Z,3,FALSE)&")"&" "&$B$13,$B$7&" ("&VLOOKUP($B$4,tables!$X:$Z,3,FALSE)&")")) -> Ε3 47η (Η)
A6: Κατηγορία: | B6: Α10 | E6: =TRIM(MID(F5,(FIND(" ",F5,1)),FIND(" ",F5,(FIND(" ",F5,1)+1))-(FIND(" ",F5,1)))) -> 6 | H6: 0 | I6: 0 | J6: 10 | K6: 0 | L6: 0 | T6: Tournament ID | Z6: =VLOOKUP($B$4,tables!$X:$Z,2,FALSE) -> 333
A7: Τίτλος Τουρνουά: | B7: Ε3 47η | E7: =TRIM(MID(F5, (FIND(" ",F5,(FIND(" ",F5,1)+1))+1), (FIND(" ",F5,(FIND(" ",F5,(FIND(" ",F5,1)+1))+1)))-(FIND(" ",F5,(FIND(" ",F5,1)+1))+1))) -> 7 | H7: 0 | I7: 0 | J7: 12 | K7: 0 | L7: 0 | T7: =$Z$9 ->  | Z7: S
A8: Έναρξη Κ.Τ.: | B8: 2017-11-24 | E8: =TRIM(RIGHT(F5,LEN(F5)-(FIND(" ",F5,(FIND(" ",F5,(FIND(" ",F5,1)+1))+1))))) -> 5 | H8: 0 | I8: 0 | J8: 14 | K8: 0 | L8: 0 | T8: =LOWER(B21) -> ε3 47η η α10 s md | Z8: =TRIM(IF(SUBSTITUTE($B$6,"1","")<>$B$6,SUBSTITUTE(UPPER($B$6),"D",""),"")) -> Α10
A9: Λήξη τουρνουά: | B9: 2017-11-26 | H9: 0 | I9: 0 | J9: 16 | K9: 0 | L9: 0 | Z9: =VLOOKUP($Z$4&$Z$5&$Z$6&$Z$7&$Z$8,tables!$AI:$AQ,9,FALSE) -> 
A10: Βδομάδα: | B10: ="βδ.: "&TEXT(WEEKNUM(B8,2)-1,"00")&"η" -> βδ.: 47η | H10: 0 | I10: 0 | J10: 18 | K10: 0 | L10: 0 | Z10: =VLOOKUP(B6,tables!AS1:AT51,2,FALSE) -> 3
A11: Επιδιατητής: | B11: ΤΑΜΠΟΣΗ Τ | H11: 0 | I11: =IF(J11>0,VALUE(MID($A$32,J10+1,J11-J10-1)),"-") -> 0 | J11: 20 | K11: 0 | L11: 0
A12: Τηλέφωνο τουρνουά: | B12: 2294 0 55565 | H12: =IF(I12="-","-",IF(I12>0,H11+1,0)) -> 0 | I12: 0 | J12: 22 | K12: 0 | L12: 0
A13: =IF(SUBSTITUTE($B$6,"1","")<>$B$6, SUBSTITUTE(SUBSTITUTE(SUBSTITUTE(SUBSTITUTE(SUBSTITUTE(UPPER(LEFT($B$6)),"A","B"),"Α","B"),"K","G"),"Κ","G"),"Μ","X"),"") -> B | B13: =IF(SUBSTITUTE($B$6,"1","")<>$B$6,VALUE(SUBSTITUTE(SUBSTITUTE(SUBSTITUTE(SUBSTITUTE(SUBSTITUTE(UPPER(LEFT($B$6,3)),"A",""),"Α",""),"K",""),"Κ",""),"Μ","")), $B$6) -> 10 | H13: 0 | I13: 0 | J13: 24 | K13: 0 | L13: 0
H14: 0 | I14: 0 | J14: 26 | K14: 0 | L14: 0
H15: 0 | I15: 0 | J15: 28 | K15: 0 | L15: 0
H16: 0 | I16: 0 | J16: 30 | K16: 0 | L16: 0 | T16: msg
A17: Χωρίς νίκη βαθμοί γύρου: | B17: 17_32 | H17: 1 | I17: 1 | J17: 32 | K17: 1 | L17: 1 | T17: =IF(NOW()>B22,"Invalid program!","") -> 
A18: Πλήθος bye (0-15): | B18: =COUNTBLANK(ALMD!D3:D34) -> 15 | H18: 2 | I18: 2 | J18: 34 | K18: 2 | L18: 2
A19: Θέσεις seeded: | B19: 8 | H19: 3 | I19: 3 | J19: 36 | K19: 3 | L19: 3
H20: 4 | I20: 4 | J20: 38 | K20: 4 | L20: 4
A21: Όνομα Excel αρχείου: | B21: =LOWER(IF(SUBSTITUTE($B$6,"1","")<>$B$6, $B$5&" "&MID($B$10,6,2)&"η "&VLOOKUP($B$4,tables!$X:$Z,3,FALSE)&" "&LEFT($B$6)&$B$13&" S MD", $B$5&" "&MID($B$10,6,2)&"η "&VLOOKUP($B$4,tables!$X:$Z,3,FALSE)&" "&$B$13&" S MD")) -> ε3 47η η α10 s md | H21: 5 | I21: 5 | J21: 40 | K21: 5 | L21: 5
A22: exp. | B22: 2018-01-01 | H22: 6 | I22: 6 | J22: 42 | K22: 6 | L22: 6
H23: 7 | I23: 7 | J23: 44 | K23: 7 | L23: 7
A24: Κλήρωση MD: | B24: 2017-11-24T16:10:56 | H24: 8 | I24: 8 | J24: 46 | K24: 8 | L24: 8
H25: 9 | I25: 11 | J25: 49 | K25: 9 | L25: 11
A26: =RandNumbers(3,4) -> 4 3 | H26: 10 | I26: 17 | J26: 52 | K26: 10 | L26: 17
A27: =RandNumbers(5,8) -> 7 5 6 8 | H27: 11 | I27: 10 | J27: 55 | K27: 11 | L27: 10
H28: 12 | I28: 15 | J28: 58 | K28: 12 | L28: 15
A29: =LEFT($A$34,$B$18*2) & LEFT($A$33,$B$19*2) & RandNumbers($B$19+1,32-$B$18) & " " -> 0 0 0 0 0 0 0 0 0 0 0 0 0 0 0 1 2 3 4 5 6 7 8 10 17 15 16 14 12 9 13 11 | H29: 13 | I29: 14 | J29: 61 | K29: 13 | L29: 14
H30: 14 | I30: 13 | J30: 64 | K30: 14 | L30: 13
H31: 15 | I31: 9 | J31: 66 | K31: 15 | L31: 9
A32: 0 0 0 0 0 0 0 0 0 0 0 0 0 0 0 1 2 3 4 5 6 7 8 11 17 10 15 14 13 9 12 16 | H32: 16 | I32: 12 | J32: 69 | K32: 16 | L32: 12
A33: 1 2 3 4 5 6 7 8 | H33: 17 | I33: 16 | J33: 72 | K33: 17 | L33: 16
A34: 0 0 0 0 0 0 0 0 0 0 0 0 0 0 0 0 0 0 0 0 0 0 0 0 0 0 0 0 0 0 0 0 0 0 0 0 0 0 0 0

Sheet ALMD
A1: =Setup!$B$3&", "&Setup!$B$7&", "&Setup!$B$4&", "&DAY(Setup!$B$8)&"/"&MONTH(Setup!$B$8)&"-"&DAY(Setup!$B$9)&"/"&MONTH(Setup!$B$9)&"/"&YEAR(Setup!$B$9) -> Η' ΕΝΩΣΗ, Ε3 47η, ΑΟΑ ΑΛΕΞΑΝΔΡΟΣ Β, 24/11-26/11/2017 | H1: =Setup!B6&" /md" -> Α10 /md | I1: =Setup!B6&" /md" -> Α10 /md
A2: α/α | B2: από | C2: Α.Μ. | D2: Ονοματεπώνυμο | E2: Ε.Γ. | F2: Σύλλογος | G2: βαθμοί | H2: Τηλέφωνο | I2: Υπογραφή | J2: SortPts | K2: Rnd
A3: 1 | C3: 41418 | D3: ΚΑΡΑΝΤΑΛΗΣ ΚΩΝΣΤΑΝΤΙΝΟΣ | E3: 2008 | F3: ΑΟ ΤΑΤΟΪΟΥ | J3: =IF(D3>" ",G3+K3,0) -> 0.004437774625 | K3: 0.004437774625
A4: 2 | C4: 41419 | D4: ΚΑΡΑΝΤΑΛΗΣ ΙΩΑΝΝΗΣ | E4: 2008 | F4: ΦΑ ΕΚΑΛΗΣ ΛΟΥΜΠΙΕ | J4: 0.004056404718 | K4: 0.004056404718
A5: 3 | C5: 41506 | D5: ΧΑΡΑΛΑΜΠΙΔΗΣ ΦΑΝΟΥΡΙΟΣ | E5: 2008 | F5: Α.Ο.Α.ΑΤΤΙΚΟΣ ΗΛΙΟΣ | J5: 0.003949600569 | K5: 0.003949600569
A6: 4 | C6: 41505 | D6: ΜΠΑΛΩΜΕΝΟΣ ΑΘΑΝΑΣΙΟΣ | E6: 2007 | F6: Α.Ο.Α.ΑΤΤΙΚΟΣ ΗΛΙΟΣ | J6: 0.003779243261 | K6: 0.003779243261
A7: 5 | C7: 40818 | D7: ΠΑΝΑΓΟΠΟΥΛΟΣ ΙΩΑΝΝΗΣ | E7: 2008 | F7: ΑΚΑ ΜΑΡΑΘΩΝΑ | J7: 0.003416797442 | K7: 0.003416797442
A8: 6 | C8: 36193 | D8: ΠΑΣΣΑΣ-ΧΡΗΣΤΟΥ ΠΑΡΑΣΚΕΥΑΣ | E8: 2008 | F8: ΟΑ ΑΓ ΠΑΡΑΣΚΕΥΗΣ | J8: 0.003332193499 | K8: 0.003332193499
A9: 7 | C9: 39937 | D9: ΠΑΠΑΧΡΗΣΤΟΥ ΧΡΗΣΤΟΣ | E9: 2008 | F9: ΑΟΑ ΑΛΕΞΑΝΔΡΟΣ Β | J9: 0.003229705541 | K9: 0.003229705541
A10: 8 | C10: 39226 | D10: ΝΙΚΗΤΑΚΗΣ ΙΩΑΝΝΗΣ | E10: 2008 | F10: ΑΟ ΚΗΦΙΣΙΑΣ | J10: 0.003140379732 | K10: 0.003140379732
A11: 9 | C11: 40066 | D11: ΚΑΛΠΟΓΙΑΝΝΑΚΗΣ ΣΩΤΗΡΗΣ | E11: 2007 | F11: ΣΑ ΡΑΦΗΝΑΣ | J11: 0.002635421295 | K11: 0.002635421295
A12: 10 | C12: 38819 | D12: ΠΑΠΑΖΗΚΟΣ ΠΑΥΛΟΣ | E12: 2007 | F12: ΟΑ ΑΘΗΝΩΝ | J12: 0.00235150233 | K12: 0.00235150233
A13: 11 | C13: 34987 | D13: ΝΕΪΣ ΕΡΙΚ-ΤΖΕΪΜΣ | E13: 2007 | F13: ΑΟ ΚΗΦΙΣΙΑΣ | J13: 0.002269698355 | K13: 0.002269698355
A14: 12 | C14: 40311 | D14: ΜΑΛΑΒΑΖΟΣ ΑΝΤΩΝΙΟΣ | E14: 2008 | F14: ΟΑ ΑΘΗΝΩΝ | J14: 0.002177689274 | K14: 0.002177689274
A15: 13 | C15: 40952 | D15: ΖΟΥΓΑΝΕΛΗΣ ΔΗΜΗΤΡΗΣ | E15: 2007 | F15: ΑΟΑ ΥΕΛΟΥ | J15: 0.001845906312 | K15: 0.001845906312
A16: 14 | C16: 39716 | D16: ΙΩΑΝΝΑΤΟΣ ΣΤΑΥΡΟΣ | E16: 2008 | F16: ΑΕ ΠΟΡΤΟ ΡΑΦΤΗ | J16: 0.00180288169 | K16: 0.00180288169
A17: 15 | C17: 40527 | D17: ΖΑΧΑΡΑΤΟΣ ΣΤΑΜΑΤΙΟΣ | E17: 2008 | F17: ΑΟ ΦΙΛΙΠΠΟΣ ΠΟΛΥΔΡΟΣΟΥ | J17: 0.0006963887643 | K17: 0.0006963887643
A18: 16 | C18: 39208 | D18: ΤΑΥΡΙΔΑΚΗΣ ΚΩΝΣΤΑΝΤΙΝΟΣ | E18: 2008 | F18: ΟΑ ΑΘΗΝΩΝ | J18: 0.000600055956 | K18: 0.000600055956
A19: 17 | C19: 39384 | D19: ΓΚΛΑΒΑΣ ΓΙΩΡΓΟΣ | E19: 2008 | F19: ΑΟ ΠΕΥΚΗΣ TIE BREAK | J19: 0.0005872008155 | K19: 0.0005872008155
A20: 18 | J20: 0 | K20: 0.0008234668123
A21: 19 | J21: 0 | K21: 0.00272548011
A22: 20 | J22: 0 | K22: 0.003812987723
A23: 21 | J23: 0 | K23: 0.002815936592
A24: 22 | J24: 0 | K24: 0.00420291863
A25: 23 | J25: 0 | K25: 0.002350104963
A26: 24 | J26: 0 | K26: 0.004372118789
A27: 25 | J27: 0 | K27: 0.0008409362022
A28: 26 | J28: 0 | K28: 0.001073169834
A29: 27 | J29: 0 | K29: 0.0009517311142
A30: 28 | J30: 0 | K30: 0.0004847200157
A31: 29 | J31: 0 | K31: 0.001418899849
A32: 30 | J32: 0 | K32: 0.001273459681
A33: 31 | J33: 0 | K33: 0.002259500404
A34: 32 | J34: 0 | K34: 0.0005595386117
H36: επιδιαιτητής:
H37: =Setup!$B$11 -> ΤΑΜΠΟΣΗ Τ
B38: Walk over
B39: α/α | C39: Α.Μ. | D39: Ονοματεπώνυμο | E39: med
B40: 1 | C40: 41564 | D40: ΜΠΑΜΠΑΡΟΥΤΣΗΣ ΒΙΚΕΝΤΙΟΣ
B41: 2
B42: 3
B43: 4
B44: 5

Sheet MD
A1: =Setup!$B$3&", "&Setup!$B$7&", "&Setup!$B$4&", "&DAY(Setup!$B$8)&"/"&MONTH(Setup!$B$8)&"-"&DAY(Setup!$B$9)&"/"&MONTH(Setup!$B$9)&"/"&YEAR(Setup!$B$9) -> Η' ΕΝΩΣΗ, Ε3 47η, ΑΟΑ ΑΛΕΞΑΝΔΡΟΣ Β, 24/11-26/11/2017 | X1: =Setup!B6 -> Α10
B2: =Setup!B18 -> 15 | I2: ="αλλαγές: "&TEXT(HOUR(Setup!T4),"00")&":"&TEXT(MINUTE(Setup!T4),"00") -> αλλαγές: 20:07
J3: 32 | O3: 16 | R3: 8 | U3: 4 | X3: 2 & w
A4: α/α | C4: ByeOrder | D4: ByeSum | E4: ByeCnt | F4: από | G4: seed | H4: Pts | I4: Α.Μ. | J4: Ονοματεπώνυμο | K4: επώνυμο | L4: Σύλλογος
A5: 1 | B5: 1 | E5: 0 | F5: =IF(NOT($G5="-"),VLOOKUP($G5,ALMD!$A$3:$G$34,2,FALSE),"") -> 0 | G5: =VLOOKUP($B5,Setup!$K$2:$L$33,2,FALSE) -> 1 | H5: =IF($G5>0,VLOOKUP($G5,ALMD!$A$3:$G$34,7,FALSE),0) -> 0 | I5: =IF(Setup!$B$24="",0,IF($G5>0,VLOOKUP($G5,ALMD!$A$3:$G$34,3,FALSE),0)) -> 41418 | J5: =IF($I5>0,VLOOKUP($I5,ALMD!$C$3:$G$34,2,FALSE),"bye") -> ΚΑΡΑΝΤΑΛΗΣ ΚΩΝΣΤΑΝΤΙΝΟΣ | K5: =IF(NOT(I5>0),"",LEFT(J5,MIN(15,FIND(" ",J5)-1))&MID(J5,FIND(" ",J5),2)) -> ΚΑΡΑΝΤΑΛΗΣ Κ | L5: =IF($I5>0,VLOOKUP($I5,ALMD!$C$3:$G$34,4,FALSE),"") -> ΑΟ ΤΑΤΟΪΟΥ | M5: 1 | N5: =IF((OR(M5=1,M5=2)),IF(M5=1,I5,I6),"") -> 41418 | O5: =IF((OR(M5=1,M5=2)),IF(M5=1,K5,K6),"") -> ΚΑΡΑΝΤΑΛΗΣ Κ
A6: 2 | B6: =1-D6+8 -> 8 | C6: =B5 -> 1 | D6: =E6 -> 1 | E6: =IF($B$2>=C6,1,0) -> 1 | F6: =IF(NOT($G6="-"),VLOOKUP($G6,ALMD!$A$3:$G$34,2,FALSE),"") ->  | G6: =IF($B$2>=C6,"-",VLOOKUP($B6,Setup!$K$2:$L$33,2,FALSE)) -> - | H6: =IF(NOT($G6="-"),VLOOKUP($G6,ALMD!$A$3:$G$34,7,FALSE),0) -> 0 | I6: =IF(Setup!$B$24="",0,IF(NOT($G6="-"),VLOOKUP($G6,ALMD!$A$3:$G$34,3,FALSE),0)) -> 0 | J6: =IF($I6>0,VLOOKUP($I6,ALMD!$C$3:$G$34,2,FALSE),"bye") -> bye | K6: =IF(NOT(I6>0),"",LEFT(J6,MIN(15,FIND(" ",J6)-1))&MID(J6,FIND(" ",J6),2)) ->  | L6: =IF($I6>0,VLOOKUP($I6,ALMD!$C$3:$G$34,4,FALSE),"") ->  | Q6: =IF((OR(P6=1,P6=2)),IF(P6=1,N5,N7),"") ->  | R6: =IF(OR(P6=1,P6=2),IF(OR(AND(O6="",I5>0,I6>0),AND(O8="",I7>0,I8>0)),"* αποτέλεσμα! *",IF(P6=1,O5,O7)),"") -> 
A7: 3 | B7: =2-D7+8 -> 9 | D7: =D6+E7 -> 1 | E7: 0 | F7: =IF(NOT($G7="-"),VLOOKUP($G7,ALMD!$A$3:$G$34,2,FALSE),"") -> 0 | G7: =VLOOKUP($B7,Setup!$K$2:$L$33,2,FALSE) -> 11 | H7: =IF($G7>0,VLOOKUP($G7,ALMD!$A$3:$G$34,7,FALSE),0) -> 0 | I7: =IF(Setup!$B$24="",0,IF($G7>0,VLOOKUP($G7,ALMD!$A$3:$G$34,3,FALSE),0)) -> 34987 | J7: =IF($I7>0,VLOOKUP($I7,ALMD!$C$3:$G$34,2,FALSE),"bye") -> ΝΕΪΣ ΕΡΙΚ-ΤΖΕΪΜΣ | K7: ΝΕΪΣ Ε | L7: =IF($I7>0,VLOOKUP($I7,ALMD!$C$3:$G$34,4,FALSE),"") -> ΑΟ ΚΗΦΙΣΙΑΣ | M7: 1 | N7: =IF((OR(M7=1,M7=2)),IF(M7=1,I7,I8),"") -> 34987 | O7: =IF((OR(M7=1,M7=2)),IF(M7=1,K7,K8),"") -> ΝΕΪΣ Ε
A8: 4 | B8: =3-D8+8 -> 9 | C8: 15 | D8: =D7+E8 -> 2 | E8: =IF($B$2>=C8,1,0) -> 1 | F8: =IF(NOT($G8="-"),VLOOKUP($G8,ALMD!$A$3:$G$34,2,FALSE),"") ->  | G8: =IF($B$2>=C8,"-",VLOOKUP($B8,Setup!$K$2:$L$33,2,FALSE)) -> - | H8: =IF(NOT($G8="-"),VLOOKUP($G8,ALMD!$A$3:$G$34,7,FALSE),0) -> 0 | I8: =IF(Setup!$B$24="",0,IF(NOT($G8="-"),VLOOKUP($G8,ALMD!$A$3:$G$34,3,FALSE),0)) -> 0 | J8: =IF($I8>0,VLOOKUP($I8,ALMD!$C$3:$G$34,2,FALSE),"bye") -> bye | L8: =IF($I8>0,VLOOKUP($I8,ALMD!$C$3:$G$34,4,FALSE),"") ->  | T8: =IF((OR(S8=1,S8=2)),IF(S8=1,Q6,Q10),"") ->  | U8: =IF(OR(S8=1,S8=2),IF(OR(AND(R7="",N5>0,N7>0),AND(R11="",N9>0,N11>0)),"* αποτέλεσμα! *",IF(S8=1,R6,R10)),"") -> 
A9: 5 | B9: =4-D9+8 -> 10 | D9: 2 | E9: 0 | F9: =IF(NOT($G9="-"),VLOOKUP($G9,ALMD!$A$3:$G$34,2,FALSE),"") -> 0 | G9: =VLOOKUP($B9,Setup!$K$2:$L$33,2,FALSE) -> 17 | H9: =IF($G9>0,VLOOKUP($G9,ALMD!$A$3:$G$34,7,FALSE),0) -> 0 | I9: =IF(Setup!$B$24="",0,IF($G9>0,VLOOKUP($G9,ALMD!$A$3:$G$34,3,FALSE),0)) -> 39384 | J9: =IF($I9>0,VLOOKUP($I9,ALMD!$C$3:$G$34,2,FALSE),"bye") -> ΓΚΛΑΒΑΣ ΓΙΩΡΓΟΣ | K9: ΓΚΛΑΒΑΣ Γ | L9: =IF($I9>0,VLOOKUP($I9,ALMD!$C$3:$G$34,4,FALSE),"") -> ΑΟ ΠΕΥΚΗΣ TIE BREAK | M9: 1 | N9: =IF((OR(M9=1,M9=2)),IF(M9=1,I9,I10),"") -> 39384 | O9: =IF((OR(M9=1,M9=2)),IF(M9=1,K9,K10),"") -> ΓΚΛΑΒΑΣ Γ
A10: 6 | B10: =5-D10+8 -> 10 | C10: 9 | D10: 3 | E10: =IF($B$2>=C10,1,0) -> 1 | F10: =IF(NOT($G10="-"),VLOOKUP($G10,ALMD!$A$3:$G$34,2,FALSE),"") ->  | G10: =IF($B$2>=C10,"-",VLOOKUP($B10,Setup!$K$2:$L$33,2,FALSE)) -> - | H10: =IF(NOT($G10="-"),VLOOKUP($G10,ALMD!$A$3:$G$34,7,FALSE),0) -> 0 | I10: =IF(Setup!$B$24="",0,IF(NOT($G10="-"),VLOOKUP($G10,ALMD!$A$3:$G$34,3,FALSE),0)) -> 0 | J10: =IF($I10>0,VLOOKUP($I10,ALMD!$C$3:$G$34,2,FALSE),"bye") -> bye | L10: =IF($I10>0,VLOOKUP($I10,ALMD!$C$3:$G$34,4,FALSE),"") ->  | Q10: =IF((OR(P10=1,P10=2)),IF(P10=1,N9,N11),"") ->  | R10: =IF(OR(P10=1,P10=2),IF(OR(AND(O10="",I9>0,I10>0),AND(O12="",I11>0,I12>0)),"* αποτέλεσμα! *",IF(P10=1,O9,O11)),"") -> 
A11: 7 | B11: =6-D11+8 -> 10 | C11: =B12 -> 8 | D11: 4 | E11: =IF($B$2>=C11,1,0) -> 1 | F11: =IF(NOT($G11="-"),VLOOKUP($G11,ALMD!$A$3:$G$34,2,FALSE),"") ->  | G11: =IF($B$2>=C11,"-",VLOOKUP($B11,Setup!$K$2:$L$33,2,FALSE)) -> - | H11: =IF(NOT($G11="-"),VLOOKUP($G11,ALMD!$A$3:$G$34,7,FALSE),0) -> 0 | I11: =IF(Setup!$B$24="",0,IF(NOT($G11="-"),VLOOKUP($G11,ALMD!$A$3:$G$34,3,FALSE),0)) -> 0 | J11: =IF($I11>0,VLOOKUP($I11,ALMD!$C$3:$G$34,2,FALSE),"bye") -> bye | L11: =IF($I11>0,VLOOKUP($I11,ALMD!$C$3:$G$34,4,FALSE),"") ->  | M11: 2 | N11: =IF((OR(M11=1,M11=2)),IF(M11=1,I11,I12),"") -> 39226 | O11: =IF((OR(M11=1,M11=2)),IF(M11=1,K11,K12),"") -> ΝΙΚΗΤΑΚΗΣ Ι
A12: 8 | B12: =VALUE(Setup!E5) -> 8 | D12: 4 | E12: 0 | F12: =IF(NOT($G12="-"),VLOOKUP($G12,ALMD!$A$3:$G$34,2,FALSE),"") -> 0 | G12: =VLOOKUP($B12,Setup!$K$2:$L$33,2,FALSE) -> 8 | H12: =IF($G12>0,VLOOKUP($G12,ALMD!$A$3:$G$34,7,FALSE),0) -> 0 | I12: =IF(Setup!$B$24="",0,IF($G12>0,VLOOKUP($G12,ALMD!$A$3:$G$34,3,FALSE),0)) -> 39226 | J12: =IF($I12>0,VLOOKUP($I12,ALMD!$C$3:$G$34,2,FALSE),"bye") -> ΝΙΚΗΤΑΚΗΣ ΙΩΑΝΝΗΣ | K12: ΝΙΚΗΤΑΚΗΣ Ι | L12: =IF($I12>0,VLOOKUP($I12,ALMD!$C$3:$G$34,4,FALSE),"") -> ΑΟ ΚΗΦΙΣΙΑΣ | W12: =IF((OR(V12=1,V12=2)),IF(V12=1,T8,T16),"") ->  | X12: =IF(OR(V12=1,V12=2),IF(OR(U9="",U17=""),"* αποτέλεσμα! *",IF(V12=1,U8,U16)),"") -> 
A13: 9 | B13: =VALUE(Setup!E2) -> 3 | D13: 4 | E13: 0 | F13: =IF(NOT($G13="-"),VLOOKUP($G13,ALMD!$A$3:$G$34,2,FALSE),"") -> 0 | G13: =VLOOKUP($B13,Setup!$K$2:$L$33,2,FALSE) -> 3 | H13: =IF($G13>0,VLOOKUP($G13,ALMD!$A$3:$G$34,7,FALSE),0) -> 0 | I13: =IF(Setup!$B$24="",0,IF($G13>0,VLOOKUP($G13,ALMD!$A$3:$G$34,3,FALSE),0)) -> 41506 | J13: =IF($I13>0,VLOOKUP($I13,ALMD!$C$3:$G$34,2,FALSE),"bye") -> ΧΑΡΑΛΑΜΠΙΔΗΣ ΦΑΝΟΥΡΙΟΣ | K13: ΧΑΡΑΛΑΜΠΙΔΗΣ Φ | L13: =IF($I13>0,VLOOKUP($I13,ALMD!$C$3:$G$34,4,FALSE),"") -> Α.Ο.Α.ΑΤΤΙΚΟΣ ΗΛΙΟΣ | M13: 1 | N13: =IF((OR(M13=1,M13=2)),IF(M13=1,I13,I14),"") -> 41506 | O13: =IF((OR(M13=1,M13=2)),IF(M13=1,K13,K14),"") -> ΧΑΡΑΛΑΜΠΙΔΗΣ Φ
A14: 10 | B14: =7-D14+8 -> 10 | C14: =B13 -> 3 | D14: 5 | E14: =IF($B$2>=C14,1,0) -> 1 | F14: =IF(NOT($G14="-"),VLOOKUP($G14,ALMD!$A$3:$G$34,2,FALSE),"") ->  | G14: =IF($B$2>=C14,"-",VLOOKUP($B14,Setup!$K$2:$L$33,2,FALSE)) -> - | H14: =IF(NOT($G14="-"),VLOOKUP($G14,ALMD!$A$3:$G$34,7,FALSE),0) -> 0 | I14: =IF(Setup!$B$24="",0,IF(NOT($G14="-"),VLOOKUP($G14,ALMD!$A$3:$G$34,3,FALSE),0)) -> 0 | J14: =IF($I14>0,VLOOKUP($I14,ALMD!$C$3:$G$34,2,FALSE),"bye") -> bye | L14: =IF($I14>0,VLOOKUP($I14,ALMD!$C$3:$G$34,4,FALSE),"") ->  | Q14: =IF((OR(P14=1,P14=2)),IF(P14=1,N13,N15),"") ->  | R14: =IF((OR(P14=1,P14=2)),IF(P14=1,O13,O15),"") -> 
A15: 11 | B15: =8-D15+8 -> 11 | D15: 5 | E15: 0 | F15: =IF(NOT($G15="-"),VLOOKUP($G15,ALMD!$A$3:$G$34,2,FALSE),"") -> 0 | G15: =VLOOKUP($B15,Setup!$K$2:$L$33,2,FALSE) -> 10 | H15: =IF($G15>0,VLOOKUP($G15,ALMD!$A$3:$G$34,7,FALSE),0) -> 0 | I15: =IF(Setup!$B$24="",0,IF($G15>0,VLOOKUP($G15,ALMD!$A$3:$G$34,3,FALSE),0)) -> 38819 | J15: =IF($I15>0,VLOOKUP($I15,ALMD!$C$3:$G$34,2,FALSE),"bye") -> ΠΑΠΑΖΗΚΟΣ ΠΑΥΛΟΣ | K15: ΠΑΠΑΖΗΚΟΣ Π | L15: =IF($I15>0,VLOOKUP($I15,ALMD!$C$3:$G$34,4,FALSE),"") -> ΟΑ ΑΘΗΝΩΝ | M15: 1 | N15: =IF((OR(M15=1,M15=2)),IF(M15=1,I15,I16),"") -> 38819 | O15: =IF((OR(M15=1,M15=2)),IF(M15=1,K15,K16),"") -> ΠΑΠΑΖΗΚΟΣ Π
A16: 12 | B16: =9-D16+8 -> 11 | C16: 13 | D16: 6 | E16: =IF($B$2>=C16,1,0) -> 1 | F16: =IF(NOT($G16="-"),VLOOKUP($G16,ALMD!$A$3:$G$34,2,FALSE),"") ->  | G16: =IF($B$2>=C16,"-",VLOOKUP($B16,Setup!$K$2:$L$33,2,FALSE)) -> - | H16: =IF(NOT($G16="-"),VLOOKUP($G16,ALMD!$A$3:$G$34,7,FALSE),0) -> 0 | I16: =IF(Setup!$B$24="",0,IF(NOT($G16="-"),VLOOKUP($G16,ALMD!$A$3:$G$34,3,FALSE),0)) -> 0 | J16: =IF($I16>0,VLOOKUP($I16,ALMD!$C$3:$G$34,2,FALSE),"bye") -> bye | L16: =IF($I16>0,VLOOKUP($I16,ALMD!$C$3:$G$34,4,FALSE),"") ->  | T16: =IF((OR(S16=1,S16=2)),IF(S16=1,Q14,Q18),"") ->  | U16: =IF(OR(S16=1,S16=2),IF(OR(AND(R15="",N13>0,N15>0),AND(R19="",N17>0,N19>0)),"* αποτέλεσμα! *",IF(S16=1,R14,R18)),"") -> 
A17: 13 | B17: =10-D17+8 -> 12 | D17: 6 | E17: 0 | F17: =IF(NOT($G17="-"),VLOOKUP($G17,ALMD!$A$3:$G$34,2,FALSE),"") -> 0 | G17: =VLOOKUP($B17,Setup!$K$2:$L$33,2,FALSE) -> 15 | H17: =IF($G17>0,VLOOKUP($G17,ALMD!$A$3:$G$34,7,FALSE),0) -> 0 | I17: =IF(Setup!$B$24="",0,IF($G17>0,VLOOKUP($G17,ALMD!$A$3:$G$34,3,FALSE),0)) -> 40527 | J17: =IF($I17>0,VLOOKUP($I17,ALMD!$C$3:$G$34,2,FALSE),"bye") -> ΖΑΧΑΡΑΤΟΣ ΣΤΑΜΑΤΙΟΣ | K17: ΖΑΧΑΡΑΤΟΣ Σ | L17: =IF($I17>0,VLOOKUP($I17,ALMD!$C$3:$G$34,4,FALSE),"") -> ΑΟ ΦΙΛΙΠΠΟΣ ΠΟΛΥΔΡΟΣΟΥ | M17: 1 | N17: =IF((OR(M17=1,M17=2)),IF(M17=1,I17,I18),"") -> 40527 | O17: =IF((OR(M17=1,M17=2)),IF(M17=1,K17,K18),"") -> ΖΑΧΑΡΑΤΟΣ Σ
A18: 14 | B18: =11-D18+8 -> 12 | C18: 11 | D18: 7 | E18: =IF($B$2>=C18,1,0) -> 1 | F18: =IF(NOT($G18="-"),VLOOKUP($G18,ALMD!$A$3:$G$34,2,FALSE),"") ->  | G18: =IF($B$2>=C18,"-",VLOOKUP($B18,Setup!$K$2:$L$33,2,FALSE)) -> - | H18: =IF(NOT($G18="-"),VLOOKUP($G18,ALMD!$A$3:$G$34,7,FALSE),0) -> 0 | I18: =IF(Setup!$B$24="",0,IF(NOT($G18="-"),VLOOKUP($G18,ALMD!$A$3:$G$34,3,FALSE),0)) -> 0 | J18: =IF($I18>0,VLOOKUP($I18,ALMD!$C$3:$G$34,2,FALSE),"bye") -> bye | L18: =IF($I18>0,VLOOKUP($I18,ALMD!$C$3:$G$34,4,FALSE),"") ->  | Q18: =IF((OR(P18=1,P18=2)),IF(P18=1,N17,N19),"") ->  | R18: =IF(OR(P18=1,P18=2),IF(OR(AND(O18="",I17>0,I18>0),AND(O20="",I19>0,I20>0)),"* αποτέλεσμα! *",IF(P18=1,O17,O19)),"") -> 
A19: 15 | B19: =12-D19+8 -> 12 | C19: =B20 -> 6 | D19: 8 | E19: =IF($B$2>=C19,1,0) -> 1 | F19: =IF(NOT($G19="-"),VLOOKUP($G19,ALMD!$A$3:$G$34,2,FALSE),"") ->  | G19: =IF($B$2>=C19,"-",VLOOKUP($B19,Setup!$K$2:$L$33,2,FALSE)) -> - | H19: =IF(NOT($G19="-"),VLOOKUP($G19,ALMD!$A$3:$G$34,7,FALSE),0) -> 0 | I19: =IF(Setup!$B$24="",0,IF(NOT($G19="-"),VLOOKUP($G19,ALMD!$A$3:$G$34,3,FALSE),0)) -> 0 | J19: =IF($I19>0,VLOOKUP($I19,ALMD!$C$3:$G$34,2,FALSE),"bye") -> bye | L19: =IF($I19>0,VLOOKUP($I19,ALMD!$C$3:$G$34,4,FALSE),"") ->  | M19: 2 | N19: =IF((OR(M19=1,M19=2)),IF(M19=1,I19,I20),"") -> 36193 | O19: =IF((OR(M19=1,M19=2)),IF(M19=1,K19,K20),"") -> ΠΑΣΣΑΣ-ΧΡΗΣΤΟΥ Π
A20: 16 | B20: =VALUE(Setup!E6) -> 6 | D20: 8 | E20: 0 | F20: =IF(NOT($G20="-"),VLOOKUP($G20,ALMD!$A$3:$G$34,2,FALSE),"") -> 0 | G20: =VLOOKUP($B20,Setup!$K$2:$L$33,2,FALSE) -> 6 | H20: =IF($G20>0,VLOOKUP($G20,ALMD!$A$3:$G$34,7,FALSE),0) -> 0 | I20: =IF(Setup!$B$24="",0,IF($G20>0,VLOOKUP($G20,ALMD!$A$3:$G$34,3,FALSE),0)) -> 36193 | J20: =IF($I20>0,VLOOKUP($I20,ALMD!$C$3:$G$34,2,FALSE),"bye") -> ΠΑΣΣΑΣ-ΧΡΗΣΤΟΥ ΠΑΡΑΣΚΕΥΑΣ | K20: ΠΑΣΣΑΣ-ΧΡΗΣΤΟΥ Π | L20: =IF($I20>0,VLOOKUP($I20,ALMD!$C$3:$G$34,4,FALSE),"") -> ΟΑ ΑΓ ΠΑΡΑΣΚΕΥΗΣ | W20: =IF((OR(V20=1,V20=2)),IF(V20=1,W12,W28),"") ->  | X20: =IF((OR(V20=1,V20=2)),IF(V20=1,X12,X28),"") -> 
A21: 17 | B21: =VALUE(Setup!E7) -> 7 | D21: 8 | E21: 0 | F21: =IF(NOT($G21="-"),VLOOKUP($G21,ALMD!$A$3:$G$34,2,FALSE),"") -> 0 | G21: =VLOOKUP($B21,Setup!$K$2:$L$33,2,FALSE) -> 7 | H21: =IF($G21>0,VLOOKUP($G21,ALMD!$A$3:$G$34,7,FALSE),0) -> 0 | I21: =IF(Setup!$B$24="",0,IF($G21>0,VLOOKUP($G21,ALMD!$A$3:$G$34,3,FALSE),0)) -> 39937 | J21: =IF($I21>0,VLOOKUP($I21,ALMD!$C$3:$G$34,2,FALSE),"bye") -> ΠΑΠΑΧΡΗΣΤΟΥ ΧΡΗΣΤΟΣ | K21: ΠΑΠΑΧΡΗΣΤΟΥ Χ | L21: =IF($I21>0,VLOOKUP($I21,ALMD!$C$3:$G$34,4,FALSE),"") -> ΑΟΑ ΑΛΕΞΑΝΔΡΟΣ Β | M21: 1 | N21: =IF((OR(M21=1,M21=2)),IF(M21=1,I21,I22),"") -> 39937 | O21: =IF((OR(M21=1,M21=2)),IF(M21=1,K21,K22),"") -> ΠΑΠΑΧΡΗΣΤΟΥ Χ
A22: 18 | B22: =13-D22+8 -> 12 | C22: =B21 -> 7 | D22: 9 | E22: =IF($B$2>=C22,1,0) -> 1 | F22: =IF(NOT($G22="-"),VLOOKUP($G22,ALMD!$A$3:$G$34,2,FALSE),"") ->  | G22: =IF($B$2>=C22,"-",VLOOKUP($B22,Setup!$K$2:$L$33,2,FALSE)) -> - | H22: =IF(NOT($G22="-"),VLOOKUP($G22,ALMD!$A$3:$G$34,7,FALSE),0) -> 0 | I22: =IF(Setup!$B$24="",0,IF(NOT($G22="-"),VLOOKUP($G22,ALMD!$A$3:$G$34,3,FALSE),0)) -> 0 | J22: =IF($I22>0,VLOOKUP($I22,ALMD!$C$3:$G$34,2,FALSE),"bye") -> bye | L22: =IF($I22>0,VLOOKUP($I22,ALMD!$C$3:$G$34,4,FALSE),"") ->  | Q22: =IF((OR(P22=1,P22=2)),IF(P22=1,N21,N23),"") ->  | R22: =IF(OR(P22=1,P22=2),IF(OR(AND(O22="",I21>0,I22>0),AND(O24="",I23>0,I24>0)),"* αποτέλεσμα! *",IF(P22=1,O21,O23)),"") -> 
A23: 19 | B23: =14-D23+8 -> 13 | D23: 9 | E23: 0 | F23: =IF(NOT($G23="-"),VLOOKUP($G23,ALMD!$A$3:$G$34,2,FALSE),"") -> 0 | G23: =VLOOKUP($B23,Setup!$K$2:$L$33,2,FALSE) -> 14 | H23: =IF($G23>0,VLOOKUP($G23,ALMD!$A$3:$G$34,7,FALSE),0) -> 0 | I23: =IF(Setup!$B$24="",0,IF($G23>0,VLOOKUP($G23,ALMD!$A$3:$G$34,3,FALSE),0)) -> 39716 | J23: =IF($I23>0,VLOOKUP($I23,ALMD!$C$3:$G$34,2,FALSE),"bye") -> ΙΩΑΝΝΑΤΟΣ ΣΤΑΥΡΟΣ | K23: ΙΩΑΝΝΑΤΟΣ Σ | L23: =IF($I23>0,VLOOKUP($I23,ALMD!$C$3:$G$34,4,FALSE),"") -> ΑΕ ΠΟΡΤΟ ΡΑΦΤΗ | M23: 1 | N23: =IF((OR(M23=1,M23=2)),IF(M23=1,I23,I24),"") -> 39716 | O23: =IF((OR(M23=1,M23=2)),IF(M23=1,K23,K24),"") -> ΙΩΑΝΝΑΤΟΣ Σ
A24: 20 | B24: =15-D24+8 -> 13 | C24: 12 | D24: 10 | E24: =IF($B$2>=C24,1,0) -> 1 | F24: =IF(NOT($G24="-"),VLOOKUP($G24,ALMD!$A$3:$G$34,2,FALSE),"") ->  | G24: =IF($B$2>=C24,"-",VLOOKUP($B24,Setup!$K$2:$L$33,2,FALSE)) -> - | H24: =IF(NOT($G24="-"),VLOOKUP($G24,ALMD!$A$3:$G$34,7,FALSE),0) -> 0 | I24: =IF(Setup!$B$24="",0,IF(NOT($G24="-"),VLOOKUP($G24,ALMD!$A$3:$G$34,3,FALSE),0)) -> 0 | J24: =IF($I24>0,VLOOKUP($I24,ALMD!$C$3:$G$34,2,FALSE),"bye") -> bye | L24: =IF($I24>0,VLOOKUP($I24,ALMD!$C$3:$G$34,4,FALSE),"") ->  | T24: =IF((OR(S24=1,S24=2)),IF(S24=1,Q22,Q26),"") ->  | U24: =IF(OR(S24=1,S24=2),IF(OR(AND(R23="",N21>0,N23>0),AND(R27="",N25>0,N27>0)),"* αποτέλεσμα! *",IF(S24=1,R22,R26)),"") -> 
A25: 21 | B25: =16-D25+8 -> 14 | D25: 10 | E25: 0 | F25: =IF(NOT($G25="-"),VLOOKUP($G25,ALMD!$A$3:$G$34,2,FALSE),"") -> 0 | G25: =VLOOKUP($B25,Setup!$K$2:$L$33,2,FALSE) -> 13 | H25: =IF($G25>0,VLOOKUP($G25,ALMD!$A$3:$G$34,7,FALSE),0) -> 0 | I25: =IF(Setup!$B$24="",0,IF($G25>0,VLOOKUP($G25,ALMD!$A$3:$G$34,3,FALSE),0)) -> 40952 | J25: =IF($I25>0,VLOOKUP($I25,ALMD!$C$3:$G$34,2,FALSE),"bye") -> ΖΟΥΓΑΝΕΛΗΣ ΔΗΜΗΤΡΗΣ | K25: ΖΟΥΓΑΝΕΛΗΣ Δ | L25: =IF($I25>0,VLOOKUP($I25,ALMD!$C$3:$G$34,4,FALSE),"") -> ΑΟΑ ΥΕΛΟΥ | M25: 1 | N25: =IF((OR(M25=1,M25=2)),IF(M25=1,I25,I26),"") -> 40952 | O25: =IF((OR(M25=1,M25=2)),IF(M25=1,K25,K26),"") -> ΖΟΥΓΑΝΕΛΗΣ Δ
A26: 22 | B26: =17-D26+8 -> 14 | C26: 14 | D26: 11 | E26: =IF($B$2>=C26,1,0) -> 1 | F26: =IF(NOT($G26="-"),VLOOKUP($G26,ALMD!$A$3:$G$34,2,FALSE),"") ->  | G26: =IF($B$2>=C26,"-",VLOOKUP($B26,Setup!$K$2:$L$33,2,FALSE)) -> - | H26: =IF(NOT($G26="-"),VLOOKUP($G26,ALMD!$A$3:$G$34,7,FALSE),0) -> 0 | I26: =IF(Setup!$B$24="",0,IF(NOT($G26="-"),VLOOKUP($G26,ALMD!$A$3:$G$34,3,FALSE),0)) -> 0 | J26: =IF($I26>0,VLOOKUP($I26,ALMD!$C$3:$G$34,2,FALSE),"bye") -> bye | L26: =IF($I26>0,VLOOKUP($I26,ALMD!$C$3:$G$34,4,FALSE),"") ->  | Q26: =IF((OR(P26=1,P26=2)),IF(P26=1,N25,N27),"") ->  | R26: =IF(OR(P26=1,P26=2),IF(OR(AND(O26="",I25>0,I26>0),AND(O28="",I27>0,I28>0)),"* αποτέλεσμα! *",IF(P26=1,O25,O27)),"") -> 
A27: 23 | B27: =18-D27+8 -> 14 | C27: =B28 -> 4 | D27: 12 | E27: =IF($B$2>=C27,1,0) -> 1 | F27: =IF(NOT($G27="-"),VLOOKUP($G27,ALMD!$A$3:$G$34,2,FALSE),"") ->  | G27: =IF($B$2>=C27,"-",VLOOKUP($B27,Setup!$K$2:$L$33,2,FALSE)) -> - | H27: =IF(NOT($G27="-"),VLOOKUP($G27,ALMD!$A$3:$G$34,7,FALSE),0) -> 0 | I27: =IF(Setup!$B$24="",0,IF(NOT($G27="-"),VLOOKUP($G27,ALMD!$A$3:$G$34,3,FALSE),0)) -> 0 | J27: =IF($I27>0,VLOOKUP($I27,ALMD!$C$3:$G$34,2,FALSE),"bye") -> bye | L27: =IF($I27>0,VLOOKUP($I27,ALMD!$C$3:$G$34,4,FALSE),"") ->  | M27: 2 | N27: =IF((OR(M27=1,M27=2)),IF(M27=1,I27,I28),"") -> 41505 | O27: =IF((OR(M27=1,M27=2)),IF(M27=1,K27,K28),"") -> ΜΠΑΛΩΜΕΝΟΣ Α
A28: 24 | B28: =VALUE(Setup!E3) -> 4 | D28: 12 | E28: 0 | F28: =IF(NOT($G28="-"),VLOOKUP($G28,ALMD!$A$3:$G$34,2,FALSE),"") -> 0 | G28: =VLOOKUP($B28,Setup!$K$2:$L$33,2,FALSE) -> 4 | H28: =IF($G28>0,VLOOKUP($G28,ALMD!$A$3:$G$34,7,FALSE),0) -> 0 | I28: =IF(Setup!$B$24="",0,IF($G28>0,VLOOKUP($G28,ALMD!$A$3:$G$34,3,FALSE),0)) -> 41505 | J28: =IF($I28>0,VLOOKUP($I28,ALMD!$C$3:$G$34,2,FALSE),"bye") -> ΜΠΑΛΩΜΕΝΟΣ ΑΘΑΝΑΣΙΟΣ | K28: ΜΠΑΛΩΜΕΝΟΣ Α | L28: =IF($I28>0,VLOOKUP($I28,ALMD!$C$3:$G$34,4,FALSE),"") -> Α.Ο.Α.ΑΤΤΙΚΟΣ ΗΛΙΟΣ | W28: =IF((OR(V28=1,V28=2)),IF(V28=1,T24,T32),"") ->  | X28: =IF(OR(V28=1,V28=2),IF(OR(U25="",U33=""),"* αποτέλεσμα! *",IF(V28=1,U24,U32)),"") -> 
A29: 25 | B29: =VALUE(Setup!E8) -> 5 | D29: 12 | E29: 0 | F29: =IF(NOT($G29="-"),VLOOKUP($G29,ALMD!$A$3:$G$34,2,FALSE),"") -> 0 | G29: =VLOOKUP($B29,Setup!$K$2:$L$33,2,FALSE) -> 5 | H29: =IF($G29>0,VLOOKUP($G29,ALMD!$A$3:$G$34,7,FALSE),0) -> 0 | I29: =IF(Setup!$B$24="",0,IF($G29>0,VLOOKUP($G29,ALMD!$A$3:$G$34,3,FALSE),0)) -> 40818 | J29: =IF($I29>0,VLOOKUP($I29,ALMD!$C$3:$G$34,2,FALSE),"bye") -> ΠΑΝΑΓΟΠΟΥΛΟΣ ΙΩΑΝΝΗΣ | K29: ΠΑΝΑΓΟΠΟΥΛΟΣ Ι | L29: =IF($I29>0,VLOOKUP($I29,ALMD!$C$3:$G$34,4,FALSE),"") -> ΑΚΑ ΜΑΡΑΘΩΝΑ | M29: 1 | N29: =IF((OR(M29=1,M29=2)),IF(M29=1,I29,I30),"") -> 40818 | O29: =IF((OR(M29=1,M29=2)),IF(M29=1,K29,K30),"") -> ΠΑΝΑΓΟΠΟΥΛΟΣ Ι
A30: 26 | B30: =19-D30+8 -> 14 | C30: =B29 -> 5 | D30: 13 | E30: =IF($B$2>=C30,1,0) -> 1 | F30: =IF(NOT($G30="-"),VLOOKUP($G30,ALMD!$A$3:$G$34,2,FALSE),"") ->  | G30: =IF($B$2>=C30,"-",VLOOKUP($B30,Setup!$K$2:$L$33,2,FALSE)) -> - | H30: =IF(NOT($G30="-"),VLOOKUP($G30,ALMD!$A$3:$G$34,7,FALSE),0) -> 0 | I30: =IF(Setup!$B$24="",0,IF(NOT($G30="-"),VLOOKUP($G30,ALMD!$A$3:$G$34,3,FALSE),0)) -> 0 | J30: =IF($I30>0,VLOOKUP($I30,ALMD!$C$3:$G$34,2,FALSE),"bye") -> bye | L30: =IF($I30>0,VLOOKUP($I30,ALMD!$C$3:$G$34,4,FALSE),"") ->  | Q30: =IF((OR(P30=1,P30=2)),IF(P30=1,N29,N31),"") ->  | R30: =IF(OR(P30=1,P30=2),IF(OR(AND(O30="",I29>0,I30>0),AND(O32="",I31>0,I32>0)),"* αποτέλεσμα! *",IF(P30=1,O29,O31)),"") -> 
A31: 27 | B31: =20-D31+8 -> 15 | D31: 13 | E31: 0 | F31: =IF(NOT($G31="-"),VLOOKUP($G31,ALMD!$A$3:$G$34,2,FALSE),"") -> 0 | G31: =VLOOKUP($B31,Setup!$K$2:$L$33,2,FALSE) -> 9 | H31: =IF($G31>0,VLOOKUP($G31,ALMD!$A$3:$G$34,7,FALSE),0) -> 0 | I31: =IF(Setup!$B$24="",0,IF($G31>0,VLOOKUP($G31,ALMD!$A$3:$G$34,3,FALSE),0)) -> 40066 | J31: =IF($I31>0,VLOOKUP($I31,ALMD!$C$3:$G$34,2,FALSE),"bye") -> ΚΑΛΠΟΓΙΑΝΝΑΚΗΣ ΣΩΤΗΡΗΣ | K31: ΚΑΛΠΟΓΙΑΝΝΑΚΗΣ Σ | L31: =IF($I31>0,VLOOKUP($I31,ALMD!$C$3:$G$34,4,FALSE),"") -> ΣΑ ΡΑΦΗΝΑΣ | M31: 1 | N31: =IF((OR(M31=1,M31=2)),IF(M31=1,I31,I32),"") -> 40066 | O31: =IF((OR(M31=1,M31=2)),IF(M31=1,K31,K32),"") -> ΚΑΛΠΟΓΙΑΝΝΑΚΗΣ Σ
A32: 28 | B32: =21-D32+8 -> 15 | C32: 10 | D32: 14 | E32: =IF($B$2>=C32,1,0) -> 1 | F32: =IF(NOT($G32="-"),VLOOKUP($G32,ALMD!$A$3:$G$34,2,FALSE),"") ->  | G32: =IF($B$2>=C32,"-",VLOOKUP($B32,Setup!$K$2:$L$33,2,FALSE)) -> - | H32: =IF(NOT($G32="-"),VLOOKUP($G32,ALMD!$A$3:$G$34,7,FALSE),0) -> 0 | I32: =IF(Setup!$B$24="",0,IF(NOT($G32="-"),VLOOKUP($G32,ALMD!$A$3:$G$34,3,FALSE),0)) -> 0 | J32: =IF($I32>0,VLOOKUP($I32,ALMD!$C$3:$G$34,2,FALSE),"bye") -> bye | L32: =IF($I32>0,VLOOKUP($I32,ALMD!$C$3:$G$34,4,FALSE),"") ->  | T32: =IF((OR(S32=1,S32=2)),IF(S32=1,Q30,Q34),"") ->  | U32: =IF(OR(S32=1,S32=2),IF(OR(AND(R31="",N29>0,N31>0),AND(R35="",N33>0,N35>0)),"* αποτέλεσμα! *",IF(S32=1,R30,R34)),"") -> 
A33: 29 | B33: =22-D33+8 -> 16 | D33: 14 | E33: 0 | F33: =IF(NOT($G33="-"),VLOOKUP($G33,ALMD!$A$3:$G$34,2,FALSE),"") -> 0 | G33: =VLOOKUP($B33,Setup!$K$2:$L$33,2,FALSE) -> 12 | H33: =IF($G33>0,VLOOKUP($G33,ALMD!$A$3:$G$34,7,FALSE),0) -> 0 | I33: =IF(Setup!$B$24="",0,IF($G33>0,VLOOKUP($G33,ALMD!$A$3:$G$34,3,FALSE),0)) -> 40311 | J33: =IF($I33>0,VLOOKUP($I33,ALMD!$C$3:$G$34,2,FALSE),"bye") -> ΜΑΛΑΒΑΖΟΣ ΑΝΤΩΝΙΟΣ | K33: ΜΑΛΑΒΑΖΟΣ Α | L33: =IF($I33>0,VLOOKUP($I33,ALMD!$C$3:$G$34,4,FALSE),"") -> ΟΑ ΑΘΗΝΩΝ | M33: 2 | N33: =IF((OR(M33=1,M33=2)),IF(M33=1,I33,I34),"") -> 39208 | O33: =IF((OR(M33=1,M33=2)),IF(M33=1,K33,K34),"") -> ΤΑΥΡΙΔΑΚΗΣ Κ
A34: 30 | B34: =23-D34+8 -> 17 | C34: 16 | D34: 14 | E34: =IF($B$2>=C34,1,0) -> 0 | F34: =IF(NOT($G34="-"),VLOOKUP($G34,ALMD!$A$3:$G$34,2,FALSE),"") -> 0 | G34: =IF($B$2>=C34,"-",VLOOKUP($B34,Setup!$K$2:$L$33,2,FALSE)) -> 16 | H34: =IF(NOT($G34="-"),VLOOKUP($G34,ALMD!$A$3:$G$34,7,FALSE),0) -> 0 | I34: =IF(Setup!$B$24="",0,IF(NOT($G34="-"),VLOOKUP($G34,ALMD!$A$3:$G$34,3,FALSE),0)) -> 39208 | J34: =IF($I34>0,VLOOKUP($I34,ALMD!$C$3:$G$34,2,FALSE),"bye") -> ΤΑΥΡΙΔΑΚΗΣ ΚΩΝΣΤΑΝΤΙΝΟΣ | K34: ΤΑΥΡΙΔΑΚΗΣ Κ | L34: =IF($I34>0,VLOOKUP($I34,ALMD!$C$3:$G$34,4,FALSE),"") -> ΟΑ ΑΘΗΝΩΝ | O34: 41 42 | Q34: =IF((OR(P34=1,P34=2)),IF(P34=1,N33,N35),"") ->  | R34: =IF(OR(P34=1,P34=2),IF(OR(AND(O34="",I33>0,I34>0),AND(O36="",I35>0,I36>0)),"* αποτέλεσμα! *",IF(P34=1,O33,O35)),"") -> 
A35: 31 | B35: =24-D35+8 -> 17 | C35: =B36 -> 2 | D35: 15 | E35: =IF($B$2>=C35,1,0) -> 1 | F35: =IF(NOT($G35="-"),VLOOKUP($G35,ALMD!$A$3:$G$34,2,FALSE),"") ->  | G35: =IF($B$2>=C35,"-",VLOOKUP($B35,Setup!$K$2:$L$33,2,FALSE)) -> - | H35: =IF(NOT($G35="-"),VLOOKUP($G35,ALMD!$A$3:$G$34,7,FALSE),0) -> 0 | I35: =IF(Setup!$B$24="",0,IF(NOT($G35="-"),VLOOKUP($G35,ALMD!$A$3:$G$34,3,FALSE),0)) -> 0 | J35: =IF($I35>0,VLOOKUP($I35,ALMD!$C$3:$G$34,2,FALSE),"bye") -> bye | L35: =IF($I35>0,VLOOKUP($I35,ALMD!$C$3:$G$34,4,FALSE),"") ->  | M35: 2 | N35: =IF((OR(M35=1,M35=2)),IF(M35=1,I35,I36),"") -> 41419 | O35: =IF((OR(M35=1,M35=2)),IF(M35=1,K35,K36),"") -> ΚΑΡΑΝΤΑΛΗΣ Ι
A36: 32 | B36: 2 | D36: 15 | E36: 0 | F36: =IF(NOT($G36="-"),VLOOKUP($G36,ALMD!$A$3:$G$34,2,FALSE),"") -> 0 | G36: =VLOOKUP($B36,Setup!$K$2:$L$33,2,FALSE) -> 2 | H36: =IF($G36>0,VLOOKUP($G36,ALMD!$A$3:$G$34,7,FALSE),0) -> 0 | I36: =IF(Setup!$B$24="",0,IF($G36>0,VLOOKUP($G36,ALMD!$A$3:$G$34,3,FALSE),0)) -> 41419 | J36: =IF($I36>0,VLOOKUP($I36,ALMD!$C$3:$G$34,2,FALSE),"bye") -> ΚΑΡΑΝΤΑΛΗΣ ΙΩΑΝΝΗΣ | K36: ΚΑΡΑΝΤΑΛΗΣ Ι | L36: =IF($I36>0,VLOOKUP($I36,ALMD!$C$3:$G$34,4,FALSE),"") -> ΦΑ ΕΚΑΛΗΣ ΛΟΥΜΠΙΕ
J38: seeded players
J39: ="1. " & IF(Setup!B19>0,LEFT(ALMD!D3,FIND(" ",ALMD!D3)+1),"") -> 1. ΚΑΡΑΝΤΑΛΗΣ Κ | L39: ="5. " & IF(Setup!B19>4,LEFT(ALMD!D7,FIND(" ",ALMD!D7)+1),"") -> 5. ΠΑΝΑΓΟΠΟΥΛΟΣ Ι
J40: ="2. " & IF(Setup!B19>1,LEFT(ALMD!D4,FIND(" ",ALMD!D4)+1),"") -> 2. ΚΑΡΑΝΤΑΛΗΣ Ι | L40: ="6. " & IF(Setup!B19>5,LEFT(ALMD!D8,FIND(" ",ALMD!D8)+1),"") -> 6. ΠΑΣΣΑΣ-ΧΡΗΣΤΟΥ Π | U40: επιδιαιτητής
J41: ="3. " & IF(Setup!B19>2,LEFT(ALMD!D5,FIND(" ",ALMD!D5)+1),"") -> 3. ΧΑΡΑΛΑΜΠΙΔΗΣ Φ | L41: ="7. " & IF(Setup!B19>6,LEFT(ALMD!D9,FIND(" ",ALMD!D9)+1),"") -> 7. ΠΑΠΑΧΡΗΣΤΟΥ Χ | U41: =IF(Setup!$B$11>" ",Setup!$B$11,"ΧΩΡΙΣ ΑΔΕΙΑ ΧΡΗΣΗΣ") -> ΤΑΜΠΟΣΗ Τ
J42: ="4. " & IF(Setup!B19>3,LEFT(ALMD!D6,FIND(" ",ALMD!D6)+1),"") -> 4. ΜΠΑΛΩΜΕΝΟΣ Α | L42: ="8. " & IF(Setup!B19>7,LEFT(ALMD!D10,FIND(" ",ALMD!D10)+1),"") -> 8. ΝΙΚΗΤΑΚΗΣ Ι
J58: BoldPlayers
J59: =IF(Setup!$B$19>0,LEFT(ALMD!D3,FIND(" ",ALMD!D3)+1)) -> ΚΑΡΑΝΤΑΛΗΣ Κ
J60: =IF(Setup!$B$19>1,LEFT(ALMD!D4,FIND(" ",ALMD!D4)+1)) -> ΚΑΡΑΝΤΑΛΗΣ Ι
J61: =IF(Setup!$B$19>2,LEFT(ALMD!D5,FIND(" ",ALMD!D5)+1)) -> ΧΑΡΑΛΑΜΠΙΔΗΣ Φ
J62: =IF(Setup!$B$19>3,LEFT(ALMD!D6,FIND(" ",ALMD!D6)+1)) -> ΜΠΑΛΩΜΕΝΟΣ Α
J63: =IF(Setup!$B$19>4,LEFT(ALMD!D7,FIND(" ",ALMD!D7)+1)) -> ΠΑΝΑΓΟΠΟΥΛΟΣ Ι
J64: =IF(Setup!$B$19>5,LEFT(ALMD!D8,FIND(" ",ALMD!D8)+1)) -> ΠΑΣΣΑΣ-ΧΡΗΣΤΟΥ Π
J65: =IF(Setup!$B$19>6,LEFT(ALMD!D9,FIND(" ",ALMD!D9)+1)) -> ΠΑΠΑΧΡΗΣΤΟΥ Χ
J66: =IF(Setup!$B$19>7,LEFT(ALMD!D10,FIND(" ",ALMD!D10)+1)) -> ΝΙΚΗΤΑΚΗΣ Ι

Sheet OoP
A1: Η' ΕΝΩΣΗ, Ε3 46η, ΑΟΑ ΑΛΕΞΑΝΔΡΟΣ Β, 17/11-19/11 (Α10)
A2: ΤΑΜΠΟΣΗ Τ
C3: Πρόγραμμα αγώνων
C5: Round 32 | F5: info
A6: ΩΡΑ | B6: Κτγρ. | C6: Αθλητής-Σύλλογος | E6: Αθλητής-Σύλλογος
A7: Έναρξη | B7: Α10 R32 | C7: ΝΙΚΗΤΑΚΗΣ ΙΩΑΝΝΗΣ
B8: Α10 R32 | C8: ΜΠΑΛΩΜΕΝΟΣ ΑΘΑΝΑΣΙΟΣ | D8: - | E8: ΠΑΣΣΑΣ-ΧΡΗΣΤΟΥ ΠΑΡΑΣΚΕΥΑΣ
B9: Α10 R32 | C9: ΠΑΠΑΖΗΚΟΣ ΠΑΥΛΟΣ
B10: Α10 R32 | E10: ΤΑΥΡΙΔΑΚΗΣ ΚΩΝΣΤΑΝΤΙΝΟΣ
A11: όχι πριν | B11: Α10 R32 | C11: ΙΩΑΝΝΑΤΟΣ ΣΤΑΥΡΟΣ
B12: Α10 R32 | C12: ΧΑΡΑΛΑΜΠΙΔΗΣ ΦΑΝΟΥΡΙΟΣ
B13: Α10 R32 | C13: ΜΠΑΜΠΑΡΟΥΤΣΗΣ ΒΙΚΕΝΤΙΟΣ
B14: Α10 R32 | E14: ΜΑΛΑΒΑΖΟΣ ΑΝΤΩΝΙΟΣ
A15: όχι πριν | B15: Α10 R32 | C15: ΖΑΧΑΡΑΤΟΣ ΣΤΑΜΑΤΙΟΣ
B16: Α10 R32 | C16: ΚΑΡΑΝΤΑΛΗΣ ΚΩΝΣΤΑΝΤΙΝΟΣ
B17: Α10 R32 | C17: ΓΚΛΑΒΑΣ ΓΙΩΡΓΟΣ
B18: Α10 R32 | E18: ΝΕΪΣ ΕΡΙΚ-ΤΖΕΪΜΣ
A19: όχι πριν | B19: Α10 R32 | C19: ΚΑΡΑΝΤΑΛΗΣ ΙΩΑΝΝΗΣ
B20: Α10 R32 | C20: ΠΑΝΑΓΟΠΟΥΛΟΣ ΙΩΑΝΝΗΣ
B21: Α10 R32 | C21: ΖΟΥΓΑΝΕΛΗΣ ΔΗΜΗΤΡΗΣ | D21: - | E21: ΓΕΩΡΓΑΚΑΡΑΚΟΣ ΠΑΥΛΟΣ
B22: Α10 R32 | E22: ΠΑΠΑΧΡΗΣΤΟΥ ΧΡΗΣΤΟΣ
C24: Round 16 | F24: info
A25: ΩΡΑ | B25: Κτγρ. | C25: Αθλητής-Σύλλογος | E25: Αθλητής-Σύλλογος
A26: Έναρξη | B26: Α10 R16
B27: Α10 R16
B28: Α10 R16
B29: Α10 R16
A30: όχι πριν | B30: Α10 R16
B31: Α10 R16
B32: Α10 R16
B33: Α10 R16
C35: Round 8 | F35: info
A36: ΩΡΑ | B36: Κτγρ. | C36: Αθλητής-Σύλλογος | E36: Αθλητής-Σύλλογος
A37: Έναρξη | B37: Α10 R8
B38: Α10 R8
B39: Α10 R8
B40: Α10 R8
C42: Ημιτελικοί | F42: info
A43: ΩΡΑ | B43: Κτγρ. | C43: Αθλητής-Σύλλογος | E43: Αθλητής-Σύλλογος
A44: Έναρξη | B44: Α16 Ημιτελ
B45: Α16 Ημιτελ
C47: Τελικός | F47: info
A48: ΩΡΑ | B48: Κτγρ. | C48: Αθλητής-Σύλλογος | E48: Αθλητής-Σύλλογος
A49: Έναρξη | B49: Α16 Τελ.
B54: Α10 R32 | C54: ΝΙΚΗΤΑΚΗΣ ΙΩΑΝΝΗΣ
B55: Α10 R32 | C55: ΜΠΑΛΩΜΕΝΟΣ ΑΘΑΝΑΣΙΟΣ | D55: - | E55: ΠΑΣΣΑΣ-ΧΡΗΣΤΟΥ ΠΑΡΑΣΚΕΥΑΣ
B56: Α10 R32 | C56: ΠΑΠΑΖΗΚΟΣ ΠΑΥΛΟΣ
B57: Α10 R32 | E57: ΤΑΥΡΙΔΑΚΗΣ ΚΩΝΣΤΑΝΤΙΝΟΣ
B58: Α10 R32 | C58: ΙΩΑΝΝΑΤΟΣ ΣΤΑΥΡΟΣ
B59: Α10 R32 | C59: ΧΑΡΑΛΑΜΠΙΔΗΣ ΦΑΝΟΥΡΙΟΣ
B60: Α10 R32 | C60: ΜΠΑΜΠΑΡΟΥΤΣΗΣ ΒΙΚΕΝΤΙΟΣ
B61: Α10 R32 | E61: ΜΑΛΑΒΑΖΟΣ ΑΝΤΩΝΙΟΣ
B62: Α10 R32 | C62: ΖΑΧΑΡΑΤΟΣ ΣΤΑΜΑΤΙΟΣ
B63: Α10 R32 | C63: ΚΑΡΑΝΤΑΛΗΣ ΚΩΝΣΤΑΝΤΙΝΟΣ
B64: Α10 R32 | C64: ΓΚΛΑΒΑΣ ΓΙΩΡΓΟΣ
B65: Α10 R32 | E65: ΝΕΪΣ ΕΡΙΚ-ΤΖΕΪΜΣ
B66: Α10 R32 | C66: ΚΑΡΑΝΤΑΛΗΣ ΙΩΑΝΝΗΣ
B67: Α10 R32 | C67: ΠΑΝΑΓΟΠΟΥΛΟΣ ΙΩΑΝΝΗΣ
B68: Α10 R32 | C68: ΖΟΥΓΑΝΕΛΗΣ ΔΗΜΗΤΡΗΣ | D68: - | E68: ΓΕΩΡΓΑΚΑΡΑΚΟΣ ΠΑΥΛΟΣ
B69: Α10 R32 | E69: ΠΑΠΑΧΡΗΣΤΟΥ ΧΡΗΣΤΟΣ
B70: Α10 R16
B71: Α10 R16
B72: Α10 R16
B73: Α10 R16
B74: Α10 R16
B75: Α10 R16
B76: Α10 R16
B77: Α10 R16
B78: Α10 R8
B79: Α10 R8
B80: Α10 R8
B81: Α10 R8
B82: Α16 Ημιτελ
B83: Α16 Ημιτελ
B84: Α16 Τελ.

Sheet PrepOP (hidden)
A1: =Setup!$B$3&", "&Setup!$B$7&", "&Setup!$B$4&", "&DAY(Setup!$B$8)&"/"&MONTH(Setup!$B$8)&"-"&DAY(Setup!$B$9)&"/"&MONTH(Setup!$B$9)& " (" & Setup!B6 & ")" -> Η' ΕΝΩΣΗ, Ε3 47η, ΑΟΑ ΑΛΕΞΑΝΔΡΟΣ Β, 24/11-26/11 (Α10)
A2: =Setup!$B$11 -> ΤΑΜΠΟΣΗ Τ
C3: Πρόγραμμα αγώνων
C5: Round 32 | F5: info
A6: ΩΡΑ | B6: Κτγρ. | C6: Αθλητής-Σύλλογος | E6: Αθλητής-Σύλλογος
A7: Έναρξη | B7: =Setup!$B$6&" R32" -> Α10 R32 | C7: =IF(COUNTIF(MD!$I5,">0")>0,IF(VLOOKUP(MD!$I5,ALMD!$C$3:$F$34,3,FALSE)>" ",LEFT(VLOOKUP(MD!$I5,ALMD!$C$3:$F$34,2,FALSE),FIND(" ",VLOOKUP(MD!$I5,ALMD!$C$3:$F$34,2,FALSE))+1) & " (" & LEFT(VLOOKUP(MD!$I5,ALMD!$C$3:$F$34,3,FALSE),15)&")",LEFT(VLOOKUP(MD!$I5,ALMD!$C$3:$F$34,2,FALSE),MIN(LEN(VLOOKUP(MD!$I5,ALMD!$C$3:$F$34,2,FALSE)),35))),"") -> ΚΑΡΑΝΤΑΛΗΣ ΚΩΝΣΤΑΝΤΙΝΟΣ | D7: =IF(OR(C7="",E7="")," ","-") ->  | E7: =IF(COUNTIF(MD!$I6,">0")>0,IF(VLOOKUP(MD!$I6,ALMD!$C$3:$F$34,3,FALSE)>" ",LEFT(VLOOKUP(MD!$I6,ALMD!$C$3:$F$34,2,FALSE),FIND(" ",VLOOKUP(MD!$I6,ALMD!$C$3:$F$34,2,FALSE))+1) & " (" & LEFT(VLOOKUP(MD!$I6,ALMD!$C$3:$F$34,3,FALSE),15)&")",LEFT(VLOOKUP(MD!$I6,ALMD!$C$3:$F$34,2,FALSE),MIN(LEN(VLOOKUP(MD!$I6,ALMD!$C$3:$F$34,2,FALSE)),35))),"") -> 
B8: =Setup!$B$6&" R32" -> Α10 R32 | C8: =IF(COUNTIF(MD!$I7,">0")>0,IF(VLOOKUP(MD!$I7,ALMD!$C$3:$F$34,3,FALSE)>" ",LEFT(VLOOKUP(MD!$I7,ALMD!$C$3:$F$34,2,FALSE),FIND(" ",VLOOKUP(MD!$I7,ALMD!$C$3:$F$34,2,FALSE))+1) & " (" & LEFT(VLOOKUP(MD!$I7,ALMD!$C$3:$F$34,3,FALSE),15)&")",LEFT(VLOOKUP(MD!$I7,ALMD!$C$3:$F$34,2,FALSE),MIN(LEN(VLOOKUP(MD!$I7,ALMD!$C$3:$F$34,2,FALSE)),35))),"") -> ΝΕΪΣ ΕΡΙΚ-ΤΖΕΪΜΣ | D8: =IF(OR(C8="",E8="")," ","-") ->  | E8: =IF(COUNTIF(MD!$I8,">0")>0,IF(VLOOKUP(MD!$I8,ALMD!$C$3:$F$34,3,FALSE)>" ",LEFT(VLOOKUP(MD!$I8,ALMD!$C$3:$F$34,2,FALSE),FIND(" ",VLOOKUP(MD!$I8,ALMD!$C$3:$F$34,2,FALSE))+1) & " (" & LEFT(VLOOKUP(MD!$I8,ALMD!$C$3:$F$34,3,FALSE),15)&")",LEFT(VLOOKUP(MD!$I8,ALMD!$C$3:$F$34,2,FALSE),MIN(LEN(VLOOKUP(MD!$I8,ALMD!$C$3:$F$34,2,FALSE)),35))),"") -> 
B9: =Setup!$B$6&" R32" -> Α10 R32 | C9: =IF(COUNTIF(MD!$I9,">0")>0,IF(VLOOKUP(MD!$I9,ALMD!$C$3:$F$34,3,FALSE)>" ",LEFT(VLOOKUP(MD!$I9,ALMD!$C$3:$F$34,2,FALSE),FIND(" ",VLOOKUP(MD!$I9,ALMD!$C$3:$F$34,2,FALSE))+1) & " (" & LEFT(VLOOKUP(MD!$I9,ALMD!$C$3:$F$34,3,FALSE),15)&")",LEFT(VLOOKUP(MD!$I9,ALMD!$C$3:$F$34,2,FALSE),MIN(LEN(VLOOKUP(MD!$I9,ALMD!$C$3:$F$34,2,FALSE)),35))),"") -> ΓΚΛΑΒΑΣ ΓΙΩΡΓΟΣ | E9: =IF(COUNTIF(MD!$I10,">0")>0,IF(VLOOKUP(MD!$I10,ALMD!$C$3:$F$34,3,FALSE)>" ",LEFT(VLOOKUP(MD!$I10,ALMD!$C$3:$F$34,2,FALSE),FIND(" ",VLOOKUP(MD!$I10,ALMD!$C$3:$F$34,2,FALSE))+1) & " (" & LEFT(VLOOKUP(MD!$I10,ALMD!$C$3:$F$34,3,FALSE),15)&")",LEFT(VLOOKUP(MD!$I10,ALMD!$C$3:$F$34,2,FALSE),MIN(LEN(VLOOKUP(MD!$I10,ALMD!$C$3:$F$34,2,FALSE)),35))),"") -> 
B10: =Setup!$B$6&" R32" -> Α10 R32 | C10: =IF(COUNTIF(MD!$I11,">0")>0,IF(VLOOKUP(MD!$I11,ALMD!$C$3:$F$34,3,FALSE)>" ",LEFT(VLOOKUP(MD!$I11,ALMD!$C$3:$F$34,2,FALSE),FIND(" ",VLOOKUP(MD!$I11,ALMD!$C$3:$F$34,2,FALSE))+1) & " (" & LEFT(VLOOKUP(MD!$I11,ALMD!$C$3:$F$34,3,FALSE),15)&")",LEFT(VLOOKUP(MD!$I11,ALMD!$C$3:$F$34,2,FALSE),MIN(LEN(VLOOKUP(MD!$I11,ALMD!$C$3:$F$34,2,FALSE)),35))),"") ->  | E10: =IF(COUNTIF(MD!$I12,">0")>0,IF(VLOOKUP(MD!$I12,ALMD!$C$3:$F$34,3,FALSE)>" ",LEFT(VLOOKUP(MD!$I12,ALMD!$C$3:$F$34,2,FALSE),FIND(" ",VLOOKUP(MD!$I12,ALMD!$C$3:$F$34,2,FALSE))+1) & " (" & LEFT(VLOOKUP(MD!$I12,ALMD!$C$3:$F$34,3,FALSE),15)&")",LEFT(VLOOKUP(MD!$I12,ALMD!$C$3:$F$34,2,FALSE),MIN(LEN(VLOOKUP(MD!$I12,ALMD!$C$3:$F$34,2,FALSE)),35))),"") -> ΝΙΚΗΤΑΚΗΣ ΙΩΑΝΝΗΣ
A11: όχι πριν | B11: =Setup!$B$6&" R32" -> Α10 R32 | C11: =IF(COUNTIF(MD!$I13,">0")>0,IF(VLOOKUP(MD!$I13,ALMD!$C$3:$F$34,3,FALSE)>" ",LEFT(VLOOKUP(MD!$I13,ALMD!$C$3:$F$34,2,FALSE),FIND(" ",VLOOKUP(MD!$I13,ALMD!$C$3:$F$34,2,FALSE))+1) & " (" & LEFT(VLOOKUP(MD!$I13,ALMD!$C$3:$F$34,3,FALSE),15)&")",LEFT(VLOOKUP(MD!$I13,ALMD!$C$3:$F$34,2,FALSE),MIN(LEN(VLOOKUP(MD!$I13,ALMD!$C$3:$F$34,2,FALSE)),35))),"") -> ΧΑΡΑΛΑΜΠΙΔΗΣ ΦΑΝΟΥΡΙΟΣ | E11: =IF(COUNTIF(MD!$I14,">0")>0,IF(VLOOKUP(MD!$I14,ALMD!$C$3:$F$34,3,FALSE)>" ",LEFT(VLOOKUP(MD!$I14,ALMD!$C$3:$F$34,2,FALSE),FIND(" ",VLOOKUP(MD!$I14,ALMD!$C$3:$F$34,2,FALSE))+1) & " (" & LEFT(VLOOKUP(MD!$I14,ALMD!$C$3:$F$34,3,FALSE),15)&")",LEFT(VLOOKUP(MD!$I14,ALMD!$C$3:$F$34,2,FALSE),MIN(LEN(VLOOKUP(MD!$I14,ALMD!$C$3:$F$34,2,FALSE)),35))),"") -> 
B12: =Setup!$B$6&" R32" -> Α10 R32 | C12: =IF(COUNTIF(MD!$I15,">0")>0,IF(VLOOKUP(MD!$I15,ALMD!$C$3:$F$34,3,FALSE)>" ",LEFT(VLOOKUP(MD!$I15,ALMD!$C$3:$F$34,2,FALSE),FIND(" ",VLOOKUP(MD!$I15,ALMD!$C$3:$F$34,2,FALSE))+1) & " (" & LEFT(VLOOKUP(MD!$I15,ALMD!$C$3:$F$34,3,FALSE),15)&")",LEFT(VLOOKUP(MD!$I15,ALMD!$C$3:$F$34,2,FALSE),MIN(LEN(VLOOKUP(MD!$I15,ALMD!$C$3:$F$34,2,FALSE)),35))),"") -> ΠΑΠΑΖΗΚΟΣ ΠΑΥΛΟΣ | E12: =IF(COUNTIF(MD!$I16,">0")>0,IF(VLOOKUP(MD!$I16,ALMD!$C$3:$F$34,3,FALSE)>" ",LEFT(VLOOKUP(MD!$I16,ALMD!$C$3:$F$34,2,FALSE),FIND(" ",VLOOKUP(MD!$I16,ALMD!$C$3:$F$34,2,FALSE))+1) & " (" & LEFT(VLOOKUP(MD!$I16,ALMD!$C$3:$F$34,3,FALSE),15)&")",LEFT(VLOOKUP(MD!$I16,ALMD!$C$3:$F$34,2,FALSE),MIN(LEN(VLOOKUP(MD!$I16,ALMD!$C$3:$F$34,2,FALSE)),35))),"") -> 
B13: =Setup!$B$6&" R32" -> Α10 R32 | C13: =IF(COUNTIF(MD!$I17,">0")>0,IF(VLOOKUP(MD!$I17,ALMD!$C$3:$F$34,3,FALSE)>" ",LEFT(VLOOKUP(MD!$I17,ALMD!$C$3:$F$34,2,FALSE),FIND(" ",VLOOKUP(MD!$I17,ALMD!$C$3:$F$34,2,FALSE))+1) & " (" & LEFT(VLOOKUP(MD!$I17,ALMD!$C$3:$F$34,3,FALSE),15)&")",LEFT(VLOOKUP(MD!$I17,ALMD!$C$3:$F$34,2,FALSE),MIN(LEN(VLOOKUP(MD!$I17,ALMD!$C$3:$F$34,2,FALSE)),35))),"") -> ΖΑΧΑΡΑΤΟΣ ΣΤΑΜΑΤΙΟΣ | E13: =IF(COUNTIF(MD!$I18,">0")>0,IF(VLOOKUP(MD!$I18,ALMD!$C$3:$F$34,3,FALSE)>" ",LEFT(VLOOKUP(MD!$I18,ALMD!$C$3:$F$34,2,FALSE),FIND(" ",VLOOKUP(MD!$I18,ALMD!$C$3:$F$34,2,FALSE))+1) & " (" & LEFT(VLOOKUP(MD!$I18,ALMD!$C$3:$F$34,3,FALSE),15)&")",LEFT(VLOOKUP(MD!$I18,ALMD!$C$3:$F$34,2,FALSE),MIN(LEN(VLOOKUP(MD!$I18,ALMD!$C$3:$F$34,2,FALSE)),35))),"") -> 
B14: =Setup!$B$6&" R32" -> Α10 R32 | C14: =IF(COUNTIF(MD!$I19,">0")>0,IF(VLOOKUP(MD!$I19,ALMD!$C$3:$F$34,3,FALSE)>" ",LEFT(VLOOKUP(MD!$I19,ALMD!$C$3:$F$34,2,FALSE),FIND(" ",VLOOKUP(MD!$I19,ALMD!$C$3:$F$34,2,FALSE))+1) & " (" & LEFT(VLOOKUP(MD!$I19,ALMD!$C$3:$F$34,3,FALSE),15)&")",LEFT(VLOOKUP(MD!$I19,ALMD!$C$3:$F$34,2,FALSE),MIN(LEN(VLOOKUP(MD!$I19,ALMD!$C$3:$F$34,2,FALSE)),35))),"") ->  | E14: =IF(COUNTIF(MD!$I20,">0")>0,IF(VLOOKUP(MD!$I20,ALMD!$C$3:$F$34,3,FALSE)>" ",LEFT(VLOOKUP(MD!$I20,ALMD!$C$3:$F$34,2,FALSE),FIND(" ",VLOOKUP(MD!$I20,ALMD!$C$3:$F$34,2,FALSE))+1) & " (" & LEFT(VLOOKUP(MD!$I20,ALMD!$C$3:$F$34,3,FALSE),15)&")",LEFT(VLOOKUP(MD!$I20,ALMD!$C$3:$F$34,2,FALSE),MIN(LEN(VLOOKUP(MD!$I20,ALMD!$C$3:$F$34,2,FALSE)),35))),"") -> ΠΑΣΣΑΣ-ΧΡΗΣΤΟΥ ΠΑΡΑΣΚΕΥΑΣ
A15: όχι πριν | B15: =Setup!$B$6&" R32" -> Α10 R32 | C15: =IF(COUNTIF(MD!$I21,">0")>0,IF(VLOOKUP(MD!$I21,ALMD!$C$3:$F$34,3,FALSE)>" ",LEFT(VLOOKUP(MD!$I21,ALMD!$C$3:$F$34,2,FALSE),FIND(" ",VLOOKUP(MD!$I21,ALMD!$C$3:$F$34,2,FALSE))+1) & " (" & LEFT(VLOOKUP(MD!$I21,ALMD!$C$3:$F$34,3,FALSE),15)&")",LEFT(VLOOKUP(MD!$I21,ALMD!$C$3:$F$34,2,FALSE),MIN(LEN(VLOOKUP(MD!$I21,ALMD!$C$3:$F$34,2,FALSE)),35))),"") -> ΠΑΠΑΧΡΗΣΤΟΥ ΧΡΗΣΤΟΣ | E15: =IF(COUNTIF(MD!$I22,">0")>0,IF(VLOOKUP(MD!$I22,ALMD!$C$3:$F$34,3,FALSE)>" ",LEFT(VLOOKUP(MD!$I22,ALMD!$C$3:$F$34,2,FALSE),FIND(" ",VLOOKUP(MD!$I22,ALMD!$C$3:$F$34,2,FALSE))+1) & " (" & LEFT(VLOOKUP(MD!$I22,ALMD!$C$3:$F$34,3,FALSE),15)&")",LEFT(VLOOKUP(MD!$I22,ALMD!$C$3:$F$34,2,FALSE),MIN(LEN(VLOOKUP(MD!$I22,ALMD!$C$3:$F$34,2,FALSE)),35))),"") -> 
B16: =Setup!$B$6&" R32" -> Α10 R32 | C16: =IF(COUNTIF(MD!$I23,">0")>0,IF(VLOOKUP(MD!$I23,ALMD!$C$3:$F$34,3,FALSE)>" ",LEFT(VLOOKUP(MD!$I23,ALMD!$C$3:$F$34,2,FALSE),FIND(" ",VLOOKUP(MD!$I23,ALMD!$C$3:$F$34,2,FALSE))+1) & " (" & LEFT(VLOOKUP(MD!$I23,ALMD!$C$3:$F$34,3,FALSE),15)&")",LEFT(VLOOKUP(MD!$I23,ALMD!$C$3:$F$34,2,FALSE),MIN(LEN(VLOOKUP(MD!$I23,ALMD!$C$3:$F$34,2,FALSE)),35))),"") -> ΙΩΑΝΝΑΤΟΣ ΣΤΑΥΡΟΣ | E16: =IF(COUNTIF(MD!$I24,">0")>0,IF(VLOOKUP(MD!$I24,ALMD!$C$3:$F$34,3,FALSE)>" ",LEFT(VLOOKUP(MD!$I24,ALMD!$C$3:$F$34,2,FALSE),FIND(" ",VLOOKUP(MD!$I24,ALMD!$C$3:$F$34,2,FALSE))+1) & " (" & LEFT(VLOOKUP(MD!$I24,ALMD!$C$3:$F$34,3,FALSE),15)&")",LEFT(VLOOKUP(MD!$I24,ALMD!$C$3:$F$34,2,FALSE),MIN(LEN(VLOOKUP(MD!$I24,ALMD!$C$3:$F$34,2,FALSE)),35))),"") -> 
B17: =Setup!$B$6&" R32" -> Α10 R32 | C17: =IF(COUNTIF(MD!$I25,">0")>0,IF(VLOOKUP(MD!$I25,ALMD!$C$3:$F$34,3,FALSE)>" ",LEFT(VLOOKUP(MD!$I25,ALMD!$C$3:$F$34,2,FALSE),FIND(" ",VLOOKUP(MD!$I25,ALMD!$C$3:$F$34,2,FALSE))+1) & " (" & LEFT(VLOOKUP(MD!$I25,ALMD!$C$3:$F$34,3,FALSE),15)&")",LEFT(VLOOKUP(MD!$I25,ALMD!$C$3:$F$34,2,FALSE),MIN(LEN(VLOOKUP(MD!$I25,ALMD!$C$3:$F$34,2,FALSE)),35))),"") -> ΖΟΥΓΑΝΕΛΗΣ ΔΗΜΗΤΡΗΣ | E17: =IF(COUNTIF(MD!$I26,">0")>0,IF(VLOOKUP(MD!$I26,ALMD!$C$3:$F$34,3,FALSE)>" ",LEFT(VLOOKUP(MD!$I26,ALMD!$C$3:$F$34,2,FALSE),FIND(" ",VLOOKUP(MD!$I26,ALMD!$C$3:$F$34,2,FALSE))+1) & " (" & LEFT(VLOOKUP(MD!$I26,ALMD!$C$3:$F$34,3,FALSE),15)&")",LEFT(VLOOKUP(MD!$I26,ALMD!$C$3:$F$34,2,FALSE),MIN(LEN(VLOOKUP(MD!$I26,ALMD!$C$3:$F$34,2,FALSE)),35))),"") -> 
B18: =Setup!$B$6&" R32" -> Α10 R32 | C18: =IF(COUNTIF(MD!$I27,">0")>0,IF(VLOOKUP(MD!$I27,ALMD!$C$3:$F$34,3,FALSE)>" ",LEFT(VLOOKUP(MD!$I27,ALMD!$C$3:$F$34,2,FALSE),FIND(" ",VLOOKUP(MD!$I27,ALMD!$C$3:$F$34,2,FALSE))+1) & " (" & LEFT(VLOOKUP(MD!$I27,ALMD!$C$3:$F$34,3,FALSE),15)&")",LEFT(VLOOKUP(MD!$I27,ALMD!$C$3:$F$34,2,FALSE),MIN(LEN(VLOOKUP(MD!$I27,ALMD!$C$3:$F$34,2,FALSE)),35))),"") ->  | E18: =IF(COUNTIF(MD!$I28,">0")>0,IF(VLOOKUP(MD!$I28,ALMD!$C$3:$F$34,3,FALSE)>" ",LEFT(VLOOKUP(MD!$I28,ALMD!$C$3:$F$34,2,FALSE),FIND(" ",VLOOKUP(MD!$I28,ALMD!$C$3:$F$34,2,FALSE))+1) & " (" & LEFT(VLOOKUP(MD!$I28,ALMD!$C$3:$F$34,3,FALSE),15)&")",LEFT(VLOOKUP(MD!$I28,ALMD!$C$3:$F$34,2,FALSE),MIN(LEN(VLOOKUP(MD!$I28,ALMD!$C$3:$F$34,2,FALSE)),35))),"") -> ΜΠΑΛΩΜΕΝΟΣ ΑΘΑΝΑΣΙΟΣ
A19: όχι πριν | B19: =Setup!$B$6&" R32" -> Α10 R32 | C19: =IF(COUNTIF(MD!$I29,">0")>0,IF(VLOOKUP(MD!$I29,ALMD!$C$3:$F$34,3,FALSE)>" ",LEFT(VLOOKUP(MD!$I29,ALMD!$C$3:$F$34,2,FALSE),FIND(" ",VLOOKUP(MD!$I29,ALMD!$C$3:$F$34,2,FALSE))+1) & " (" & LEFT(VLOOKUP(MD!$I29,ALMD!$C$3:$F$34,3,FALSE),15)&")",LEFT(VLOOKUP(MD!$I29,ALMD!$C$3:$F$34,2,FALSE),MIN(LEN(VLOOKUP(MD!$I29,ALMD!$C$3:$F$34,2,FALSE)),35))),"") -> ΠΑΝΑΓΟΠΟΥΛΟΣ ΙΩΑΝΝΗΣ | E19: =IF(COUNTIF(MD!$I30,">0")>0,IF(VLOOKUP(MD!$I30,ALMD!$C$3:$F$34,3,FALSE)>" ",LEFT(VLOOKUP(MD!$I30,ALMD!$C$3:$F$34,2,FALSE),FIND(" ",VLOOKUP(MD!$I30,ALMD!$C$3:$F$34,2,FALSE))+1) & " (" & LEFT(VLOOKUP(MD!$I30,ALMD!$C$3:$F$34,3,FALSE),15)&")",LEFT(VLOOKUP(MD!$I30,ALMD!$C$3:$F$34,2,FALSE),MIN(LEN(VLOOKUP(MD!$I30,ALMD!$C$3:$F$34,2,FALSE)),35))),"") -> 
B20: =Setup!$B$6&" R32" -> Α10 R32 | C20: =IF(COUNTIF(MD!$I31,">0")>0,IF(VLOOKUP(MD!$I31,ALMD!$C$3:$F$34,3,FALSE)>" ",LEFT(VLOOKUP(MD!$I31,ALMD!$C$3:$F$34,2,FALSE),FIND(" ",VLOOKUP(MD!$I31,ALMD!$C$3:$F$34,2,FALSE))+1) & " (" & LEFT(VLOOKUP(MD!$I31,ALMD!$C$3:$F$34,3,FALSE),15)&")",LEFT(VLOOKUP(MD!$I31,ALMD!$C$3:$F$34,2,FALSE),MIN(LEN(VLOOKUP(MD!$I31,ALMD!$C$3:$F$34,2,FALSE)),35))),"") -> ΚΑΛΠΟΓΙΑΝΝΑΚΗΣ ΣΩΤΗΡΗΣ | E20: =IF(COUNTIF(MD!$I32,">0")>0,IF(VLOOKUP(MD!$I32,ALMD!$C$3:$F$34,3,FALSE)>" ",LEFT(VLOOKUP(MD!$I32,ALMD!$C$3:$F$34,2,FALSE),FIND(" ",VLOOKUP(MD!$I32,ALMD!$C$3:$F$34,2,FALSE))+1) & " (" & LEFT(VLOOKUP(MD!$I32,ALMD!$C$3:$F$34,3,FALSE),15)&")",LEFT(VLOOKUP(MD!$I32,ALMD!$C$3:$F$34,2,FALSE),MIN(LEN(VLOOKUP(MD!$I32,ALMD!$C$3:$F$34,2,FALSE)),35))),"") -> 
B21: =Setup!$B$6&" R32" -> Α10 R32 | C21: =IF(COUNTIF(MD!$I33,">0")>0,IF(VLOOKUP(MD!$I33,ALMD!$C$3:$F$34,3,FALSE)>" ",LEFT(VLOOKUP(MD!$I33,ALMD!$C$3:$F$34,2,FALSE),FIND(" ",VLOOKUP(MD!$I33,ALMD!$C$3:$F$34,2,FALSE))+1) & " (" & LEFT(VLOOKUP(MD!$I33,ALMD!$C$3:$F$34,3,FALSE),15)&")",LEFT(VLOOKUP(MD!$I33,ALMD!$C$3:$F$34,2,FALSE),MIN(LEN(VLOOKUP(MD!$I33,ALMD!$C$3:$F$34,2,FALSE)),35))),"") -> ΜΑΛΑΒΑΖΟΣ ΑΝΤΩΝΙΟΣ | D21: - | E21: =IF(COUNTIF(MD!$I34,">0")>0,IF(VLOOKUP(MD!$I34,ALMD!$C$3:$F$34,3,FALSE)>" ",LEFT(VLOOKUP(MD!$I34,ALMD!$C$3:$F$34,2,FALSE),FIND(" ",VLOOKUP(MD!$I34,ALMD!$C$3:$F$34,2,FALSE))+1) & " (" & LEFT(VLOOKUP(MD!$I34,ALMD!$C$3:$F$34,3,FALSE),15)&")",LEFT(VLOOKUP(MD!$I34,ALMD!$C$3:$F$34,2,FALSE),MIN(LEN(VLOOKUP(MD!$I34,ALMD!$C$3:$F$34,2,FALSE)),35))),"") -> ΤΑΥΡΙΔΑΚΗΣ ΚΩΝΣΤΑΝΤΙΝΟΣ
B22: =Setup!$B$6&" R32" -> Α10 R32 | C22: =IF(COUNTIF(MD!$I35,">0")>0,IF(VLOOKUP(MD!$I35,ALMD!$C$3:$F$34,3,FALSE)>" ",LEFT(VLOOKUP(MD!$I35,ALMD!$C$3:$F$34,2,FALSE),FIND(" ",VLOOKUP(MD!$I35,ALMD!$C$3:$F$34,2,FALSE))+1) & " (" & LEFT(VLOOKUP(MD!$I35,ALMD!$C$3:$F$34,3,FALSE),15)&")",LEFT(VLOOKUP(MD!$I35,ALMD!$C$3:$F$34,2,FALSE),MIN(LEN(VLOOKUP(MD!$I35,ALMD!$C$3:$F$34,2,FALSE)),35))),"") ->  | E22: =IF(COUNTIF(MD!$I36,">0")>0,IF(VLOOKUP(MD!$I36,ALMD!$C$3:$F$34,3,FALSE)>" ",LEFT(VLOOKUP(MD!$I36,ALMD!$C$3:$F$34,2,FALSE),FIND(" ",VLOOKUP(MD!$I36,ALMD!$C$3:$F$34,2,FALSE))+1) & " (" & LEFT(VLOOKUP(MD!$I36,ALMD!$C$3:$F$34,3,FALSE),15)&")",LEFT(VLOOKUP(MD!$I36,ALMD!$C$3:$F$34,2,FALSE),MIN(LEN(VLOOKUP(MD!$I36,ALMD!$C$3:$F$34,2,FALSE)),35))),"") -> ΚΑΡΑΝΤΑΛΗΣ ΙΩΑΝΝΗΣ
C24: Round 16 | F24: info
A25: ΩΡΑ | B25: Κτγρ. | C25: Αθλητής-Σύλλογος | E25: Αθλητής-Σύλλογος
A26: Έναρξη | B26: =Setup!$B$6&" R16" -> Α10 R16 | C26: =IF(COUNTIF(MD!$N5,">0")>0,IF(VLOOKUP(MD!$N5,ALMD!$C$3:$F$34,3,FALSE)>" ",LEFT(VLOOKUP(MD!$N5,ALMD!$C$3:$F$34,2,FALSE),FIND(" ",VLOOKUP(MD!$N5,ALMD!$C$3:$F$34,2,FALSE))+1) & " (" & LEFT(VLOOKUP(MD!$N5,ALMD!$C$3:$F$34,3,FALSE),15)&")",LEFT(VLOOKUP(MD!$N5,ALMD!$C$3:$F$34,2,FALSE),MIN(LEN(VLOOKUP(MD!$N5,ALMD!$C$3:$F$34,2,FALSE)),35))),"") -> ΚΑΡΑΝΤΑΛΗΣ ΚΩΝΣΤΑΝΤΙΝΟΣ | D26: =IF(OR(C26="",E26="")," ","-") -> - | E26: =IF(COUNTIF(MD!$N7,">0")>0,IF(VLOOKUP(MD!$N7,ALMD!$C$3:$F$34,3,FALSE)>" ",LEFT(VLOOKUP(MD!$N7,ALMD!$C$3:$F$34,2,FALSE),FIND(" ",VLOOKUP(MD!$N7,ALMD!$C$3:$F$34,2,FALSE))+1) & " (" & LEFT(VLOOKUP(MD!$N7,ALMD!$C$3:$F$34,3,FALSE),15)&")",LEFT(VLOOKUP(MD!$N7,ALMD!$C$3:$F$34,2,FALSE),MIN(LEN(VLOOKUP(MD!$N7,ALMD!$C$3:$F$34,2,FALSE)),35))),"") -> ΝΕΪΣ ΕΡΙΚ-ΤΖΕΪΜΣ
B27: =Setup!$B$6&" R16" -> Α10 R16 | C27: =IF(COUNTIF(MD!$N9,">0")>0,IF(VLOOKUP(MD!$N9,ALMD!$C$3:$F$34,3,FALSE)>" ",LEFT(VLOOKUP(MD!$N9,ALMD!$C$3:$F$34,2,FALSE),FIND(" ",VLOOKUP(MD!$N9,ALMD!$C$3:$F$34,2,FALSE))+1) & " (" & LEFT(VLOOKUP(MD!$N9,ALMD!$C$3:$F$34,3,FALSE),15)&")",LEFT(VLOOKUP(MD!$N9,ALMD!$C$3:$F$34,2,FALSE),MIN(LEN(VLOOKUP(MD!$N9,ALMD!$C$3:$F$34,2,FALSE)),35))),"") -> ΓΚΛΑΒΑΣ ΓΙΩΡΓΟΣ | D27: - | E27: =IF(COUNTIF(MD!$N11,">0")>0,IF(VLOOKUP(MD!$N11,ALMD!$C$3:$F$34,3,FALSE)>" ",LEFT(VLOOKUP(MD!$N11,ALMD!$C$3:$F$34,2,FALSE),FIND(" ",VLOOKUP(MD!$N11,ALMD!$C$3:$F$34,2,FALSE))+1) & " (" & LEFT(VLOOKUP(MD!$N11,ALMD!$C$3:$F$34,3,FALSE),15)&")",LEFT(VLOOKUP(MD!$N11,ALMD!$C$3:$F$34,2,FALSE),MIN(LEN(VLOOKUP(MD!$N11,ALMD!$C$3:$F$34,2,FALSE)),35))),"") -> ΝΙΚΗΤΑΚΗΣ ΙΩΑΝΝΗΣ
B28: =Setup!$B$6&" R16" -> Α10 R16 | C28: =IF(COUNTIF(MD!$N13,">0")>0,IF(VLOOKUP(MD!$N13,ALMD!$C$3:$F$34,3,FALSE)>" ",LEFT(VLOOKUP(MD!$N13,ALMD!$C$3:$F$34,2,FALSE),FIND(" ",VLOOKUP(MD!$N13,ALMD!$C$3:$F$34,2,FALSE))+1) & " (" & LEFT(VLOOKUP(MD!$N13,ALMD!$C$3:$F$34,3,FALSE),15)&")",LEFT(VLOOKUP(MD!$N13,ALMD!$C$3:$F$34,2,FALSE),MIN(LEN(VLOOKUP(MD!$N13,ALMD!$C$3:$F$34,2,FALSE)),35))),"") -> ΧΑΡΑΛΑΜΠΙΔΗΣ ΦΑΝΟΥΡΙΟΣ | D28: - | E28: =IF(COUNTIF(MD!$N15,">0")>0,IF(VLOOKUP(MD!$N15,ALMD!$C$3:$F$34,3,FALSE)>" ",LEFT(VLOOKUP(MD!$N15,ALMD!$C$3:$F$34,2,FALSE),FIND(" ",VLOOKUP(MD!$N15,ALMD!$C$3:$F$34,2,FALSE))+1) & " (" & LEFT(VLOOKUP(MD!$N15,ALMD!$C$3:$F$34,3,FALSE),15)&")",LEFT(VLOOKUP(MD!$N15,ALMD!$C$3:$F$34,2,FALSE),MIN(LEN(VLOOKUP(MD!$N15,ALMD!$C$3:$F$34,2,FALSE)),35))),"") -> ΠΑΠΑΖΗΚΟΣ ΠΑΥΛΟΣ
B29: =Setup!$B$6&" R16" -> Α10 R16 | C29: =IF(COUNTIF(MD!$N17,">0")>0,IF(VLOOKUP(MD!$N17,ALMD!$C$3:$F$34,3,FALSE)>" ",LEFT(VLOOKUP(MD!$N17,ALMD!$C$3:$F$34,2,FALSE),FIND(" ",VLOOKUP(MD!$N17,ALMD!$C$3:$F$34,2,FALSE))+1) & " (" & LEFT(VLOOKUP(MD!$N17,ALMD!$C$3:$F$34,3,FALSE),15)&")",LEFT(VLOOKUP(MD!$N17,ALMD!$C$3:$F$34,2,FALSE),MIN(LEN(VLOOKUP(MD!$N17,ALMD!$C$3:$F$34,2,FALSE)),35))),"") -> ΖΑΧΑΡΑΤΟΣ ΣΤΑΜΑΤΙΟΣ | D29: - | E29: =IF(COUNTIF(MD!$N19,">0")>0,IF(VLOOKUP(MD!$N19,ALMD!$C$3:$F$34,3,FALSE)>" ",LEFT(VLOOKUP(MD!$N19,ALMD!$C$3:$F$34,2,FALSE),FIND(" ",VLOOKUP(MD!$N19,ALMD!$C$3:$F$34,2,FALSE))+1) & " (" & LEFT(VLOOKUP(MD!$N19,ALMD!$C$3:$F$34,3,FALSE),15)&")",LEFT(VLOOKUP(MD!$N19,ALMD!$C$3:$F$34,2,FALSE),MIN(LEN(VLOOKUP(MD!$N19,ALMD!$C$3:$F$34,2,FALSE)),35))),"") -> ΠΑΣΣΑΣ-ΧΡΗΣΤΟΥ ΠΑΡΑΣΚΕΥΑΣ
A30: όχι πριν | B30: =Setup!$B$6&" R16" -> Α10 R16 | C30: =IF(COUNTIF(MD!$N21,">0")>0,IF(VLOOKUP(MD!$N21,ALMD!$C$3:$F$34,3,FALSE)>" ",LEFT(VLOOKUP(MD!$N21,ALMD!$C$3:$F$34,2,FALSE),FIND(" ",VLOOKUP(MD!$N21,ALMD!$C$3:$F$34,2,FALSE))+1) & " (" & LEFT(VLOOKUP(MD!$N21,ALMD!$C$3:$F$34,3,FALSE),15)&")",LEFT(VLOOKUP(MD!$N21,ALMD!$C$3:$F$34,2,FALSE),MIN(LEN(VLOOKUP(MD!$N21,ALMD!$C$3:$F$34,2,FALSE)),35))),"") -> ΠΑΠΑΧΡΗΣΤΟΥ ΧΡΗΣΤΟΣ | D30: - | E30: =IF(COUNTIF(MD!$N23,">0")>0,IF(VLOOKUP(MD!$N23,ALMD!$C$3:$F$34,3,FALSE)>" ",LEFT(VLOOKUP(MD!$N23,ALMD!$C$3:$F$34,2,FALSE),FIND(" ",VLOOKUP(MD!$N23,ALMD!$C$3:$F$34,2,FALSE))+1) & " (" & LEFT(VLOOKUP(MD!$N23,ALMD!$C$3:$F$34,3,FALSE),15)&")",LEFT(VLOOKUP(MD!$N23,ALMD!$C$3:$F$34,2,FALSE),MIN(LEN(VLOOKUP(MD!$N23,ALMD!$C$3:$F$34,2,FALSE)),35))),"") -> ΙΩΑΝΝΑΤΟΣ ΣΤΑΥΡΟΣ
B31: =Setup!$B$6&" R16" -> Α10 R16 | C31: =IF(COUNTIF(MD!$N25,">0")>0,IF(VLOOKUP(MD!$N25,ALMD!$C$3:$F$34,3,FALSE)>" ",LEFT(VLOOKUP(MD!$N25,ALMD!$C$3:$F$34,2,FALSE),FIND(" ",VLOOKUP(MD!$N25,ALMD!$C$3:$F$34,2,FALSE))+1) & " (" & LEFT(VLOOKUP(MD!$N25,ALMD!$C$3:$F$34,3,FALSE),15)&")",LEFT(VLOOKUP(MD!$N25,ALMD!$C$3:$F$34,2,FALSE),MIN(LEN(VLOOKUP(MD!$N25,ALMD!$C$3:$F$34,2,FALSE)),35))),"") -> ΖΟΥΓΑΝΕΛΗΣ ΔΗΜΗΤΡΗΣ | D31: - | E31: =IF(COUNTIF(MD!$N27,">0")>0,IF(VLOOKUP(MD!$N27,ALMD!$C$3:$F$34,3,FALSE)>" ",LEFT(VLOOKUP(MD!$N27,ALMD!$C$3:$F$34,2,FALSE),FIND(" ",VLOOKUP(MD!$N27,ALMD!$C$3:$F$34,2,FALSE))+1) & " (" & LEFT(VLOOKUP(MD!$N27,ALMD!$C$3:$F$34,3,FALSE),15)&")",LEFT(VLOOKUP(MD!$N27,ALMD!$C$3:$F$34,2,FALSE),MIN(LEN(VLOOKUP(MD!$N27,ALMD!$C$3:$F$34,2,FALSE)),35))),"") -> ΜΠΑΛΩΜΕΝΟΣ ΑΘΑΝΑΣΙΟΣ
B32: =Setup!$B$6&" R16" -> Α10 R16 | C32: =IF(COUNTIF(MD!$N29,">0")>0,IF(VLOOKUP(MD!$N29,ALMD!$C$3:$F$34,3,FALSE)>" ",LEFT(VLOOKUP(MD!$N29,ALMD!$C$3:$F$34,2,FALSE),FIND(" ",VLOOKUP(MD!$N29,ALMD!$C$3:$F$34,2,FALSE))+1) & " (" & LEFT(VLOOKUP(MD!$N29,ALMD!$C$3:$F$34,3,FALSE),15)&")",LEFT(VLOOKUP(MD!$N29,ALMD!$C$3:$F$34,2,FALSE),MIN(LEN(VLOOKUP(MD!$N29,ALMD!$C$3:$F$34,2,FALSE)),35))),"") -> ΠΑΝΑΓΟΠΟΥΛΟΣ ΙΩΑΝΝΗΣ | D32: - | E32: =IF(COUNTIF(MD!$N31,">0")>0,IF(VLOOKUP(MD!$N31,ALMD!$C$3:$F$34,3,FALSE)>" ",LEFT(VLOOKUP(MD!$N31,ALMD!$C$3:$F$34,2,FALSE),FIND(" ",VLOOKUP(MD!$N31,ALMD!$C$3:$F$34,2,FALSE))+1) & " (" & LEFT(VLOOKUP(MD!$N31,ALMD!$C$3:$F$34,3,FALSE),15)&")",LEFT(VLOOKUP(MD!$N31,ALMD!$C$3:$F$34,2,FALSE),MIN(LEN(VLOOKUP(MD!$N31,ALMD!$C$3:$F$34,2,FALSE)),35))),"") -> ΚΑΛΠΟΓΙΑΝΝΑΚΗΣ ΣΩΤΗΡΗΣ
B33: =Setup!$B$6&" R16" -> Α10 R16 | C33: =IF(COUNTIF(MD!$N33,">0")>0,IF(VLOOKUP(MD!$N33,ALMD!$C$3:$F$34,3,FALSE)>" ",LEFT(VLOOKUP(MD!$N33,ALMD!$C$3:$F$34,2,FALSE),FIND(" ",VLOOKUP(MD!$N33,ALMD!$C$3:$F$34,2,FALSE))+1) & " (" & LEFT(VLOOKUP(MD!$N33,ALMD!$C$3:$F$34,3,FALSE),15)&")",LEFT(VLOOKUP(MD!$N33,ALMD!$C$3:$F$34,2,FALSE),MIN(LEN(VLOOKUP(MD!$N33,ALMD!$C$3:$F$34,2,FALSE)),35))),"") -> ΤΑΥΡΙΔΑΚΗΣ ΚΩΝΣΤΑΝΤΙΝΟΣ | D33: - | E33: =IF(COUNTIF(MD!$N35,">0")>0,IF(VLOOKUP(MD!$N35,ALMD!$C$3:$F$34,3,FALSE)>" ",LEFT(VLOOKUP(MD!$N35,ALMD!$C$3:$F$34,2,FALSE),FIND(" ",VLOOKUP(MD!$N35,ALMD!$C$3:$F$34,2,FALSE))+1) & " (" & LEFT(VLOOKUP(MD!$N35,ALMD!$C$3:$F$34,3,FALSE),15)&")",LEFT(VLOOKUP(MD!$N35,ALMD!$C$3:$F$34,2,FALSE),MIN(LEN(VLOOKUP(MD!$N35,ALMD!$C$3:$F$34,2,FALSE)),35))),"") -> ΚΑΡΑΝΤΑΛΗΣ ΙΩΑΝΝΗΣ
C35: Round 8 | F35: info
A36: ΩΡΑ | B36: Κτγρ. | C36: Αθλητής-Σύλλογος | E36: Αθλητής-Σύλλογος
A37: Έναρξη | B37: =Setup!$B$6&" R8" -> Α10 R8 | C37: =IF(COUNTIF(MD!$Q6,">0")>0,IF(VLOOKUP(MD!$Q6,ALMD!$C$3:$F$34,3,FALSE)>" ",LEFT(VLOOKUP(MD!$Q6,ALMD!$C$3:$F$34,2,FALSE),FIND(" ",VLOOKUP(MD!$Q6,ALMD!$C$3:$F$34,2,FALSE))+1) & " (" & LEFT(VLOOKUP(MD!$Q6,ALMD!$C$3:$F$34,3,FALSE),15)&")",LEFT(VLOOKUP(MD!$Q6,ALMD!$C$3:$F$34,2,FALSE),MIN(LEN(VLOOKUP(MD!$Q6,ALMD!$C$3:$F$34,2,FALSE)),35))),"") ->  | E37: =IF(COUNTIF(MD!$Q10,">0")>0,IF(VLOOKUP(MD!$Q10,ALMD!$C$3:$F$34,3,FALSE)>" ",LEFT(VLOOKUP(MD!$Q10,ALMD!$C$3:$F$34,2,FALSE),FIND(" ",VLOOKUP(MD!$Q10,ALMD!$C$3:$F$34,2,FALSE))+1) & " (" & LEFT(VLOOKUP(MD!$Q10,ALMD!$C$3:$F$34,3,FALSE),15)&")",LEFT(VLOOKUP(MD!$Q10,ALMD!$C$3:$F$34,2,FALSE),MIN(LEN(VLOOKUP(MD!$Q10,ALMD!$C$3:$F$34,2,FALSE)),35))),"") -> 
B38: =Setup!$B$6&" R8" -> Α10 R8 | C38: =IF(COUNTIF(MD!$Q14,">0")>0,IF(VLOOKUP(MD!$Q14,ALMD!$C$3:$F$34,3,FALSE)>" ",LEFT(VLOOKUP(MD!$Q14,ALMD!$C$3:$F$34,2,FALSE),FIND(" ",VLOOKUP(MD!$Q14,ALMD!$C$3:$F$34,2,FALSE))+1) & " (" & LEFT(VLOOKUP(MD!$Q14,ALMD!$C$3:$F$34,3,FALSE),15)&")",LEFT(VLOOKUP(MD!$Q14,ALMD!$C$3:$F$34,2,FALSE),MIN(LEN(VLOOKUP(MD!$Q14,ALMD!$C$3:$F$34,2,FALSE)),35))),"") ->  | E38: =IF(COUNTIF(MD!$Q18,">0")>0,IF(VLOOKUP(MD!$Q18,ALMD!$C$3:$F$34,3,FALSE)>" ",LEFT(VLOOKUP(MD!$Q18,ALMD!$C$3:$F$34,2,FALSE),FIND(" ",VLOOKUP(MD!$Q18,ALMD!$C$3:$F$34,2,FALSE))+1) & " (" & LEFT(VLOOKUP(MD!$Q18,ALMD!$C$3:$F$34,3,FALSE),15)&")",LEFT(VLOOKUP(MD!$Q18,ALMD!$C$3:$F$34,2,FALSE),MIN(LEN(VLOOKUP(MD!$Q18,ALMD!$C$3:$F$34,2,FALSE)),35))),"") -> 
B39: =Setup!$B$6&" R8" -> Α10 R8 | C39: =IF(COUNTIF(MD!$Q22,">0")>0,IF(VLOOKUP(MD!$Q22,ALMD!$C$3:$F$34,3,FALSE)>" ",LEFT(VLOOKUP(MD!$Q22,ALMD!$C$3:$F$34,2,FALSE),FIND(" ",VLOOKUP(MD!$Q22,ALMD!$C$3:$F$34,2,FALSE))+1) & " (" & LEFT(VLOOKUP(MD!$Q22,ALMD!$C$3:$F$34,3,FALSE),15)&")",LEFT(VLOOKUP(MD!$Q22,ALMD!$C$3:$F$34,2,FALSE),MIN(LEN(VLOOKUP(MD!$Q22,ALMD!$C$3:$F$34,2,FALSE)),35))),"") ->  | E39: =IF(COUNTIF(MD!$Q26,">0")>0,IF(VLOOKUP(MD!$Q26,ALMD!$C$3:$F$34,3,FALSE)>" ",LEFT(VLOOKUP(MD!$Q26,ALMD!$C$3:$F$34,2,FALSE),FIND(" ",VLOOKUP(MD!$Q26,ALMD!$C$3:$F$34,2,FALSE))+1) & " (" & LEFT(VLOOKUP(MD!$Q26,ALMD!$C$3:$F$34,3,FALSE),15)&")",LEFT(VLOOKUP(MD!$Q26,ALMD!$C$3:$F$34,2,FALSE),MIN(LEN(VLOOKUP(MD!$Q26,ALMD!$C$3:$F$34,2,FALSE)),35))),"") -> 
B40: =Setup!$B$6&" R8" -> Α10 R8 | C40: =IF(COUNTIF(MD!$Q30,">0")>0,IF(VLOOKUP(MD!$Q30,ALMD!$C$3:$F$34,3,FALSE)>" ",LEFT(VLOOKUP(MD!$Q30,ALMD!$C$3:$F$34,2,FALSE),FIND(" ",VLOOKUP(MD!$Q30,ALMD!$C$3:$F$34,2,FALSE))+1) & " (" & LEFT(VLOOKUP(MD!$Q30,ALMD!$C$3:$F$34,3,FALSE),15)&")",LEFT(VLOOKUP(MD!$Q30,ALMD!$C$3:$F$34,2,FALSE),MIN(LEN(VLOOKUP(MD!$Q30,ALMD!$C$3:$F$34,2,FALSE)),35))),"") ->  | E40: =IF(COUNTIF(MD!$Q34,">0")>0,IF(VLOOKUP(MD!$Q34,ALMD!$C$3:$F$34,3,FALSE)>" ",LEFT(VLOOKUP(MD!$Q34,ALMD!$C$3:$F$34,2,FALSE),FIND(" ",VLOOKUP(MD!$Q34,ALMD!$C$3:$F$34,2,FALSE))+1) & " (" & LEFT(VLOOKUP(MD!$Q34,ALMD!$C$3:$F$34,3,FALSE),15)&")",LEFT(VLOOKUP(MD!$Q34,ALMD!$C$3:$F$34,2,FALSE),MIN(LEN(VLOOKUP(MD!$Q34,ALMD!$C$3:$F$34,2,FALSE)),35))),"") -> 
C42: Ημιτελικοί | F42: info
A43: ΩΡΑ | B43: Κτγρ. | C43: Αθλητής-Σύλλογος | E43: Αθλητής-Σύλλογος
A44: Έναρξη | B44: Α16 Ημιτελ | C44: =IF(COUNTIF(MD!$T8,">0")>0,IF(VLOOKUP(MD!$T8,ALMD!$C$3:$F$34,3,FALSE)>" ",LEFT(VLOOKUP(MD!$T8,ALMD!$C$3:$F$34,2,FALSE),FIND(" ",VLOOKUP(MD!$T8,ALMD!$C$3:$F$34,2,FALSE))+1) & " (" & LEFT(VLOOKUP(MD!$T8,ALMD!$C$3:$F$34,3,FALSE),15)&")",LEFT(VLOOKUP(MD!$T8,ALMD!$C$3:$F$34,2,FALSE),MIN(LEN(VLOOKUP(MD!$T8,ALMD!$C$3:$F$34,2,FALSE)),35))),"") ->  | E44: =IF(COUNTIF(MD!$T16,">0")>0,IF(VLOOKUP(MD!$T16,ALMD!$C$3:$F$34,3,FALSE)>" ",LEFT(VLOOKUP(MD!$T16,ALMD!$C$3:$F$34,2,FALSE),FIND(" ",VLOOKUP(MD!$T16,ALMD!$C$3:$F$34,2,FALSE))+1) & " (" & LEFT(VLOOKUP(MD!$T16,ALMD!$C$3:$F$34,3,FALSE),15)&")",LEFT(VLOOKUP(MD!$T16,ALMD!$C$3:$F$34,2,FALSE),MIN(LEN(VLOOKUP(MD!$T16,ALMD!$C$3:$F$34,2,FALSE)),35))),"") -> 
B45: Α16 Ημιτελ | C45: =IF(COUNTIF(MD!$T24,">0")>0,IF(VLOOKUP(MD!$T24,ALMD!$C$3:$F$34,3,FALSE)>" ",LEFT(VLOOKUP(MD!$T24,ALMD!$C$3:$F$34,2,FALSE),FIND(" ",VLOOKUP(MD!$T24,ALMD!$C$3:$F$34,2,FALSE))+1) & " (" & LEFT(VLOOKUP(MD!$T24,ALMD!$C$3:$F$34,3,FALSE),15)&")",LEFT(VLOOKUP(MD!$T24,ALMD!$C$3:$F$34,2,FALSE),MIN(LEN(VLOOKUP(MD!$T24,ALMD!$C$3:$F$34,2,FALSE)),35))),"") ->  | E45: =IF(COUNTIF(MD!$T32,">0")>0,IF(VLOOKUP(MD!$T32,ALMD!$C$3:$F$34,3,FALSE)>" ",LEFT(VLOOKUP(MD!$T32,ALMD!$C$3:$F$34,2,FALSE),FIND(" ",VLOOKUP(MD!$T32,ALMD!$C$3:$F$34,2,FALSE))+1) & " (" & LEFT(VLOOKUP(MD!$T32,ALMD!$C$3:$F$34,3,FALSE),15)&")",LEFT(VLOOKUP(MD!$T32,ALMD!$C$3:$F$34,2,FALSE),MIN(LEN(VLOOKUP(MD!$T32,ALMD!$C$3:$F$34,2,FALSE)),35))),"") -> 
C47: Τελικός | F47: info
A48: ΩΡΑ | B48: Κτγρ. | C48: Αθλητής-Σύλλογος | E48: Αθλητής-Σύλλογος
A49: Έναρξη | B49: Α16 Τελ. | C49: =IF(COUNTIF(MD!$W12,">0")>0,IF(VLOOKUP(MD!$W12,ALMD!$C$3:$F$34,3,FALSE)>" ",LEFT(VLOOKUP(MD!$W12,ALMD!$C$3:$F$34,2,FALSE),FIND(" ",VLOOKUP(MD!$W12,ALMD!$C$3:$F$34,2,FALSE))+1) & " (" & LEFT(VLOOKUP(MD!$W12,ALMD!$C$3:$F$34,3,FALSE),15)&")",LEFT(VLOOKUP(MD!$W12,ALMD!$C$3:$F$34,2,FALSE),MIN(LEN(VLOOKUP(MD!$W12,ALMD!$C$3:$F$34,2,FALSE)),35))),"") ->  | E49: =IF(COUNTIF(MD!$W28,">0")>0,IF(VLOOKUP(MD!$W28,ALMD!$C$3:$F$34,3,FALSE)>" ",LEFT(VLOOKUP(MD!$W28,ALMD!$C$3:$F$34,2,FALSE),FIND(" ",VLOOKUP(MD!$W28,ALMD!$C$3:$F$34,2,FALSE))+1) & " (" & LEFT(VLOOKUP(MD!$W28,ALMD!$C$3:$F$34,3,FALSE),15)&")",LEFT(VLOOKUP(MD!$W28,ALMD!$C$3:$F$34,2,FALSE),MIN(LEN(VLOOKUP(MD!$W28,ALMD!$C$3:$F$34,2,FALSE)),35))),"") -> 

Sheet tables (hidden)
A1: RndIndx | B1: random | C1: FixRandom | G1: 33-64 | H1: 17-32 | I1: 9-16 | J1: 5-8 | K1: 3-4 | L1: 2ος | M1: 1ος | P1: Categories | Q1: Juniors | R1: Serniors | V1: Tours | X1: Clubs | Y1: Id | Z1: Union | AB1: Organizers | AD1: Referees | AF1: key | AG1: pts17 | AI1: KEY TourDetails | AJ1: Date | AK1: TourName | AL1: CLUBid | AM1: CLUB | AN1: TYPE | AO1: GRP | AP1: GRPid | AQ1: TDid | AS1: Group | AT1: GroupID
A2: 1 | B2: =RAND()/222 -> 9.416538663e-05 | C2: 0.003779243261 | F2: Ε1-12 | H2: 5 | I2: 7.5 | J2: 10 | K2: 15 | L2: 25 | M2: 30 | Q2: Α10 | R2: m35 | V2: Παν | AF2: Ε1S-12-1st | AG2: 30 | AI2: =AJ2&AK2&AL2&AN2&AO2 -> 41327Open (ΙΑ)425Sα12 | AJ2: 2013-02-22 | AK2: Open (ΙΑ) | AL2: 425 | AM2: ΑΟΑ ΠΑΠΑΓΟΥ | AN2: S | AO2: α12 | AP2: 5 | AQ2: 1 | AS2: Α10 | AT2: 3
A3: 2 | B3: 0.0004589212789 | C3: 0.001845906312 | F3: Ε1-14 | H3: 10 | I3: 15 | J3: 20 | K3: 30 | L3: 50 | M3: 60 | P3: Α12 | Q3: Α12 | R3: m40 | V3: Ε3 | X3: ΑΑ ΑΙΓΑΛΕΩ | Y3: 366 | Z3: Θ | AB3: ΕΦΟΑ | AD3: ΑΛΕΞΙΟΥ Δ | AF3: Ε1S-12-2nd | AG3: 25 | AI3: =AJ3&AK3&AL3&AN3&AO3 -> 41327Open (ΙΑ)425Sκ12 | AJ3: 2013-02-22 | AK3: Open (ΙΑ) | AL3: 425 | AM3: ΑΟΑ ΠΑΠΑΓΟΥ | AN3: S | AO3: κ12 | AP3: 9 | AQ3: 5 | AS3: Κ10 | AT3: 4
A4: 3 | B4: =RAND()/222 -> 0.00335968668 | C4: 0.00180288169 | F4: Ε1-16 | H4: 20 | I4: 30 | J4: 40 | K4: 60 | L4: 100 | M4: 120 | P4: Α14 | Q4: Α14 | R4: m45 | V4: Ε4 | X4: ΑΑ ΑΛΜΠΑΤΡΟΣ | Y4: 124 | Z4: Β | AB4: Α' ΕΝΩΣΗ | AD4: ΑΜΟΥΤΖΟΓΛΟΥ Κ | AF4: Ε1S-12-3_4 | AG4: 15 | AI4: 41327Open (ΙΑ)424Sα14 | AJ4: 2013-02-22 | AK4: Open (ΙΑ) | AL4: 424 | AM4: ΑΟΑ ΗΛΙΟΥΠΟΛΗΣ | AN4: S | AO4: α14 | AP4: 6 | AQ4: 2 | AS4: Α12 | AT4: 5
A5: 4 | B5: =RAND()/222 -> 0.00339617401 | C5: 0.004437774625 | F5: Ε1-18 | H5: 25 | I5: 37.5 | J5: 50 | K5: 75 | L5: 125 | M5: 150 | P5: Α16 | Q5: Α16 | R5: m50 | V5: Open | X5: ΑΑ ΚΕΡΚΥΡΑΣ | Y5: 201 | Z5: Δ | AB5: Β' ΕΝΩΣΗ | AD5: ΑΞΑΡΛΗ Ν | AF5: Ε1S-12-5_8 | AG5: 10 | AI5: 41327Open (ΙΑ)424Sα18 | AJ5: 2013-02-22 | AK5: Open (ΙΑ) | AL5: 424 | AM5: ΑΟΑ ΗΛΙΟΥΠΟΛΗΣ | AN5: S | AO5: α18 | AP5: 8 | AQ5: 4 | AS5: Α14 | AT5: 6
A6: 5 | B6: =RAND()/222 -> 0.0005829645986 | C6: 0.0006963887643 | F6: Ε2-12 | H6: 2.5 | I6: 4 | J6: 5 | K6: 7.5 | L6: 12.5 | M6: 15 | P6: Α18 | Q6: Α18 | R6: m55 | V6: ΠανΑΓ | X6: ΑΑ ΝΑΟΥΣΑΣ | Y6: 169 | Z6: Γ | AB6: Γ' ΕΝΩΣΗ | AD6: ΒΑΒΙΤΣΑ Π | AF6: Ε1S-12-9_16 | AG6: 7.5 | AI6: 41327Open (ΙΑ)424Sκ14 | AJ6: 2013-02-22 | AK6: Open (ΙΑ) | AL6: 424 | AM6: ΑΟΑ ΗΛΙΟΥΠΟΛΗΣ | AN6: S | AO6: κ14 | AP6: 10 | AQ6: 6 | AS6: Α16 | AT6: 7
A7: 6 | B7: =RAND()/222 -> 0.0002956654257 | C7: 0.000600055956 | F7: Ε2-14 | H7: 5 | I7: 7.5 | J7: 10 | K7: 15 | L7: 25 | M7: 30 | P7: Κ12 | Q7: Κ10 | R7: m60 | V7: OpenΑΓ | X7: ΑΑ ΝΙΚΗ ΑΓ ΔΗΜΗΤΡΙΟΥ | Y7: 507 | Z7: ΙΑ | AB7: Δ' ΕΝΩΣΗ | AD7: ΒΑΒΟΥΡΑΚΗ Ε | AF7: Ε1S-12-17_32 | AG7: 5 | AI7: 41327Open (ΙΑ)424Sκ18 | AJ7: 2013-02-22 | AK7: Open (ΙΑ) | AL7: 424 | AM7: ΑΟΑ ΗΛΙΟΥΠΟΛΗΣ | AN7: S | AO7: κ18 | AP7: 12 | AQ7: 8 | AS7: Α18 | AT7: 8
A8: 7 | B8: =RAND()/222 -> 0.002684056597 | C8: 0.003332193499 | F8: Ε2-16 | H8: 10 | I8: 16 | J8: 20 | K8: 30 | L8: 50 | M8: 60 | P8: Κ14 | Q8: Κ12 | R8: m65 | X8: ΑΑΑ ΑΛΙΜΟΥ | Y8: 407 | Z8: ΙΑ | AB8: Ε' ΕΝΩΣΗ | AD8: ΒΑΚΟΥΦΑΡΗΣ Δ | AF8: Ε1S-12-q8 | AG8: 2 | AI8: 41327Open (ΙΑ)435Sα16 | AJ8: 2013-02-22 | AK8: Open (ΙΑ) | AL8: 435 | AM8: ΟΑ ΓΛΥΦΑΔΑΣ | AN8: S | AO8: α16 | AP8: 7 | AQ8: 3 | AS8: Κ12 | AT8: 9
A9: 8 | B9: 0.004351506603 | C9: 0.003140379732 | F9: Ε3-12 | G9: 0.5 | H9: 1.5 | I9: 2.4 | J9: 3 | K9: 4.5 | L9: 7.5 | M9: 9 | P9: Κ16 | Q9: Κ14 | R9: m70 | X9: ΑΓΟ ΒΟΛΟΥ | Y9: 470 | Z9: Ε | AB9: ΣΤ' ΕΝΩΣΗ | AD9: ΒΑΛΤΑΔΩΡΟΣ Δ | AF9: Ε1S-12-q16 | AG9: 2 | AI9: 41327Open (ΙΑ)435Sκ16 | AJ9: 2013-02-22 | AK9: Open (ΙΑ) | AL9: 435 | AM9: ΟΑ ΓΛΥΦΑΔΑΣ | AN9: S | AO9: κ16 | AP9: 11 | AQ9: 7 | AS9: Κ14 | AT9: 10
A10: 9 | B10: 0.00280980009 | C10: 0.002177689274 | F10: Ε3-14 | G10: 1 | H10: 3 | I10: 4.5 | J10: 6 | K10: 9 | L10: 15 | M10: 18 | P10: Κ18 | Q10: Κ16 | R10: m75 | X10: ΑΓΟ ΕΥΡΥΑΛΗ ΓΛΥΦΑΔΑΣ | Y10: 408 | Z10: ΙΑ | AB10: Ζ' ΕΝΩΣΗ | AD10: ΒΑΛΤΑΔΩΡΟΣ Μ | AF10: Ε1S-12-q8/2 | AG10: 1 | AI10: 41330ITF (MANGOLIA)14Sα18 | AJ10: 2013-02-25 | AK10: ITF (MANGOLIA) | AL10: 14 | AM10: ITF | AN10: S | AO10: α18 | AP10: 8 | AQ10: 9 | AS10: Κ16 | AT10: 11
A11: 10 | B11: 0.004354086724 | C11: 0.0005872008155 | F11: Ε3-16 | G11: 2 | H11: 6 | I11: 9.6 | J11: 12 | K11: 18 | L11: 30 | M11: 36 | P11: Α10 | Q11: Κ18 | R11: w35 | X11: ΑΓΟ ΘΕΣΠΡΩΤΙΚΟΥ | Y11: 202 | Z11: Δ | AB11: Η' ΕΝΩΣΗ | AD11: ΒΑΧΑΡΙΔΗΣ Γ | AF11: Ε1S-12-q32 | AG11: 1 | AI11: 41330ITF (TUNISIA)14Sα18 | AJ11: 2013-02-25 | AK11: ITF (TUNISIA) | AL11: 14 | AM11: ITF | AN11: S | AO11: α18 | AP11: 8 | AQ11: 10 | AS11: Κ18 | AT11: 12
A12: 11 | B12: 0.001876875524 | C12: 0.004056404718 | F12: Ε4-12 | G12: 0.2 | H12: 0.5 | I12: 1 | J12: 1.2 | K12: 1.7 | L12: 3.2 | M12: 3.7 | P12: Κ10 | Q12: ΑΝΔ | R12: w40 | X12: ΑΓΟ ΝΑΥΠΑΚΤΟΥ | Y12: 203 | Z12: Δ | AB12: Θ' ΕΝΩΣΗ | AD12: ΒΟΥΡΟΥΚΟΣ Κ | AF12: Ε1S-12-33_64 | AG12: 0 | AI12: 41330TE (COPENHAGEN)15Sκ16 | AJ12: 2013-02-25 | AK12: TE (COPENHAGEN) | AL12: 15 | AM12: Tennis Europe | AN12: S | AO12: κ16 | AP12: 11 | AQ12: 11 | AS12: Α12 Δ | AT12: 13
A13: 12 | B13: 0.001994850931 | C13: 0.003949600569 | F13: Ε4-14 | G13: 0.5 | H13: 1.2 | I13: 1.8 | J13: 2.5 | K13: 3.7 | L13: 6.2 | M13: 7.5 | P13: Ανδ | Q13: ΓΥΝ | R13: w45 | V13: Παν | X13: ΑΓΟ ΦΙΛΙΠΠΙΑΔΑΣ | Y13: 204 | Z13: Δ | AB13: ΙΑ' ΕΝΩΣΗ | AD13: ΓΑΛΑΤΙΔΗΣ Α | AF13: Ε1S-12-q | AG13: 0 | AI13: 41330TE (INTIME)15Sα16 | AJ13: 2013-02-25 | AK13: TE (INTIME) | AL13: 15 | AM13: Tennis Europe | AN13: S | AO13: α16 | AP13: 7 | AQ13: 12 | AS13: Α14 Δ | AT13: 14
A14: 13 | B14: 0.0009344722918 | C14: 0.00235150233 | F14: Ε4-16 | G14: 1 | H14: 2.5 | I14: 4 | J14: 5 | K14: 7.5 | L14: 12.5 | M14: 15 | P14: Γυν | Q14: - | R14: w50 | V14: Ε1 | X14: ΑΓΣ ΜΥΛΩΝ Ο ΛΕΡΝΟΣ | Y14: 258 | Z14: ΣΤ | AB14: ΣΒΑΕ | AD14: ΓΕΡΑΡΔΟΣ Γ | AF14: Ε1S-12-q64 | AG14: 0 | AI14: 41330TE (TENNISLINE)15Sα16 | AJ14: 2013-02-25 | AK14: TE (TENNISLINE) | AL14: 15 | AM14: Tennis Europe | AN14: S | AO14: α16 | AP14: 7 | AQ14: 13 | AS14: Α16 Δ | AT14: 15
A15: 14 | B15: 0.003549110454 | C15: 0.002269698355 | F15: Παν-12 | G15: 5 | H15: 10 | I15: 15 | J15: 20 | K15: 30 | L15: 50 | M15: 60 | Q15: - | R15: w55 | V15: Ε2 | X15: ΑΕ ΒΟΥΛΑΣ | Y15: 496 | Z15: ΙΑ | AB15: ITF & ΣΒΑΕ | AD15: ΓΕΩΡΓΑΚΗΣ Κ | AF15: Ε1S-12-q128 | AG15: 0 | AI15: 41330TE (TENNISLINE)15Dα16 | AJ15: 2013-02-25 | AK15: TE (TENNISLINE) | AL15: 15 | AM15: Tennis Europe | AN15: D | AO15: α16 | AP15: 15 | AQ15: 14 | AS15: Α18 Δ | AT15: 16
A16: 15 | B16: 0.002400397835 | C16: 0.003229705541 | F16: Παν-14 | G16: 10 | H16: 20 | I16: 30 | J16: 40 | K16: 60 | L16: 100 | M16: 120 | Q16: - | R16: - | V16: Ε3 | X16: ΑΕ ΚΑΛΑΒΡΥΤΩΝ | Y16: 259 | Z16: ΣΤ | AB16: INTERSPORT | AD16: ΓΕΩΡΓΑΡΑ Ε | AF16: Ε1S-12-q256 | AG16: 0 | AI16: 41330TE (TOVOSA)15Sκ16 | AJ16: 2013-02-25 | AK16: TE (TOVOSA) | AL16: 15 | AM16: Tennis Europe | AN16: S | AO16: κ16 | AP16: 11 | AQ16: 15 | AS16: Κ12 Δ | AT16: 17
A17: 16 | B17: 0.001187848017 | C17: 0.003416797442 | F17: Παν-16 | G17: 20 | H17: 40 | I17: 60 | J17: 80 | K17: 120 | L17: 200 | M17: 240 | V17: Ε4 | X17: ΑΕ ΠΟΡΤΟ ΡΑΦΤΗ | Y17: 313 | Z17: Η | AD17: ΓΕΩΡΓΑΤΗΣ Ι | AF17: Ε1S-12-wo | AG17: 0 | AI17: 41355Ε2α (Α)115Sα12 | AJ17: 2013-03-22 | AK17: Ε2α (Α) | AL17: 115 | AM17: ΟΑ ΞΑΝΘΗΣ | AN17: S | AO17: α12 | AP17: 5 | AQ17: 16 | AS17: Κ14 Δ | AT17: 18
A18: 17 | B18: 0.001965684602 | C18: 0.002635421295 | F18: Παν-18 | G18: 25 | H18: 50 | I18: 75 | J18: 100 | K18: 150 | L18: 250 | M18: 300 | X18: ΑΕΚ ΤΡΙΠΟΛΗΣ | Y18: 260 | Z18: ΣΤ | AD18: ΓΕΩΡΓΙΑΔΗΣ Σ | AF18: Ε1D-12-1st | AG18: 7.5 | AI18: 41355Ε2α (Α)115Dα12 | AJ18: 2013-03-22 | AK18: Ε2α (Α) | AL18: 115 | AM18: ΟΑ ΞΑΝΘΗΣ | AN18: D | AO18: α12 | AP18: 13 | AQ18: 17 | AS18: Κ16 Δ | AT18: 19
A19: 18 | B19: 0.004354885731 | C19: 0.0008234668123 | R19: Α10D | V19: G1 | X19: ΑΕΣΑ Φ ΚΟΥΡΟΣ | Y19: 478 | Z19: Η | AD19: ΓΙΑΤΣΟΣ Β | AF19: Ε1D-12-2nd | AG19: 6.5 | AI19: 41355Ε2α (Α)115Sκ12 | AJ19: 2013-03-22 | AK19: Ε2α (Α) | AL19: 115 | AM19: ΟΑ ΞΑΝΘΗΣ | AN19: S | AO19: κ12 | AP19: 9 | AQ19: 22 | AS19: Κ18 Δ | AT19: 20
A20: 19 | B20: 0.004189745659 | C20: 0.00272548011 | G20: q256 | H20: q128 | I20: q64 | J20: q32 | K20: q16 | L20: q8 | R20: Α12D | V20: G2 | X20: ΑΕΤ ΝΙΚΗ ΠΑΤΡΩΝ | Y20: 261 | Z20: ΣΤ | AD20: ΓΙΩΓΙΑ Π | AF20: Ε1D-12-3_4 | AG20: 4 | AI20: 41355Ε2α (Α)115Dκ12 | AJ20: 2013-03-22 | AK20: Ε2α (Α) | AL20: 115 | AM20: ΟΑ ΞΑΝΘΗΣ | AN20: D | AO20: κ12 | AP20: 17 | AQ20: 23 | AS20: Μ12 Δ | AT20: 21
A21: 20 | B21: 0.002922669133 | C21: 0.003812987723 | F21: Ε1-12 | J21: 1 | K21: 2 | L21: 2 | R21: Α14D | V21: G3 | X21: ΑΘΛ ΑΚΑΔ ΙΩΑΝΝΙΝΩΝ | Y21: 205 | Z21: Δ | AD21: ΓΚΟΓΚΟΥ Κ | AF21: Ε1D-12-5_8 | AG21: 2.5 | AI21: 41355Ε2α (Α)106Sα14 | AJ21: 2013-03-22 | AK21: Ε2α (Α) | AL21: 106 | AM21: ΑΟΑ ΚΑΒΑΛΑΣ | AN21: S | AO21: α14 | AP21: 6 | AQ21: 18 | AS21: Μ14 Δ | AT21: 22
A22: 21 | B22: 0.000669853485 | C22: 0.002815936592 | F22: Ε1-14 | J22: 2 | K22: 4 | L22: 4 | R22: Α16D | V22: G4 | X22: ΑΘΛ ΚΕΝΤΡΟ ΑΝΤΙΣΦ ΛΑΜΙΑΣ | Y22: 223 | Z22: Ε | AD22: ΓΚΟΥΝΤΑΝΗ Γ | AF22: Ε1D-12-9_16 | AG22: 2 | AI22: 41355Ε2α (Α)106Dα14 | AJ22: 2013-03-22 | AK22: Ε2α (Α) | AL22: 106 | AM22: ΑΟΑ ΚΑΒΑΛΑΣ | AN22: D | AO22: α14 | AP22: 14 | AQ22: 19 | AS22: Μ16 Δ | AT22: 23
A23: 22 | B23: 0.0001894459276 | C23: 0.00420291863 | F23: Ε1-16 | J23: 4 | K23: 8 | L23: 8 | R23: Α18D | V23: G5 | X23: ΑΙΟΛΟΣ ΑΛ ΙΛΙΟΥ | Y23: 367 | Z23: Θ | AD23: ΔΑΜΙΑΝΟΥ Α | AF23: Ε1D-12-17_32 | AG23: 0 | AI23: 41355Ε2α (Α)106Sκ14 | AJ23: 2013-03-22 | AK23: Ε2α (Α) | AL23: 106 | AM23: ΑΟΑ ΚΑΒΑΛΑΣ | AN23: S | AO23: κ14 | AP23: 10 | AQ23: 24 | AS23: Μ18 Δ | AT23: 24
A24: 23 | B24: 0.003068088322 | C24: 0.002350104963 | F24: Ε1-18 | J24: 5 | K24: 10 | L24: 10 | R24: Κ10D | X24: ΑΚ ΖΩΓΡΑΦΟΥ | Y24: 410 | Z24: ΙΑ | AD24: ΔΕΡΜΙΤΖΑΚΗ Ε | AF24: Ε1D-12-wo | AG24: 0 | AI24: 41355Ε2α (Α)106Dκ14 | AJ24: 2013-03-22 | AK24: Ε2α (Α) | AL24: 106 | AM24: ΑΟΑ ΚΑΒΑΛΑΣ | AN24: D | AO24: κ14 | AP24: 18 | AQ24: 25 | AS24: ΑΝΔ | AT24: 25
A25: 24 | B25: 0.0008976396754 | C25: 0.004372118789 | F25: Ε2-12 | J25: 0.5 | K25: 1 | L25: 1 | R25: Κ12D | X25: ΑΚΑ Α ΠΑΝΤΑΛΚΗΣ | Y25: 487 | Z25: Θ | AD25: ΔΗΜΗΤΡΙΟΥ Ε | AF25: Ε1S-14-1st | AG25: 60 | AI25: 41355Ε2α (Α)107Sα16 | AJ25: 2013-03-22 | AK25: Ε2α (Α) | AL25: 107 | AM25: ΑΟΑ Ν ΠΕΡΑΜΟΥ ΤΙΤΑΝΕΣ | AN25: S | AO25: α16 | AP25: 7 | AQ25: 20 | AS25: ΓΥΝ | AT25: 26
A26: 25 | B26: 0.001874079807 | C26: 0.0008409362022 | F26: Ε2-14 | J26: 1 | K26: 2 | L26: 2 | R26: Κ14D | X26: ΑΚΑ ΜΑΡΑΘΩΝΑ | Y26: 315 | Z26: Η | AD26: ΔΡΑΓΟΥΜΗΣ Π | AF26: Ε1S-14-2nd | AG26: 50 | AI26: 41355Ε2α (Α)107Dα16 | AJ26: 2013-03-22 | AK26: Ε2α (Α) | AL26: 107 | AM26: ΑΟΑ Ν ΠΕΡΑΜΟΥ ΤΙΤΑΝΕΣ | AN26: D | AO26: α16 | AP26: 15 | AQ26: 21 | AS26: ΑΝΔ Δ | AT26: 27
A27: 26 | B27: 0.0009314369729 | C27: 0.001073169834 | F27: Ε2-16 | J27: 2 | K27: 4 | L27: 4 | P27: Ναι | R27: Κ16D | X27: ΑΚΑΔ ΑΝΤΙΣΦ ΙΩΑΝΝΙΝΩΝ | Y27: 206 | Z27: Δ | AD27: ΘΕΟΔΩΡΟΠΟΥΛΟΥ Α | AF27: Ε1S-14-3_4 | AG27: 30 | AI27: 41355Ε2α (Α)107Sκ16 | AJ27: 2013-03-22 | AK27: Ε2α (Α) | AL27: 107 | AM27: ΑΟΑ Ν ΠΕΡΑΜΟΥ ΤΙΤΑΝΕΣ | AN27: S | AO27: κ16 | AP27: 11 | AQ27: 26 | AS27: ΓΥΝ Δ | AT27: 28
A28: 27 | B28: 0.004398020973 | C28: 0.0009517311142 | F28: Ε3-12 | P28: Όχι | R28: Κ18D | X28: ΑΚΑΔ ΑΝΤΙΣΦ ΣΕΡΡΩΝ 2008 | Y28: 101 | Z28: Α | AD28: ΙΩΑΝΝΙΔΗΣ Ι | AF28: Ε1S-14-5_8 | AG28: 20 | AI28: 41355Ε2α (Ζ)304Sα12 | AJ28: 2013-03-22 | AK28: Ε2α (Ζ) | AL28: 304 | AM28: ΓΣ ΛΙΒΥΚΟΣ ΙΕΡΑΠΕΤΡΑΣ | AN28: S | AO28: α12 | AP28: 5 | AQ28: 27 | AS28: ΜΙΚΤ Α/Γ | AT28: 29
A29: 28 | B29: 0.003459497131 | C29: 0.0004847200157 | F29: Ε3-14 | R29: Μ12D | X29: ΑΚΑΔ ΑΝΤΙΣΦ ΧΑΝΙΩΝ | Y29: 298 | Z29: Ζ | AD29: ΚΑΔΟΓΛΟΥ Κ | AF29: Ε1S-14-9_16 | AG29: 15 | AI29: 41355Ε2α (Ζ)304Dα12 | AJ29: 2013-03-22 | AK29: Ε2α (Ζ) | AL29: 304 | AM29: ΓΣ ΛΙΒΥΚΟΣ ΙΕΡΑΠΕΤΡΑΣ | AN29: D | AO29: α12 | AP29: 13 | AQ29: 28
A30: 29 | B30: 0.00356690194 | C30: 0.001418899849 | F30: Ε3-16 | P30: από values | R30: Μ14D | X30: ΑΜΕΣ Ν ΕΡΥΘΡΑΙΑΣ | Y30: 316 | Z30: Η | AD30: ΚΑΖΑΝΗΣ Γ | AF30: Ε1S-14-17_32 | AG30: 10 | AI30: 41355Ε2α (Ζ)304Sκ12 | AJ30: 2013-03-22 | AK30: Ε2α (Ζ) | AL30: 304 | AM30: ΓΣ ΛΙΒΥΚΟΣ ΙΕΡΑΠΕΤΡΑΣ | AN30: S | AO30: κ12 | AP30: 9 | AQ30: 31 | AS30: Α12D | AT30: 13
A31: 30 | B31: 0.003189790812 | C31: 0.001273459681 | F31: Ε4-12 | R31: Μ16D | X31: ΑΜΣ ΠΑΝΟΡΑΜΑΤΟΣ | Y31: 458 | Z31: Β | AD31: ΚΑΚΚΑΛΟΣ Γ | AF31: Ε1S-14-q8 | AG31: 4 | AI31: 41355Ε2α (Ζ)304Dκ12 | AJ31: 2013-03-22 | AK31: Ε2α (Ζ) | AL31: 304 | AM31: ΓΣ ΛΙΒΥΚΟΣ ΙΕΡΑΠΕΤΡΑΣ | AN31: D | AO31: κ12 | AP31: 17 | AQ31: 32 | AS31: Α14D | AT31: 14
A32: 31 | B32: 0.0005754188533 | C32: 0.002259500404 | F32: Ε4-14 | P32: alt | R32: Μ18D | X32: ΑΝΟ ΓΛΥΦΑΔΑΣ | Y32: 411 | Z32: ΙΑ | AD32: ΚΑΛΟΓΡΗ Σ | AF32: Ε1S-14-q16 | AG32: 4 | AI32: 41355Ε2α (Ζ)307Sα14 | AJ32: 2013-03-22 | AK32: Ε2α (Ζ) | AL32: 307 | AM32: ΟΑ ΡΕΘΥΜΝΟΥ | AN32: S | AO32: α14 | AP32: 6 | AQ32: 29 | AS32: Α16D | AT32: 15
A33: 32 | B33: 0.004053961895 | C33: 0.0005595386117 | F33: Ε4-16 | P33: Q | R33: Ανδ-D | X33: ΑΝΣ ΕΛΛΗΝΙΚΙΩΤΩΝ | Y33: 412 | Z33: ΙΑ | AD33: ΚΑΜΙΛΗ Α | AF33: Ε1S-14-q8/2 | AG33: 2 | AI33: 41355Ε2α (Ζ)307Dα14 | AJ33: 2013-03-22 | AK33: Ε2α (Ζ) | AL33: 307 | AM33: ΟΑ ΡΕΘΥΜΝΟΥ | AN33: D | AO33: α14 | AP33: 14 | AQ33: 30 | AS33: Α18D | AT33: 16
F34: Παν-12 | G34: 0.5 | H34: 1 | I34: 1.5 | J34: 2.5 | K34: 2.5 | P34: LL | R34: Γυν-D | X34: ΑΟ ΑΘΗΝΑΪΚΗ | Y34: 488 | Z34: Θ | AD34: ΚΑΡΑΜΗΤΡΟΣ Κ | AF34: Ε1S-14-q32 | AG34: 2 | AI34: 41355Ε2α (Ζ)307Sκ14 | AJ34: 2013-03-22 | AK34: Ε2α (Ζ) | AL34: 307 | AM34: ΟΑ ΡΕΘΥΜΝΟΥ | AN34: S | AO34: κ14 | AP34: 10 | AQ34: 33 | AS34: Κ12D | AT34: 17
F35: Παν-14 | G35: 1 | H35: 2 | I35: 3 | J35: 5 | K35: 5 | P35: DQ | R35: μΑΓ-D | X35: ΑΟ ΑΙΓΙΟΥ ΜΟΡΕΑΣ | Y35: 262 | Z35: ΣΤ | AD35: ΚΑΡΑΤΑΣΟΣ Κ | AF35: Ε1S-14-33_64 | AG35: 0 | AI35: 41355Ε2α (Ζ)307Dκ14 | AJ35: 2013-03-22 | AK35: Ε2α (Ζ) | AL35: 307 | AM35: ΟΑ ΡΕΘΥΜΝΟΥ | AN35: D | AO35: κ14 | AP35: 18 | AQ35: 34 | AS35: Κ14D | AT35: 18
F36: Παν-16 | G36: 2 | H36: 4 | I36: 6 | J36: 10 | K36: 10 | X36: ΑΟ ΑΛΦΕΙΟΣ ΕΠΙΤΑΛΙΟΥ | Y36: 501 | Z36: ΣΤ | AD36: ΚΑΦΕΤΖΟΠΟΥΛΟΣ Π | AF36: Ε1S-14-q | AG36: 0 | AI36: 41355Ε2α (ΣΤ)261Sα12 | AJ36: 2013-03-22 | AK36: Ε2α (ΣΤ) | AL36: 261 | AM36: ΑΕΤ ΝΙΚΗ ΠΑΤΡΩΝ | AN36: S | AO36: α12 | AP36: 5 | AQ36: 35 | AS36: Κ16D | AT36: 19
F37: Παν-18 | G37: 2.5 | H37: 5 | I37: 7.5 | J37: 12.5 | K37: 12.5 | X37: ΑΟ ΑΜΥΝΤΑΣ ΥΜΗΤΤΟΥ | Y37: 413 | Z37: ΙΑ | AD37: ΚΑΦΦΕ Μ | AF37: Ε1S-14-q64 | AG37: 0 | AI37: 41355Ε2α (ΣΤ)261Dα12 | AJ37: 2013-03-22 | AK37: Ε2α (ΣΤ) | AL37: 261 | AM37: ΑΕΤ ΝΙΚΗ ΠΑΤΡΩΝ | AN37: D | AO37: α12 | AP37: 13 | AQ37: 36 | AS37: Κ18D | AT37: 20
X38: ΑΟ ΑΣΤΕΡΑΣ ΗΛΙΟΥΠΟΛΗΣ | Y38: 497 | Z38: ΙΑ | AD38: ΚΙΜΟΓΛΟΥ Ε | AF38: Ε1S-14-q128 | AG38: 0 | AI38: 41355Ε2α (ΣΤ)261Sα14 | AJ38: 2013-03-22 | AK38: Ε2α (ΣΤ) | AL38: 261 | AM38: ΑΕΤ ΝΙΚΗ ΠΑΤΡΩΝ | AN38: S | AO38: α14 | AP38: 6 | AQ38: 37 | AS38: Μ12D | AT38: 21
X39: ΑΟ ΑΤΛΑΝΤΙΣ | Y39: 317 | Z39: Η | AD39: ΚΟΣΚΙΝΑΣ Ι | AF39: Ε1S-14-q256 | AG39: 0 | AI39: 41355Ε2α (ΣΤ)261Dα14 | AJ39: 2013-03-22 | AK39: Ε2α (ΣΤ) | AL39: 261 | AM39: ΑΕΤ ΝΙΚΗ ΠΑΤΡΩΝ | AN39: D | AO39: α14 | AP39: 14 | AQ39: 38 | AS39: Μ14D | AT39: 22
F40: ΔΙΠΛΑ Ε1, Ε2 | X40: ΑΟ ΒΑΡΗΣ ΑΝΑΓΥΡΟΥΣ | Y40: 318 | Z40: Η | AD40: ΚΟΤΣΑΡΙΝΗΣ Β | AF40: Ε1S-14-wo | AG40: 0 | AI40: 41355Ε2α (ΣΤ)261Sκ12 | AJ40: 2013-03-22 | AK40: Ε2α (ΣΤ) | AL40: 261 | AM40: ΑΕΤ ΝΙΚΗ ΠΑΤΡΩΝ | AN40: S | AO40: κ12 | AP40: 9 | AQ40: 41 | AS40: Μ16D | AT40: 23
H41: 9-16 | I41: 5-8 | J41: 3-4 | K41: 2ος | L41: 1ος | X41: ΑΟ ΒΟΥΛΙΑΓΜΕΝΗΣ | Y41: 415 | Z41: ΙΑ | AD41: ΚΟΤΣΩΝΗΣ Ε | AF41: Ε1D-14-1st | AG41: 15 | AI41: 41355Ε2α (ΣΤ)261Dκ12 | AJ41: 2013-03-22 | AK41: Ε2α (ΣΤ) | AL41: 261 | AM41: ΑΕΤ ΝΙΚΗ ΠΑΤΡΩΝ | AN41: D | AO41: κ12 | AP41: 17 | AQ41: 42 | AS41: Μ18D | AT41: 24
F42: Ε1 | G42: Ε1-12 | H42: 2 | I42: 2.5 | J42: 4 | K42: 6.5 | L42: 7.5 | X42: ΑΟ ΓΛΥΦΑΔΑΣ ΦΙΛΙΑ 2000 | Y42: 416 | Z42: ΙΑ | AD42: ΚΟΥΚΟΥΒΙΤΑΚΗ Γ | AF42: Ε1D-14-2nd | AG42: 13 | AI42: 41355Ε2α (ΣΤ)261Sκ14 | AJ42: 2013-03-22 | AK42: Ε2α (ΣΤ) | AL42: 261 | AM42: ΑΕΤ ΝΙΚΗ ΠΑΤΡΩΝ | AN42: S | AO42: κ14 | AP42: 10 | AQ42: 43 | AS42: Ανδ-D | AT42: 27
G43: Ε1-14 | H43: 4 | I43: 5 | J43: 8 | K43: 13 | L43: 15 | X43: ΑΟ ΔΑΣΟΣ ΧΑΪΔΑΡΙΟΥ | Y43: 489 | Z43: Θ | AD43: ΚΟΥΜΑΝΤΑΣ Κ | AF43: Ε1D-14-3_4 | AG43: 8 | AI43: 41355Ε2α (ΣΤ)261Dκ14 | AJ43: 2013-03-22 | AK43: Ε2α (ΣΤ) | AL43: 261 | AM43: ΑΕΤ ΝΙΚΗ ΠΑΤΡΩΝ | AN43: D | AO43: κ14 | AP43: 18 | AQ43: 44 | AS43: Γυν-D | AT43: 28
G44: Ε1-16 | H44: 8 | I44: 10 | J44: 16 | K44: 26 | L44: 30 | X44: ΑΟ ΔΙΑΣ ΠΟΛΙΧΝΗΣ | Y44: 126 | Z44: Β | AD44: ΚΟΥΤΣΟΛΑΜΠΡΟΥ Α | AF44: Ε1D-14-5_8 | AG44: 5 | AI44: 41355Ε2α (ΣΤ)289Sα16 | AJ44: 2013-03-22 | AK44: Ε2α (ΣΤ) | AL44: 289 | AM44: ΟΑ ΡΙΟΥ | AN44: S | AO44: α16 | AP44: 7 | AQ44: 39
G45: Ε1-18 | H45: 10 | I45: 12.5 | J45: 20 | K45: 32.5 | L45: 37.5 | X45: ΑΟ ΔΙΛΟΦΟ ΒΑΡΗΣ | Y45: 319 | Z45: Η | AD45: ΚΡΑΝΙΩΤΗ Σ | AF45: Ε1D-14-9_16 | AG45: 4 | AI45: 41355Ε2α (ΣΤ)289Dα16 | AJ45: 2013-03-22 | AK45: Ε2α (ΣΤ) | AL45: 289 | AM45: ΟΑ ΡΙΟΥ | AN45: D | AO45: α16 | AP45: 15 | AQ45: 40
F46: Ε2 | G46: Ε2-12 | H46: 1 | I46: 1.5 | J46: 2 | K46: 3 | L46: 4 | X46: ΑΟ ΕΜΙΛΕΟΝ | Y46: 207 | Z46: Δ | AD46: ΚΩΝΣΤΑΝΤΙΝΟΥ Κ | AF46: Ε1D-14-17_32 | AG46: 0 | AI46: 41355Ε2α (ΣΤ)289Sκ16 | AJ46: 2013-03-22 | AK46: Ε2α (ΣΤ) | AL46: 289 | AM46: ΟΑ ΡΙΟΥ | AN46: S | AO46: κ16 | AP46: 11 | AQ46: 45
G47: Ε2-14 | H47: 2 | I47: 3 | J47: 4 | K47: 6 | L47: 8 | X47: ΑΟ ΘΕΡΜΗΣ ΘΕΡΜΑΙΟΣ | Y47: 127 | Z47: Β | AD47: ΚΩΣΤΙΔΟΥ Χ | AF47: Ε1D-14-wo | AG47: 0 | AI47: 41355Ε2α (ΣΤ)289Dκ16 | AJ47: 2013-03-22 | AK47: Ε2α (ΣΤ) | AL47: 289 | AM47: ΟΑ ΡΙΟΥ | AN47: D | AO47: κ16 | AP47: 19 | AQ47: 46
G48: Ε2-16 | H48: 4 | I48: 6 | J48: 8 | K48: 12 | L48: 16 | X48: ΑΟ ΚΑΒΑΛΑΣ ΜΑΚΕΔΟΝΙΚΟΣ | Y48: 102 | Z48: Α | AD48: ΛΑΖΑΡΙΔΗΣ Ι | AF48: Ε1S-16-1st | AG48: 120 | AI48: 41358TE (CHAMB)15Sα16 | AJ48: 2013-03-25 | AK48: TE (CHAMB) | AL48: 15 | AM48: Tennis Europe | AN48: S | AO48: α16 | AP48: 7 | AQ48: 47
X49: ΑΟ ΚΑΛΛΙΤΕΧΝΟΥΠΟΛΗΣ | Y49: 320 | Z49: Η | AD49: ΛΑΛΟΥΜΗΣ Λ | AF49: Ε1S-16-2nd | AG49: 100 | AI49: 41358TE (INTIME)15Dα16 | AJ49: 2013-03-25 | AK49: TE (INTIME) | AL49: 15 | AM49: Tennis Europe | AN49: D | AO49: α16 | AP49: 15 | AQ49: 48
X50: ΑΟ ΚΗΦΙΣΙΑΣ | Y50: 321 | Z50: Η | AD50: ΛΑΜΠΡΟΥ Μ | AF50: Ε1S-16-3_4 | AG50: 60 | AI50: 41358TE (LEVA)15Sκ16 | AJ50: 2013-03-25 | AK50: TE (LEVA) | AL50: 15 | AM50: Tennis Europe | AN50: S | AO50: κ16 | AP50: 11 | AQ50: 49
X51: ΑΟ ΚΡΑΝΙΔΙΟΥ | Y51: 264 | Z51: ΣΤ | AD51: ΛΙΓΓΟΣ Ι | AF51: Ε1S-16-5_8 | AG51: 40 | AI51: 41358TE (LEVA)15Dκ16 | AJ51: 2013-03-25 | AK51: TE (LEVA) | AL51: 15 | AM51: Tennis Europe | AN51: D | AO51: κ16 | AP51: 19 | AQ51: 50
X52: ΑΟ ΚΥΔΩΝΙΑΣ | Y52: 299 | Z52: Ζ | AD52: ΜΕΛΛΙΟΣ Α | AF52: Ε1S-16-9_16 | AG52: 30 | AI52: 41358TE (OSLO)15Sα16 | AJ52: 2013-03-25 | AK52: TE (OSLO) | AL52: 15 | AM52: Tennis Europe | AN52: S | AO52: α16 | AP52: 7 | AQ52: 51
X53: ΑΟ ΛΑΓΟΝΗΣΙΟΥ | Y53: 322 | Z53: Η | AD53: ΜΙΧΑΗΛΙΔΗΣ Σ | AF53: Ε1S-16-17_32 | AG53: 20 | AI53: 41358TE (TEJT)15Sα16 | AJ53: 2013-03-25 | AK53: TE (TEJT) | AL53: 15 | AM53: Tennis Europe | AN53: S | AO53: α16 | AP53: 7 | AQ53: 52
X54: ΑΟ ΛΑΤΩ ΑΓ ΝΙΚΟΛΑΟΥ | Y54: 300 | Z54: Ζ | AD54: ΜΟΥΡΒΑΤΗΣ Π | AF54: Ε1S-16-q8 | AG54: 8 | AI54: 41362Ε1α (Θ)374Sα12 | AJ54: 2013-03-29 | AK54: Ε1α (Θ) | AL54: 374 | AM54: ΑΟΑ ΧΑΪΔΑΡΙΟΥ | AN54: S | AO54: α12 | AP54: 5 | AQ54: 53
X55: ΑΟ ΛΙΒΑΔΕΙΩΝ ΒΟΥΡΕΙΟΣ | Y55: 323 | Z55: Η | AD55: ΜΟΥΡΤΖΙΟΥ Ι | AF55: Ε1S-16-q16 | AG55: 8 | AI55: 41362Ε1α (Θ)374Dα12 | AJ55: 2013-03-29 | AK55: Ε1α (Θ) | AL55: 374 | AM55: ΑΟΑ ΧΑΪΔΑΡΙΟΥ | AN55: D | AO55: α12 | AP55: 13 | AQ55: 54
X56: ΑΟ ΜΑΡΚΟΠΟΥΛΟΥ | Y56: 479 | Z56: Η | AD56: ΜΠΑΛΑΦΑΣ Σ | AF56: Ε1S-16-q8/2 | AG56: 4 | AI56: 41362Ε1α (Θ)374Sα18 | AJ56: 2013-03-29 | AK56: Ε1α (Θ) | AL56: 374 | AM56: ΑΟΑ ΧΑΪΔΑΡΙΟΥ | AN56: S | AO56: α18 | AP56: 8 | AQ56: 59
X57: ΑΟ ΜΕΓΑΣ ΑΛΕΞΑΝΔΡΟΣ | Y57: 418 | Z57: ΙΑ | AD57: ΜΠΑΡΚΑΣ Α | AF57: Ε1S-16-q32 | AG57: 4 | AI57: 41362Ε1α (Θ)374Dα18 | AJ57: 2013-03-29 | AK57: Ε1α (Θ) | AL57: 374 | AM57: ΑΟΑ ΧΑΪΔΑΡΙΟΥ | AN57: D | AO57: α18 | AP57: 16 | AQ57: 60
X58: ΑΟ ΜΟΡΤΕΡΟΥ | Y58: 480 | Z58: Η | AD58: ΜΠΑΡΜΠΟΠΟΥΛΟΣ Κ | AF58: Ε1S-16-33_64 | AG58: 0 | AI58: 41362Ε1α (Θ)374Sκ12 | AJ58: 2013-03-29 | AK58: Ε1α (Θ) | AL58: 374 | AM58: ΑΟΑ ΧΑΪΔΑΡΙΟΥ | AN58: S | AO58: κ12 | AP58: 9 | AQ58: 61
X59: ΑΟ ΜΥΤΙΛΗΝΗΣ | Y59: 371 | Z59: Θ | AD59: ΜΠΑΤΣΙΟΣ Κ | AF59: Ε1S-16-q | AG59: 0 | AI59: 41362Ε1α (Θ)374Dκ12 | AJ59: 2013-03-29 | AK59: Ε1α (Θ) | AL59: 374 | AM59: ΑΟΑ ΧΑΪΔΑΡΙΟΥ | AN59: D | AO59: κ12 | AP59: 17 | AQ59: 62
X60: ΑΟ Ν ΣΜΥΡΝΗΣ ΜΙΛΩΝ | Y60: 419 | Z60: ΙΑ | AD60: ΝΤΑΛΑΜΑΓΚΑ Β | AF60: Ε1S-16-q64 | AG60: 0 | AI60: 41362Ε1α (Θ)374Sκ18 | AJ60: 2013-03-29 | AK60: Ε1α (Θ) | AL60: 374 | AM60: ΑΟΑ ΧΑΪΔΑΡΙΟΥ | AN60: S | AO60: κ18 | AP60: 12 | AQ60: 67
X61: ΑΟ ΝΕΟΥ ΦΑΛΗΡΟΥ | Y61: 490 | Z61: Θ | AD61: ΝΤΙΝΟΠΟΥΛΟΣ Π | AF61: Ε1S-16-q128 | AG61: 0 | AI61: 41362Ε1α (Θ)400Sα14 | AJ61: 2013-03-29 | AK61: Ε1α (Θ) | AL61: 400 | AM61: ΟΑ ΧΑΛΚΙΔΑΣ | AN61: S | AO61: α14 | AP61: 6 | AQ61: 55
X62: ΑΟ ΝΦ ΑΤΤΑΛΟΣ | Y62: 326 | Z62: Η | AD62: ΟΥΛΑΣΟΓΛΟΥ Ν | AF62: Ε1S-16-q256 | AG62: 0 | AI62: 41362Ε1α (Θ)400Dα14 | AJ62: 2013-03-29 | AK62: Ε1α (Θ) | AL62: 400 | AM62: ΟΑ ΧΑΛΚΙΔΑΣ | AN62: D | AO62: α14 | AP62: 14 | AQ62: 56
X63: ΑΟ ΟΛΥΜΠΙΑΔΑ ΒΥΡΩΝΑ | Y63: 481 | Z63: Η | AD63: ΟΥΝΑΝΙΔΟΥ Λ | AF63: Ε1S-16-wo | AG63: 0 | AI63: 41362Ε1α (Θ)400Sκ14 | AJ63: 2013-03-29 | AK63: Ε1α (Θ) | AL63: 400 | AM63: ΟΑ ΧΑΛΚΙΔΑΣ | AN63: S | AO63: κ14 | AP63: 10 | AQ63: 63
X64: ΑΟ ΟΡΕΣΤΙΑΔΑΣ | Y64: 103 | Z64: Α | AD64: ΟΥΡΑΝΙΔΗΣ Φ | AF64: Ε1D-16-1st | AG64: 30 | AI64: 41362Ε1α (Θ)400Dκ14 | AJ64: 2013-03-29 | AK64: Ε1α (Θ) | AL64: 400 | AM64: ΟΑ ΧΑΛΚΙΔΑΣ | AN64: D | AO64: κ14 | AP64: 18 | AQ64: 64
X65: ΑΟ Π ΦΑΛΗΡΟΥ | Y65: 420 | Z65: ΙΑ | AD65: ΠΑΛΑΙΣΤΗ Γ | AF65: Ε1D-16-2nd | AG65: 26 | AI65: 41362Ε1α (Θ)398Sα16 | AJ65: 2013-03-29 | AK65: Ε1α (Θ) | AL65: 398 | AM65: ΟΑ ΠΕΤΡΟΥΠΟΛΗΣ | AN65: S | AO65: α16 | AP65: 7 | AQ65: 57
X66: ΑΟ ΠΑΡΑΔΕΙΣΟΣ ΑΜΑΡΟΥΣΙΟΥ | Y66: 482 | Z66: Η | AD66: ΠΑΛΑΙΣΤΗ Ν | AF66: Ε1D-16-3_4 | AG66: 16 | AI66: 41362Ε1α (Θ)398Dα16 | AJ66: 2013-03-29 | AK66: Ε1α (Θ) | AL66: 398 | AM66: ΟΑ ΠΕΤΡΟΥΠΟΛΗΣ | AN66: D | AO66: α16 | AP66: 15 | AQ66: 58
X67: ΑΟ ΠΑΡΓΑΣ | Y67: 468 | Z67: Δ | AD67: ΠΑΛΑΙΣΤΗ Χ | AF67: Ε1D-16-5_8 | AG67: 10 | AI67: =AJ67&AK67&AL67&AN67&AO67 -> 41362Ε1α (Θ)398Sκ16 | AJ67: 2013-03-29 | AK67: Ε1α (Θ) | AL67: 398 | AM67: ΟΑ ΠΕΤΡΟΥΠΟΛΗΣ | AN67: S | AO67: κ16 | AP67: 11 | AQ67: 65
X68: ΑΟ ΠΕΥΚΗΣ TIE BREAK | Y68: 329 | Z68: Η | AD68: ΠΑΝΤΕΛΙΔΗΣ Σ | AF68: Ε1D-16-9_16 | AG68: 8 | AI68: 41362Ε1α (Θ)398Dκ16 | AJ68: 2013-03-29 | AK68: Ε1α (Θ) | AL68: 398 | AM68: ΟΑ ΠΕΤΡΟΥΠΟΛΗΣ | AN68: D | AO68: κ16 | AP68: 19 | AQ68: 66
X69: ΑΟ ΠΟΣΕΙΔΩΝ ΛΟΥΤΡΑΚΙΟΥ | Y69: 265 | Z69: ΣΤ | AD69: ΠΑΠΑΒΑΣΙΛΕΙΟΥ Χ | AF69: Ε1D-16-17_32 | AG69: 0 | AI69: 41365ITF (GD TENNIS)14Sα18 | AJ69: 2013-04-01 | AK69: ITF (GD TENNIS) | AL69: 14 | AM69: ITF | AN69: S | AO69: α18 | AP69: 8 | AQ69: 68
X70: ΑΟ ΣΙΚΥΩΝΟΣ ΚΙΑΤΟΥ | Y70: 266 | Z70: ΣΤ | AD70: ΠΑΠΑΝΙΚΟΛΑΟΥ Γ | AF70: Ε1D-16-wo | AG70: 0 | AI70: 41365TE (AEGEON)15Sα16 | AJ70: 2013-04-01 | AK70: TE (AEGEON) | AL70: 15 | AM70: Tennis Europe | AN70: S | AO70: α16 | AP70: 7 | AQ70: 69
X71: ΑΟ ΤΑΤΑΥΛΑ ΚΩΝΣΤ | Y71: 421 | Z71: ΙΑ | AD71: ΠΑΠΑΧΡΗΣΤΟΥ Δ | AF71: Ε1S-18-1st | AG71: 150 | AI71: 41365TE (ΑΣ ΑΚΡΟΠΟΛΙΣ)338Sα14 | AJ71: 2013-04-01 | AK71: TE (ΑΣ ΑΚΡΟΠΟΛΙΣ) | AL71: 338 | AM71: ΑΣ ΑΚΡΟΠΟΛΙΣ | AN71: S | AO71: α14 | AP71: 6 | AQ71: 70
X72: ΑΟ ΤΑΤΟΪΟΥ | Y72: 330 | Z72: Η | AD72: ΠΑΠΠΑΣ Α | AF72: Ε1S-18-2nd | AG72: 125 | AI72: 41365TE (ΑΣ ΑΚΡΟΠΟΛΙΣ)338Sκ14 | AJ72: 2013-04-01 | AK72: TE (ΑΣ ΑΚΡΟΠΟΛΙΣ) | AL72: 338 | AM72: ΑΣ ΑΚΡΟΠΟΛΙΣ | AN72: S | AO72: κ14 | AP72: 10 | AQ72: 71
X73: ΑΟ ΤΕΡΨΙΘΕΑΣ ΓΛΥΦΑΔΑΣ | Y73: 422 | Z73: ΙΑ | AD73: ΠΑΠΠΑΣ Π | AF73: Ε1S-18-3_4 | AG73: 75 | AI73: 41365TE (ΑΣ ΑΚΡΟΠΟΛΙΣ)338Dκ14 | AJ73: 2013-04-01 | AK73: TE (ΑΣ ΑΚΡΟΠΟΛΙΣ) | AL73: 338 | AM73: ΑΣ ΑΚΡΟΠΟΛΙΣ | AN73: D | AO73: κ14 | AP73: 18 | AQ73: 72
X74: ΑΟ ΦΙΛΙΠΠΟΣ ΠΟΛΥΔΡΟΣΟΥ | Y74: 331 | Z74: Η | AD74: ΠΑΤΡΙΚΙΟΣ Ν | AF74: Ε1S-18-5_8 | AG74: 50 | AI74: 41372TE (YASON)15Sα16 | AJ74: 2013-04-08 | AK74: TE (YASON) | AL74: 15 | AM74: Tennis Europe | AN74: S | AO74: α16 | AP74: 7 | AQ74: 73
X75: ΑΟ ΦΟΥΡΕΣΙ ΓΛ ΝΕΡΩΝ | Y75: 483 | Z75: Η | AD75: ΠΑΤΣΟΥΡΑΚΟΥ Δ | AF75: Ε1S-18-9_16 | AG75: 37.5 | AI75: 41372TE (YASON)15Dα16 | AJ75: 2013-04-08 | AK75: TE (YASON) | AL75: 15 | AM75: Tennis Europe | AN75: D | AO75: α16 | AP75: 15 | AQ75: 74
X76: ΑΟ ΧΡΥΣΟΥΠΟΛΗΣ | Y76: 104 | Z76: Α | AD76: ΠΕΡΝΑΓΚΙΔΗ Γ | AF76: Ε1S-18-17_32 | AG76: 25 | AI76: 41372TE (YASON)15Sκ16 | AJ76: 2013-04-08 | AK76: TE (YASON) | AL76: 15 | AM76: Tennis Europe | AN76: S | AO76: κ16 | AP76: 11 | AQ76: 75
X77: ΑΟΑ ΑΙΓΑΛΕΩ 92 | Y77: 373 | Z77: Θ | AD77: ΠΟΝΤΙΔΑΣ Α | AF77: Ε1S-18-q8 | AG77: 10 | AI77: 41372TE (YASON)15Dκ16 | AJ77: 2013-04-08 | AK77: TE (YASON) | AL77: 15 | AM77: Tennis Europe | AN77: D | AO77: κ16 | AP77: 19 | AQ77: 76
X78: ΑΟΑ ΑΛΕΞΑΝΔΡΟΣ Β | Y78: 333 | Z78: Η | AD78: ΠΡΑΣΙΝΟΣ Β | AF78: Ε1S-18-q16 | AG78: 10 | AI78: 41372TE (ΠΕΥΚΗ Γ ΚΑΛΟΒΕΛΩΝΗΣ)362Sα14 | AJ78: 2013-04-08 | AK78: TE (ΠΕΥΚΗ Γ ΚΑΛΟΒΕΛΩΝΗΣ) | AL78: 362 | AM78: ΠΕΥΚΗ Γ ΚΑΛΟΒΕΛΩΝΗΣ | AN78: S | AO78: α14 | AP78: 6 | AQ78: 77
X79: ΑΟΑ ΑΜΠΕΛ ΜΕΝΕΜΕΝΗΣ | Y79: 128 | Z79: Β | AD79: ΠΡΙΤΣΚΑΣ Π | AF79: Ε1S-18-q8/2 | AG79: 5 | AI79: 41372TE (ΠΕΥΚΗ Γ ΚΑΛΟΒΕΛΩΝΗΣ)362Dα14 | AJ79: 2013-04-08 | AK79: TE (ΠΕΥΚΗ Γ ΚΑΛΟΒΕΛΩΝΗΣ) | AL79: 362 | AM79: ΠΕΥΚΗ Γ ΚΑΛΟΒΕΛΩΝΗΣ | AN79: D | AO79: α14 | AP79: 14 | AQ79: 78
X80: ΑΟΑ ΑΡΓΥΡΟΥΠΟΛΗΣ | Y80: 423 | Z80: ΙΑ | AD80: ΣΑΚΚΑΣ Β | AF80: Ε1S-18-q32 | AG80: 5 | AI80: 41372TE (ΠΕΥΚΗ Γ ΚΑΛΟΒΕΛΩΝΗΣ)362Sκ14 | AJ80: 2013-04-08 | AK80: TE (ΠΕΥΚΗ Γ ΚΑΛΟΒΕΛΩΝΗΣ) | AL80: 362 | AM80: ΠΕΥΚΗ Γ ΚΑΛΟΒΕΛΩΝΗΣ | AN80: S | AO80: κ14 | AP80: 10 | AQ80: 79
X81: ΑΟΑ ΑΣΤΕΡΑΣ ΘΕΣ | Y81: 129 | Z81: Β | AD81: ΣΑΜΑΡΑ Ε | AF81: Ε1S-18-33_64 | AG81: 0 | AI81: 41377Ε3α (Α)2Sα12 | AJ81: 2013-04-13 | AK81: Ε3α (Α) | AL81: 2 | AM81: Α ΕΝΩΣΗ | AN81: S | AO81: α12 | AP81: 5 | AQ81: 80
X82: ΑΟΑ ΑΤΤΙΚΟΣ ΗΛΙΟΣ | Y82: 334 | Z82: Η | AD82: ΣΑΡΑΤΖΙΔΗΣ Δ | AF82: Ε1S-18-q | AG82: 0 | AI82: 41377Ε3α (Α)2Sα14 | AJ82: 2013-04-13 | AK82: Ε3α (Α) | AL82: 2 | AM82: Α ΕΝΩΣΗ | AN82: S | AO82: α14 | AP82: 6 | AQ82: 81
X83: ΑΟΑ ΔΗΜΟΥ ΕΛΕΥΘΕΡΩΝ | Y83: 105 | Z83: Α | AD83: ΣΑΧΠΑΤΖΙΔΗΣ Γ | AF83: Ε1S-18-q64 | AG83: 0 | AI83: 41377Ε3α (Α)2Sα16 | AJ83: 2013-04-13 | AK83: Ε3α (Α) | AL83: 2 | AM83: Α ΕΝΩΣΗ | AN83: S | AO83: α16 | AP83: 7 | AQ83: 82
X84: ΑΟΑ ΕΛΕΥΣΙΝΑΣ | Y84: 441 | Z84: Θ | AD84: ΣΙΑΠΑΤΗΣ Γ | AF84: Ε1S-18-q128 | AG84: 0 | AI84: 41377Ε3α (Α)2Sκ12 | AJ84: 2013-04-13 | AK84: Ε3α (Α) | AL84: 2 | AM84: Α ΕΝΩΣΗ | AN84: S | AO84: κ12 | AP84: 9 | AQ84: 83
X85: ΑΟΑ ΗΛΙΟΥΠΟΛΗΣ | Y85: 424 | Z85: ΙΑ | AD85: ΣΙΟΝΤΗ Η | AF85: Ε1S-18-q256 | AG85: 0 | AI85: 41377Ε3α (Α)2Sκ14 | AJ85: 2013-04-13 | AK85: Ε3α (Α) | AL85: 2 | AM85: Α ΕΝΩΣΗ | AN85: S | AO85: κ14 | AP85: 10 | AQ85: 84
X86: ΑΟΑ ΚΑΒΑΛΑΣ | Y86: 106 | Z86: Α | AD86: ΣΙΡΠΟΣ Π | AF86: Ε1S-18-wo | AG86: 0 | AI86: 41377Ε3α (Β)3Sα12 | AJ86: 2013-04-13 | AK86: Ε3α (Β) | AL86: 3 | AM86: Β ΕΝΩΣΗ | AN86: S | AO86: α12 | AP86: 5 | AQ86: 85
X87: ΑΟΑ ΚΑΒΟΥΡΙΟΥ | Y87: 442 | Z87: ΙΑ | AD87: ΣΚΟΥΡΤΙΑΣ Ε | AF87: Ε1D-18-1st | AG87: 37.5 | AI87: 41377Ε3α (Β)3Sα14 | AJ87: 2013-04-13 | AK87: Ε3α (Β) | AL87: 3 | AM87: Β ΕΝΩΣΗ | AN87: S | AO87: α14 | AP87: 6 | AQ87: 86
X88: ΑΟΑ ΚΑΙΣΑΡΙΑΝΗΣ | Y88: 390 | Z88: Θ | AD88: ΣΠΑΘΗΣ Μ | AF88: Ε1D-18-2nd | AG88: 32.5 | AI88: 41377Ε3α (Β)3Sα16 | AJ88: 2013-04-13 | AK88: Ε3α (Β) | AL88: 3 | AM88: Β ΕΝΩΣΗ | AN88: S | AO88: α16 | AP88: 7 | AQ88: 87
X89: ΑΟΑ ΚΑΣΤΟΡΙΑΣ | Y89: 463 | Z89: Γ | AD89: ΣΤΑΜΑΤΙΑΔΗΣ Γ | AF89: Ε1D-18-3_4 | AG89: 20 | AI89: 41377Ε3α (Β)3Sκ12 | AJ89: 2013-04-13 | AK89: Ε3α (Β) | AL89: 3 | AM89: Β ΕΝΩΣΗ | AN89: S | AO89: κ12 | AP89: 9 | AQ89: 88
X90: ΑΟΑ ΚΑΤΕΡΙΝΗΣ | Y90: 171 | Z90: Γ | AD90: ΣΤΑΜΑΤΙΑΔΟΥ Ε | AF90: Ε1D-18-5_8 | AG90: 12.5 | AI90: 41377Ε3α (Β)3Sκ14 | AJ90: 2013-04-13 | AK90: Ε3α (Β) | AL90: 3 | AM90: Β ΕΝΩΣΗ | AN90: S | AO90: κ14 | AP90: 10 | AQ90: 89
X91: ΑΟΑ ΚΟΖΑΝΗΣ | Y91: 464 | Z91: Γ | AD91: ΣΤΑΦΥΛΙΔΗΣ Α | AF91: Ε1D-18-9_16 | AG91: 10 | AI91: 41377Ε3α (Β)3Sκ16 | AJ91: 2013-04-13 | AK91: Ε3α (Β) | AL91: 3 | AM91: Β ΕΝΩΣΗ | AN91: S | AO91: κ16 | AP91: 11 | AQ91: 90
X92: ΑΟΑ ΛΕ ΡΑΚΕΤ | Y92: 130 | Z92: Β | AD92: ΣΤΕΦΑΝΙΔΗΣ Γ | AF92: Ε1D-18-wo | AG92: 0 | AI92: 41377Ε3α (Γ)4Sα12 | AJ92: 2013-04-13 | AK92: Ε3α (Γ) | AL92: 4 | AM92: Γ ΕΝΩΣΗ | AN92: S | AO92: α12 | AP92: 5 | AQ92: 91
X93: ΑΟΑ ΜΕΓΑΛΟΠΟΛΗΣ | Y93: 267 | Z93: ΣΤ | AD93: ΣΤΟΛΗ Κ | AF93: Ε1D-18-17_32 | AG93: 0 | AI93: 41377Ε3α (Γ)4Sα14 | AJ93: 2013-04-13 | AK93: Ε3α (Γ) | AL93: 4 | AM93: Γ ΕΝΩΣΗ | AN93: S | AO93: α14 | AP93: 6 | AQ93: 92
X94: ΑΟΑ Ν ΠΕΡΑΜΟΥ ΤΙΤΑΝΕΣ | Y94: 107 | Z94: Α | AD94: ΤΑΜΠΟΣΗ Τ | AF94: Ε2S-12-1st | AG94: 15 | AI94: 41377Ε3α (Γ)4Sα16 | AJ94: 2013-04-13 | AK94: Ε3α (Γ) | AL94: 4 | AM94: Γ ΕΝΩΣΗ | AN94: S | AO94: α16 | AP94: 7 | AQ94: 93
X95: ΑΟΑ ΠΑΠΑΓΟΥ | Y95: 425 | Z95: ΙΑ | AD95: ΤΑΡΑΜΟΝΛΗΣ Ι | AF95: Ε2S-12-2nd | AG95: 12.5 | AI95: 41377Ε3α (Γ)4Sκ12 | AJ95: 2013-04-13 | AK95: Ε3α (Γ) | AL95: 4 | AM95: Γ ΕΝΩΣΗ | AN95: S | AO95: κ12 | AP95: 9 | AQ95: 94
X96: ΑΟΑ ΠΑΤΡΩΝ | Y96: 268 | Z96: ΣΤ | AD96: ΤΖΙΓΚΟΥΝΑΚΗΣ Κ | AF96: Ε2S-12-3_4 | AG96: 7.5 | AI96: 41377Ε3α (Γ)4Sκ14 | AJ96: 2013-04-13 | AK96: Ε3α (Γ) | AL96: 4 | AM96: Γ ΕΝΩΣΗ | AN96: S | AO96: κ14 | AP96: 10 | AQ96: 95
X97: ΑΟΑ ΠΟΣΕΙΔΩΝ ΘΕΣ | Y97: 131 | Z97: Β | AD97: ΤΖΟΒΑΡΑΣ Ν | AF97: Ε2S-12-5_8 | AG97: 5 | AI97: 41377Ε3α (Γ)4Sκ16 | AJ97: 2013-04-13 | AK97: Ε3α (Γ) | AL97: 4 | AM97: Γ ΕΝΩΣΗ | AN97: S | AO97: κ16 | AP97: 11 | AQ97: 96
X98: ΑΟΑ ΠΡΩΤΑΘΛ ΚΑΒΑΛΑΣ | Y98: 108 | Z98: Α | AD98: ΤΟΚΑΤΛΙΔΗΣ Χ | AF98: Ε2S-12-9_16 | AG98: 4 | AI98: 41377Ε3α (Δ)5Sα12 | AJ98: 2013-04-13 | AK98: Ε3α (Δ) | AL98: 5 | AM98: Δ ΕΝΩΣΗ | AN98: S | AO98: α12 | AP98: 5 | AQ98: 97
X99: ΑΟΑ ΡΕΘΥΜΝΟ ΤΚ | Y99: 476 | Z99: Ζ | AD99: ΤΟΥΤΟΥΚΤΣΗΣ Ε | AF99: Ε2S-12-17_32 | AG99: 2.5 | AI99: 41377Ε3α (Δ)5Sα14 | AJ99: 2013-04-13 | AK99: Ε3α (Δ) | AL99: 5 | AM99: Δ ΕΝΩΣΗ | AN99: S | AO99: α14 | AP99: 6 | AQ99: 98
X100: ΑΟΑ ΣΤΑΥΡΟΥΠΟΛΗΣ ΙΦΙΤΟΣ | Y100: 132 | Z100: Β | AD100: ΤΡΙΚΚΑ-ΨΩΜΑ Δ | AF100: Ε2S-12-q8 | AG100: 1 | AI100: 41377Ε3α (Δ)5Sα16 | AJ100: 2013-04-13 | AK100: Ε3α (Δ) | AL100: 5 | AM100: Δ ΕΝΩΣΗ | AN100: S | AO100: α16 | AP100: 7 | AQ100: 99
X101: ΑΟΑ ΥΕΛΟΥ | Y101: 335 | Z101: Η | AD101: ΤΣΑΓΛΙΩΤΗΣ Ε | AF101: Ε2S-12-q16 | AG101: 1 | AI101: 41377Ε3α (Δ)5Sκ12 | AJ101: 2013-04-13 | AK101: Ε3α (Δ) | AL101: 5 | AM101: Δ ΕΝΩΣΗ | AN101: S | AO101: κ12 | AP101: 9 | AQ101: 100
X102: ΑΟΑ ΦΙΛΟΘΕΗΣ | Y102: 336 | Z102: Η | AD102: ΤΣΑΡΚΝΙΑΣ Π | AF102: Ε2S-12-q8/2 | AG102: 0.5 | AI102: 41377Ε3α (Δ)5Sκ14 | AJ102: 2013-04-13 | AK102: Ε3α (Δ) | AL102: 5 | AM102: Δ ΕΝΩΣΗ | AN102: S | AO102: κ14 | AP102: 10 | AQ102: 101
X103: ΑΟΑ Χ ΤΡΙΠΟΛΗΣ | Y103: 500 | Z103: ΣΤ | AD103: ΤΣΑΡΚΝΙΑΣ Σ | AF103: Ε2S-12-q32 | AG103: 0.5 | AI103: 41377Ε3α (Ε)6Sα12 | AJ103: 2013-04-13 | AK103: Ε3α (Ε) | AL103: 6 | AM103: Ε ΕΝΩΣΗ | AN103: S | AO103: α12 | AP103: 5 | AQ103: 102
X104: ΑΟΑ ΧΑΪΔΑΡΙΟΥ | Y104: 374 | Z104: Θ | AD104: ΤΣΙΑΡΤΑΣ Β | AF104: Ε2S-12-33_64 | AG104: 0 | AI104: 41377Ε3α (Ε)6Sα14 | AJ104: 2013-04-13 | AK104: Ε3α (Ε) | AL104: 6 | AM104: Ε ΕΝΩΣΗ | AN104: S | AO104: α14 | AP104: 6 | AQ104: 103
X105: ΑΠΜΣ ΑΣΚΗΣΗ ΗΡΑΚΛΕΙΟΥ | Y105: 302 | Z105: Ζ | AD105: ΤΣΟΥΛΦΑ Α | AF105: Ε2S-12-q | AG105: 0 | AI105: 41377Ε3α (Ε)6Sα16 | AJ105: 2013-04-13 | AK105: Ε3α (Ε) | AL105: 6 | AM105: Ε ΕΝΩΣΗ | AN105: S | AO105: α16 | AP105: 7 | AQ105: 104
X106: ΑΠΟ ΣΑΝΗ | Y106: 337 | Z106: Η | AD106: ΦΟΝΔΟΥΛΑΚΟΣ Μ | AF106: Ε2S-12-q64 | AG106: 0 | AI106: 41377Ε3α (Ε)6Sκ12 | AJ106: 2013-04-13 | AK106: Ε3α (Ε) | AL106: 6 | AM106: Ε ΕΝΩΣΗ | AN106: S | AO106: κ12 | AP106: 9 | AQ106: 105
X107: ΑΡΚΑΔΙΚΟΣ ΟΑ ΑΤΛΑΣ | Y107: 270 | Z107: ΣΤ | AD107: ΧΑΝΤΖΗΣ Δ | AF107: Ε2S-12-q128 | AG107: 0 | AI107: 41377Ε3α (Ε)6Sκ14 | AJ107: 2013-04-13 | AK107: Ε3α (Ε) | AL107: 6 | AM107: Ε ΕΝΩΣΗ | AN107: S | AO107: κ14 | AP107: 10 | AQ107: 106
X108: ΑΣ ΑΚΑΔ ΠΡΩΤΑΘΛ ΠΕΥΚΩΝ | Y108: 133 | Z108: Β | AD108: ΧΑΡΜΑΝΑΣ Α | AF108: Ε2S-12-q256 | AG108: 0 | AI108: 41377Ε3α (Ε)6Sκ16 | AJ108: 2013-04-13 | AK108: Ε3α (Ε) | AL108: 6 | AM108: Ε ΕΝΩΣΗ | AN108: S | AO108: κ16 | AP108: 11 | AQ108: 107
X109: ΑΣ ΑΚΡΟΠΟΛΙΣ | Y109: 338 | Z109: Η | AD109: ΧΑΤΖΗΜΕΝΤΩΡ Α | AF109: Ε2S-12-wo | AG109: 0 | AI109: 41377Ε3α (Ζ)8Sα12 | AJ109: 2013-04-13 | AK109: Ε3α (Ζ) | AL109: 8 | AM109: Ζ ΕΝΩΣΗ | AN109: S | AO109: α12 | AP109: 5 | AQ109: 108
X110: ΑΣ ΑΝΤΙΣΦΑΙΡΙΣΗ κ ΖΩΗ | Y110: 444 | Z110: Ε | AD110: ΧΡΙΣΤΟΠΟΥΛΟΣ Χ | AF110: Ε2D-12-1st | AG110: 4 | AI110: 41377Ε3α (Ζ)8Sα14 | AJ110: 2013-04-13 | AK110: Ε3α (Ζ) | AL110: 8 | AM110: Ζ ΕΝΩΣΗ | AN110: S | AO110: α14 | AP110: 6 | AQ110: 109
X111: ΑΣ ΑΠΟΛΛΩΝ ΚΑΛΥΜΝΟΥ | Y111: 375 | Z111: Θ | AD111: ΧΡΟΝΗ Ο | AF111: Ε2D-12-2nd | AG111: 3 | AI111: 41377Ε3α (Ζ)8Sα16 | AJ111: 2013-04-13 | AK111: Ε3α (Ζ) | AL111: 8 | AM111: Ζ ΕΝΩΣΗ | AN111: S | AO111: α16 | AP111: 7 | AQ111: 110
X112: ΑΣ ΑΣΤΕΡΑΣ ΠΕΝΤΕΛΙΚΟΥ | Y112: 484 | Z112: Η | AF112: Ε2D-12-3_4 | AG112: 2 | AI112: 41377Ε3α (Ζ)8Sκ12 | AJ112: 2013-04-13 | AK112: Ε3α (Ζ) | AL112: 8 | AM112: Ζ ΕΝΩΣΗ | AN112: S | AO112: κ12 | AP112: 9 | AQ112: 111
X113: ΑΣ ΒΑ ΚΥΝΟΥΡΙΑΣ ΑΙΟΛΟΣ | Y113: 271 | Z113: ΣΤ | AF113: Ε2D-12-5_8 | AG113: 1.5 | AI113: 41377Ε3α (Ζ)8Sκ14 | AJ113: 2013-04-13 | AK113: Ε3α (Ζ) | AL113: 8 | AM113: Ζ ΕΝΩΣΗ | AN113: S | AO113: κ14 | AP113: 10 | AQ113: 112
X114: ΑΣ ΒΕΡΟΙΑΣ ΗΜΑΘΙΩΝ | Y114: 173 | Z114: Γ | AF114: Ε2D-12-9_16 | AG114: 1 | AI114: 41377Ε3α (Η)9Sα12 | AJ114: 2013-04-13 | AK114: Ε3α (Η) | AL114: 9 | AM114: Η ΕΝΩΣΗ | AN114: S | AO114: α12 | AP114: 5 | AQ114: 113
X115: ΑΣ Δ ΚΟΛΛΕΓΙΟΥ ICBS 2009 | Y115: 134 | Z115: Β | AF115: Ε2D-12-17_32 | AG115: 0 | AI115: 41377Ε3α (Η)9Sα14 | AJ115: 2013-04-13 | AK115: Ε3α (Η) | AL115: 9 | AM115: Η ΕΝΩΣΗ | AN115: S | AO115: α14 | AP115: 6 | AQ115: 114
X116: ΑΣ Η ΠΑΡΝΗΘΑ | Y116: 376 | Z116: Θ | AF116: Ε2D-12-wo | AG116: 0 | AI116: 41377Ε3α (Η)9Sα16 | AJ116: 2013-04-13 | AK116: Ε3α (Η) | AL116: 9 | AM116: Η ΕΝΩΣΗ | AN116: S | AO116: α16 | AP116: 7 | AQ116: 115
X117: ΑΣ ΚΑΡΠΕΝΗΣΙ ΤΕΝΙΣ ΚΛΑΜΠ | Y117: 224 | Z117: Ε | AF117: Ε2S-14-1st | AG117: 30 | AI117: 41377Ε3α (Η)9Sκ12 | AJ117: 2013-04-13 | AK117: Ε3α (Η) | AL117: 9 | AM117: Η ΕΝΩΣΗ | AN117: S | AO117: κ12 | AP117: 9 | AQ117: 116
X118: ΑΣ ΚΟΛΛΕΓΙΟΥ ΝΤΕΡΗ | Y118: 340 | Z118: Η | AF118: Ε2S-14-2nd | AG118: 25 | AI118: 41377Ε3α (Η)9Sκ14 | AJ118: 2013-04-13 | AK118: Ε3α (Η) | AL118: 9 | AM118: Η ΕΝΩΣΗ | AN118: S | AO118: κ14 | AP118: 10 | AQ118: 117
X119: ΑΣ ΜΑΧΗΤΕΣ ΠΕΥΚΩΝ | Y119: 135 | Z119: Β | AF119: Ε2S-14-3_4 | AG119: 15 | AI119: 41377Ε3α (Η)9Sκ16 | AJ119: 2013-04-13 | AK119: Ε3α (Η) | AL119: 9 | AM119: Η ΕΝΩΣΗ | AN119: S | AO119: κ16 | AP119: 11 | AQ119: 118
X120: ΑΣ Ν ΒΟΥΤΖΑ ΠΡΟΟΔΟΣ | Y120: 341 | Z120: Η | AF120: Ε2S-14-5_8 | AG120: 10 | AI120: 41377Ε3α (Θ)10Sα12 | AJ120: 2013-04-13 | AK120: Ε3α (Θ) | AL120: 10 | AM120: Θ ΕΝΩΣΗ | AN120: S | AO120: α12 | AP120: 5 | AQ120: 119
X121: ΑΣ ΝΗΡΕΑΣ ΒΕΡΟΙΑΣ | Y121: 174 | Z121: Γ | AF121: Ε2S-14-9_16 | AG121: 7.5 | AI121: 41377Ε3α (Θ)10Sα14 | AJ121: 2013-04-13 | AK121: Ε3α (Θ) | AL121: 10 | AM121: Θ ΕΝΩΣΗ | AN121: S | AO121: α14 | AP121: 6 | AQ121: 120
X122: ΑΣ ΟΛΥΜΠ ΧΩΡΙΟΥ Ο ΦΟΙΒΟΣ | Y122: 377 | Z122: Θ | AF122: Ε2S-14-17_32 | AG122: 5 | AI122: 41377Ε3α (Θ)10Sα16 | AJ122: 2013-04-13 | AK122: Ε3α (Θ) | AL122: 10 | AM122: Θ ΕΝΩΣΗ | AN122: S | AO122: α16 | AP122: 7 | AQ122: 121
X123: ΑΣ ΟΡΦΕΑΣ ΛΑΡΙΣΑΣ | Y123: 225 | Z123: Ε | AF123: Ε2S-14-q8 | AG123: 2 | AI123: 41377Ε3α (Θ)10Sκ12 | AJ123: 2013-04-13 | AK123: Ε3α (Θ) | AL123: 10 | AM123: Θ ΕΝΩΣΗ | AN123: S | AO123: κ12 | AP123: 9 | AQ123: 122
X124: ΑΣ ΠΑΝΟΡΑΜΑ | Y124: 136 | Z124: Β | AF124: Ε2S-14-q16 | AG124: 2 | AI124: 41377Ε3α (Θ)10Sκ14 | AJ124: 2013-04-13 | AK124: Ε3α (Θ) | AL124: 10 | AM124: Θ ΕΝΩΣΗ | AN124: S | AO124: κ14 | AP124: 10 | AQ124: 123
X125: ΑΣ ΠΑΠΑΓΟΥ | Y125: 498 | Z125: ΙΑ | AF125: Ε2S-14-q8/2 | AG125: 1 | AI125: 41377Ε3α (Θ)10Sκ16 | AJ125: 2013-04-13 | AK125: Ε3α (Θ) | AL125: 10 | AM125: Θ ΕΝΩΣΗ | AN125: S | AO125: κ16 | AP125: 11 | AQ125: 124
X126: ΑΣ ΠΕΝΤΕΛΗΣ ΑΣΤΕΡΑΣ | Y126: 445 | Z126: Η | AF126: Ε2S-14-q32 | AG126: 1 | AI126: 41377Ε3α (ΙΑ)11Sα12 | AJ126: 2013-04-13 | AK126: Ε3α (ΙΑ) | AL126: 11 | AM126: ΙΑ ΕΝΩΣΗ | AN126: S | AO126: α12 | AP126: 5 | AQ126: 125
X127: ΑΣ ΠΕΡΑ | Y127: 427 | Z127: ΙΑ | AF127: Ε2S-14-33_64 | AG127: 0 | AI127: 41377Ε3α (ΙΑ)11Sα14 | AJ127: 2013-04-13 | AK127: Ε3α (ΙΑ) | AL127: 11 | AM127: ΙΑ ΕΝΩΣΗ | AN127: S | AO127: α14 | AP127: 6 | AQ127: 126
X128: ΑΣ ΠΙΕΡΙΑ ΤΕΝΙΣ | Y128: 465 | Z128: Γ | AF128: Ε2S-14-q | AG128: 0 | AI128: 41377Ε3α (ΙΑ)11Sα16 | AJ128: 2013-04-13 | AK128: Ε3α (ΙΑ) | AL128: 11 | AM128: ΙΑ ΕΝΩΣΗ | AN128: S | AO128: α16 | AP128: 7 | AQ128: 127
X129: ΑΣ ΣΠΑΡΤΑΚΟΣ ΓΛΥΦΑΔΑΣ | Y129: 428 | Z129: ΙΑ | AF129: Ε2S-14-q64 | AG129: 0 | AI129: 41377Ε3α (ΙΑ)11Sκ12 | AJ129: 2013-04-13 | AK129: Ε3α (ΙΑ) | AL129: 11 | AM129: ΙΑ ΕΝΩΣΗ | AN129: S | AO129: κ12 | AP129: 9 | AQ129: 128
X130: ΑΣ ΤΕΝΙΣ ΚΛΑΜΠ ΚΟΖΑΝΗΣ | Y130: 176 | Z130: Γ | AF130: Ε2S-14-q128 | AG130: 0 | AI130: 41377Ε3α (ΙΑ)11Sκ14 | AJ130: 2013-04-13 | AK130: Ε3α (ΙΑ) | AL130: 11 | AM130: ΙΑ ΕΝΩΣΗ | AN130: S | AO130: κ14 | AP130: 10 | AQ130: 129
X131: ΑΣ ΦΛΟΓΑ ΑΘΗΝΩΝ | Y131: 342 | Z131: Η | AF131: Ε2S-14-q256 | AG131: 0 | AI131: =AJ131&AK131&AL131&AN131&AO131 -> 41377Ε3α (ΙΑ)11Sκ16 | AJ131: 2013-04-13 | AK131: Ε3α (ΙΑ) | AL131: 11 | AM131: ΙΑ ΕΝΩΣΗ | AN131: S | AO131: κ16 | AP131: 11 | AQ131: 130
X132: ΑΣ ΦΠ ΑΝΑΠΛΑΣΗΣ ΦΕΡΕΝΙΚΟΣ | Y132: 343 | Z132: Η | AF132: Ε2S-14-wo | AG132: 0 | AI132: 41377Ε3α (ΣΤ)7Sα12 | AJ132: 2013-04-13 | AK132: Ε3α (ΣΤ) | AL132: 7 | AM132: ΣΤ ΕΝΩΣΗ | AN132: S | AO132: α12 | AP132: 5 | AQ132: 131
X133: ΑΣΑ ΑΓΡΙΝΙΟΥ | Y133: 209 | Z133: Δ | AF133: Ε2D-14-1st | AG133: 8 | AI133: 41377Ε3α (ΣΤ)7Sα14 | AJ133: 2013-04-13 | AK133: Ε3α (ΣΤ) | AL133: 7 | AM133: ΣΤ ΕΝΩΣΗ | AN133: S | AO133: α14 | AP133: 6 | AQ133: 132
X134: ΑΣΑ ΓΡΕΒΕΝΩΝ | Y134: 177 | Z134: Γ | AF134: Ε2D-14-2nd | AG134: 6 | AI134: 41377Ε3α (ΣΤ)7Sα16 | AJ134: 2013-04-13 | AK134: Ε3α (ΣΤ) | AL134: 7 | AM134: ΣΤ ΕΝΩΣΗ | AN134: S | AO134: α16 | AP134: 7 | AQ134: 133
X135: ΑΣΑ ΕΛΠΙΔΑ ΣΟΥΦΛΙΟΥ | Y135: 443 | Z135: Α | AF135: Ε2D-14-3_4 | AG135: 4 | AI135: 41377Ε3α (ΣΤ)7Sκ12 | AJ135: 2013-04-13 | AK135: Ε3α (ΣΤ) | AL135: 7 | AM135: ΣΤ ΕΝΩΣΗ | AN135: S | AO135: κ12 | AP135: 9 | AQ135: 134
X136: ΑΣΑ ΖΕΦΥΡΟΣ | Y136: 178 | Z136: Γ | AF136: Ε2D-14-5_8 | AG136: 3 | AI136: 41377Ε3α (ΣΤ)7Sκ14 | AJ136: 2013-04-13 | AK136: Ε3α (ΣΤ) | AL136: 7 | AM136: ΣΤ ΕΝΩΣΗ | AN136: S | AO136: κ14 | AP136: 10 | AQ136: 135
X137: ΑΣΑ ΘΕΣΣΑΛΟΝΙΚΗΣ | Y137: 165 | Z137: Β | AF137: Ε2D-14-9_16 | AG137: 2 | AI137: 41379TE (PECIN)15Sα16 | AJ137: 2013-04-15 | AK137: TE (PECIN) | AL137: 15 | AM137: Tennis Europe | AN137: S | AO137: α16 | AP137: 7 | AQ137: 136
X138: ΑΣΑ ΛΑΡΙΣΑΣ | Y138: 226 | Z138: Ε | AF138: Ε2D-14-17_32 | AG138: 0 | AI138: 41379TE (PECIN)15Sκ16 | AJ138: 2013-04-15 | AK138: TE (PECIN) | AL138: 15 | AM138: Tennis Europe | AN138: S | AO138: κ16 | AP138: 11 | AQ138: 137
X139: ΑΣΑ ΜΑΥΡΟΧΩΡΙΟΥ ΚΑΣΤΟΡΙΑΣ | Y139: 179 | Z139: Γ | AF139: Ε2D-14-wo | AG139: 0 | AI139: 41379TE (PECIN)15Dκ16 | AJ139: 2013-04-15 | AK139: TE (PECIN) | AL139: 15 | AM139: Tennis Europe | AN139: D | AO139: κ16 | AP139: 19 | AQ139: 138
X140: ΑΣΑ ΜΥΤΙΛΗΝΗΣ | Y140: 491 | Z140: Θ | AF140: Ε2S-16-1st | AG140: 60 | AI140: 41383Ε2β (Δ)204Sα12 | AJ140: 2013-04-19 | AK140: Ε2β (Δ) | AL140: 204 | AM140: ΑΓΟ ΦΙΛΙΠΠΙΑΔΑΣ | AN140: S | AO140: α12 | AP140: 5 | AQ140: 139
X141: ΑΣΑ ΠΑΜΒΩΤΙΣ ΙΩΑΝΝΙΝΩΝ | Y141: 210 | Z141: Δ | AF141: Ε2S-16-2nd | AG141: 50 | AI141: 41383Ε2β (Δ)204Dα12 | AJ141: 2013-04-19 | AK141: Ε2β (Δ) | AL141: 204 | AM141: ΑΓΟ ΦΙΛΙΠΠΙΑΔΑΣ | AN141: D | AO141: α12 | AP141: 13 | AQ141: 140
X142: ΑΣΑ ΠΑΝΟΡΑΜΑΤΟΣ ΠΥΛΑΙΑΣ | Y142: 137 | Z142: Β | AF142: Ε2S-16-3_4 | AG142: 30 | AI142: 41383Ε2β (Δ)204Sκ12 | AJ142: 2013-04-19 | AK142: Ε2β (Δ) | AL142: 204 | AM142: ΑΓΟ ΦΙΛΙΠΠΙΑΔΑΣ | AN142: S | AO142: κ12 | AP142: 9 | AQ142: 145
X143: ΑΣΑ ΤΡΙΚΑΛΩΝ | Y143: 508 | Z143: Ε | AF143: Ε2S-16-5_8 | AG143: 20 | AI143: 41383Ε2β (Δ)204Dκ12 | AJ143: 2013-04-19 | AK143: Ε2β (Δ) | AL143: 204 | AM143: ΑΓΟ ΦΙΛΙΠΠΙΑΔΑΣ | AN143: D | AO143: κ12 | AP143: 17 | AQ143: 146
X144: ΑΣΑ ΩΡΩΠΟΥ | Y144: 344 | Z144: Η | AF144: Ε2S-16-9_16 | AG144: 16 | AI144: 41383Ε2β (Δ)219Sα14 | AJ144: 2013-04-19 | AK144: Ε2β (Δ) | AL144: 219 | AM144: ΟΑ ΙΩΑΝΝΙΝΩΝ | AN144: S | AO144: α14 | AP144: 6 | AQ144: 141
X145: ΑΣΕ ΘΗΣΕΑΣ ΑΓ ΔΗΜΗΤΡΙΟΥ | Y145: 417 | Z145: ΙΑ | AF145: Ε2S-16-17_32 | AG145: 10 | AI145: 41383Ε2β (Δ)219Dα14 | AJ145: 2013-04-19 | AK145: Ε2β (Δ) | AL145: 219 | AM145: ΟΑ ΙΩΑΝΝΙΝΩΝ | AN145: D | AO145: α14 | AP145: 14 | AQ145: 142
X146: ΑΤ ΧΟΛΑΡΓΟΥ | Y146: 429 | Z146: ΙΑ | AF146: Ε2S-16-q8 | AG146: 4 | AI146: 41383Ε2β (Δ)219Sα16 | AJ146: 2013-04-19 | AK146: Ε2β (Δ) | AL146: 219 | AM146: ΟΑ ΙΩΑΝΝΙΝΩΝ | AN146: S | AO146: α16 | AP146: 7 | AQ146: 143
X147: ΑΧΑΪΚΟΣ ΟΑ | Y147: 502 | Z147: ΣΤ | AF147: Ε2S-16-q16 | AG147: 4 | AI147: 41383Ε2β (Δ)219Dα16 | AJ147: 2013-04-19 | AK147: Ε2β (Δ) | AL147: 219 | AM147: ΟΑ ΙΩΑΝΝΙΝΩΝ | AN147: D | AO147: α16 | AP147: 15 | AQ147: 144
X148: ΑΨΛ ΑΓ ΓΕΩΡΓΙΟΥ ΗΣΙΟΔΟΣ | Y148: 227 | Z148: Ε | AF148: Ε2S-16-q8/2 | AG148: 2 | AI148: 41383Ε2β (Δ)219Sκ14 | AJ148: 2013-04-19 | AK148: Ε2β (Δ) | AL148: 219 | AM148: ΟΑ ΙΩΑΝΝΙΝΩΝ | AN148: S | AO148: κ14 | AP148: 10 | AQ148: 147
X149: ΑΨΛ ΜΕΔΕΩΝ | Y149: 228 | Z149: Ε | AF149: Ε2S-16-q32 | AG149: 2 | AI149: 41383Ε2β (Δ)219Dκ14 | AJ149: 2013-04-19 | AK149: Ε2β (Δ) | AL149: 219 | AM149: ΟΑ ΙΩΑΝΝΙΝΩΝ | AN149: D | AO149: κ14 | AP149: 18 | AQ149: 148
X150: ΓΑΕ ΤΡΙΦΥΛΙΑΣ ΚΥΠΑΡΙΣΣΕΥΣ | Y150: 273 | Z150: ΣΤ | AF150: Ε2S-16-33_64 | AG150: 0 | AI150: 41383Ε2β (Δ)219Sκ16 | AJ150: 2013-04-19 | AK150: Ε2β (Δ) | AL150: 219 | AM150: ΟΑ ΙΩΑΝΝΙΝΩΝ | AN150: S | AO150: κ16 | AP150: 11 | AQ150: 149
X151: ΓΑΣ ΑΛΕΞΑΝΔΡΕΙΑ | Y151: 466 | Z151: Γ | AF151: Ε2S-16-q | AG151: 0 | AI151: 41383Ε2β (Δ)219Dκ16 | AJ151: 2013-04-19 | AK151: Ε2β (Δ) | AL151: 219 | AM151: ΟΑ ΙΩΑΝΝΙΝΩΝ | AN151: D | AO151: κ16 | AP151: 19 | AQ151: 150
X152: ΓΑΣ ΓΟΥΡΝΩΝ | Y152: 303 | Z152: Ζ | AF152: Ε2S-16-q64 | AG152: 0 | AI152: 41383Ε2β (Ε)256Sα12 | AJ152: 2013-04-19 | AK152: Ε2β (Ε) | AL152: 256 | AM152: ΦΘΙΩΤΙΚΟΣ ΟΑ | AN152: S | AO152: α12 | AP152: 5 | AQ152: 151
X153: ΓΑΣ ΘΥΕΛΛΑ ΦΕΡΩΝ | Y153: 109 | Z153: Α | AF153: Ε2S-16-q128 | AG153: 0 | AI153: 41383Ε2β (Ε)256Dα12 | AJ153: 2013-04-19 | AK153: Ε2β (Ε) | AL153: 256 | AM153: ΦΘΙΩΤΙΚΟΣ ΟΑ | AN153: D | AO153: α12 | AP153: 13 | AQ153: 152
X154: ΓΑΣ ΚΑΡΑΤΕ ΕΡΜΗΣ | Y154: 181 | Z154: Γ | AF154: Ε2S-16-q256 | AG154: 0 | AI154: 41383Ε2β (Ε)256Sα16 | AJ154: 2013-04-19 | AK154: Ε2β (Ε) | AL154: 256 | AM154: ΦΘΙΩΤΙΚΟΣ ΟΑ | AN154: S | AO154: α16 | AP154: 7 | AQ154: 155
X155: ΓΑΣ ΜΑΓΝΗΣΙΑΣ | Y155: 229 | Z155: Ε | AF155: Ε2S-16-wo | AG155: 0 | AI155: 41383Ε2β (Ε)256Dα16 | AJ155: 2013-04-19 | AK155: Ε2β (Ε) | AL155: 256 | AM155: ΦΘΙΩΤΙΚΟΣ ΟΑ | AN155: D | AO155: α16 | AP155: 15 | AQ155: 156
X156: ΓΑΣ ΝΙΓΡΙΤΑΣ ΒΙΣΑΛΤΗΣ | Y156: 453 | Z156: Α | AF156: Ε2D-16-1st | AG156: 16 | AI156: 41383Ε2β (Ε)256Sκ12 | AJ156: 2013-04-19 | AK156: Ε2β (Ε) | AL156: 256 | AM156: ΦΘΙΩΤΙΚΟΣ ΟΑ | AN156: S | AO156: κ12 | AP156: 9 | AQ156: 157
X157: ΓΕ ΑΡΓΟΛΙΔΑΣ | Y157: 503 | Z157: ΣΤ | AF157: Ε2D-16-2nd | AG157: 12 | AI157: 41383Ε2β (Ε)256Dκ12 | AJ157: 2013-04-19 | AK157: Ε2β (Ε) | AL157: 256 | AM157: ΦΘΙΩΤΙΚΟΣ ΟΑ | AN157: D | AO157: κ12 | AP157: 17 | AQ157: 158
X158: ΓΕ ΑΤΑΛΑΝΤΗΣ | Y158: 471 | Z158: Ε | AF158: Ε2D-16-3_4 | AG158: 8 | AI158: 41383Ε2β (Ε)256Sκ16 | AJ158: 2013-04-19 | AK158: Ε2β (Ε) | AL158: 256 | AM158: ΦΘΙΩΤΙΚΟΣ ΟΑ | AN158: S | AO158: κ16 | AP158: 11 | AQ158: 161
X159: ΓΕ ΛΑΡΙΣΑΣ | Y159: 472 | Z159: Ε | AF159: Ε2D-16-5_8 | AG159: 6 | AI159: 41383Ε2β (Ε)244Sα14 | AJ159: 2013-04-19 | AK159: Ε2β (Ε) | AL159: 244 | AM159: ΟΑ ΜΑΓΝΗΣΙΑΣ | AN159: S | AO159: α14 | AP159: 6 | AQ159: 153
X160: ΓΕ ΠΡΕΒΕΖΑΣ | Y160: 211 | Z160: Δ | AF160: Ε2D-16-9_16 | AG160: 4 | AI160: 41383Ε2β (Ε)244Dα14 | AJ160: 2013-04-19 | AK160: Ε2β (Ε) | AL160: 244 | AM160: ΟΑ ΜΑΓΝΗΣΙΑΣ | AN160: D | AO160: α14 | AP160: 14 | AQ160: 154
X161: ΓΟ ΠΕΡΙΣΤΕΡΙΟΥ ΠΑΛΑΣΚΑΣ | Y161: 379 | Z161: Θ | AF161: Ε2D-16-17_32 | AG161: 0 | AI161: 41383Ε2β (Ε)244Sκ14 | AJ161: 2013-04-19 | AK161: Ε2β (Ε) | AL161: 244 | AM161: ΟΑ ΜΑΓΝΗΣΙΑΣ | AN161: S | AO161: κ14 | AP161: 10 | AQ161: 159
X162: ΓΣ ΑΜΦΙΑΛΗΣ ΦΕΙΔΙΠΠΙΔΗΣ | Y162: 492 | Z162: Θ | AF162: Ε2D-16-wo | AG162: 0 | AI162: 41383Ε2β (Ε)244Dκ14 | AJ162: 2013-04-19 | AK162: Ε2β (Ε) | AL162: 244 | AM162: ΟΑ ΜΑΓΝΗΣΙΑΣ | AN162: D | AO162: κ14 | AP162: 18 | AQ162: 160
X163: ΓΣ ΑΠΟΛΛΩΝ ΠΥΡΓΟΥ | Y163: 504 | Z163: ΣΤ | AF163: Ε2S-18-1st | AG163: 0 | AI163: 41383Ε2β (Η)360Sα12 | AJ163: 2013-04-19 | AK163: Ε2β (Η) | AL163: 360 | AM163: ΟΑ ΣΥΡΟΥ | AN163: S | AO163: α12 | AP163: 5 | AQ163: 162
X164: ΓΣ ΕΛΕΥΘ ΚΟΡΔ ΑΡΓΟΝΑΥΤΕΣ | Y164: 138 | Z164: Β | AF164: Ε2S-18-2nd | AG164: 0 | AI164: 41383Ε2β (Η)360Dα12 | AJ164: 2013-04-19 | AK164: Ε2β (Η) | AL164: 360 | AM164: ΟΑ ΣΥΡΟΥ | AN164: D | AO164: α12 | AP164: 13 | AQ164: 163
X165: ΓΣ ΗΛΙΟΥΠΟΛΗΣ | Y165: 430 | Z165: ΙΑ | AF165: Ε2S-18-3_4 | AG165: 0 | AI165: 41383Ε2β (Η)360Sκ12 | AJ165: 2013-04-19 | AK165: Ε2β (Η) | AL165: 360 | AM165: ΟΑ ΣΥΡΟΥ | AN165: S | AO165: κ12 | AP165: 9 | AQ165: 166
X166: ΓΣ ΙΤΕΑΣ | Y166: 232 | Z166: Ε | AF166: Ε2S-18-5_8 | AG166: 0 | AI166: 41383Ε2β (Η)360Dκ12 | AJ166: 2013-04-19 | AK166: Ε2β (Η) | AL166: 360 | AM166: ΟΑ ΣΥΡΟΥ | AN166: D | AO166: κ12 | AP166: 17 | AQ166: 167
X167: ΓΣ ΚΗΦΙΣΙΑΣ | Y167: 345 | Z167: Η | AF167: Ε2S-18-9_16 | AG167: 0 | AI167: 41383Ε2β (Η)359Sα14 | AJ167: 2013-04-19 | AK167: Ε2β (Η) | AL167: 359 | AM167: ΟΑ ΠΑΡΟΥ | AN167: S | AO167: α14 | AP167: 6 | AQ167: 164
X168: ΓΣ ΚΟΡΩΠΙΟΥ | Y168: 346 | Z168: Η | AF168: Ε2S-18-17_32 | AG168: 0 | AI168: 41383Ε2β (Η)359Dα14 | AJ168: 2013-04-19 | AK168: Ε2β (Η) | AL168: 359 | AM168: ΟΑ ΠΑΡΟΥ | AN168: D | AO168: α14 | AP168: 14 | AQ168: 165
X169: ΓΣ ΛΙΒΥΚΟΣ ΙΕΡΑΠΕΤΡΑΣ | Y169: 304 | Z169: Ζ | AF169: Ε2S-18-q8 | AG169: 0 | AI169: 41383Ε2β (Η)359Sκ14 | AJ169: 2013-04-19 | AK169: Ε2β (Η) | AL169: 359 | AM169: ΟΑ ΠΑΡΟΥ | AN169: S | AO169: κ14 | AP169: 10 | AQ169: 168
X170: ΓΣ Ν ΙΩΝΙΑΣ ΑΤΤΙΚΗΣ | Y170: 381 | Z170: Θ | AF170: Ε2S-18-q16 | AG170: 0 | AI170: 41383Ε2β (Η)359Dκ14 | AJ170: 2013-04-19 | AK170: Ε2β (Η) | AL170: 359 | AM170: ΟΑ ΠΑΡΟΥ | AN170: D | AO170: κ14 | AP170: 18 | AQ170: 169
X171: ΓΣ ΣΑΛΑΜΙΝΑΣ | Y171: 493 | Z171: Θ | AF171: Ε2S-18-q8/2 | AG171: 0 | AI171: 41386TE (HERODOTOU)15Sα16 | AJ171: 2013-04-22 | AK171: TE (HERODOTOU) | AL171: 15 | AM171: Tennis Europe | AN171: S | AO171: α16 | AP171: 7 | AQ171: 170
X172: ΓΣ ΩΡΩΠΟΥ | Y172: 485 | Z172: Η | AF172: Ε2S-18-q32 | AG172: 0 | AI172: 41386TE (HERODOTOU)15Dα16 | AJ172: 2013-04-22 | AK172: TE (HERODOTOU) | AL172: 15 | AM172: Tennis Europe | AN172: D | AO172: α16 | AP172: 15 | AQ172: 171
X173: ΔΑΣ ΑΝΩ ΛΙΟΣΙΩΝ | Y173: 383 | Z173: Θ | AF173: Ε2S-18-33_64 | AG173: 0 | AI173: 41386TE (TALENTUM)15Sα16 | AJ173: 2013-04-22 | AK173: TE (TALENTUM) | AL173: 15 | AM173: Tennis Europe | AN173: S | AO173: α16 | AP173: 7 | AQ173: 172
X174: ΕΑΟ ΗΛΙΣ | Y174: 384 | Z174: Θ | AF174: Ε2S-18-q | AG174: 0 | AI174: 41386TE (TALENTUM)15Dα16 | AJ174: 2013-04-22 | AK174: TE (TALENTUM) | AL174: 15 | AM174: Tennis Europe | AN174: D | AO174: α16 | AP174: 15 | AQ174: 173
X175: ΕΑΣ ΛΑΚΚΑΣ ΣΥΜΠΟΛΙΤΕΙΑΣ | Y175: 276 | Z175: ΣΤ | AF175: Ε2S-18-q64 | AG175: 0 | AI175: 41386TE (TIRANA)15Sα14 | AJ175: 2013-04-22 | AK175: TE (TIRANA) | AL175: 15 | AM175: Tennis Europe | AN175: S | AO175: α14 | AP175: 6 | AQ175: 174
X176: ΕΑΣ ΟΛΥΜΠΙΑΔΑ | Y176: 139 | Z176: Β | AF176: Ε2S-18-q128 | AG176: 0 | AI176: 41386TE (TIRANA)15Dα14 | AJ176: 2013-04-22 | AK176: TE (TIRANA) | AL176: 15 | AM176: Tennis Europe | AN176: D | AO176: α14 | AP176: 14 | AQ176: 175
X177: ΕΑΣΑ ΘΕΣΣΑΛΙΚΟΣ | Y177: 473 | Z177: Ε | AF177: Ε2S-18-q256 | AG177: 0 | AI177: 41386TE (TIRANA)15Sκ14 | AJ177: 2013-04-22 | AK177: TE (TIRANA) | AL177: 15 | AM177: Tennis Europe | AN177: S | AO177: κ14 | AP177: 10 | AQ177: 176
X178: ΕΑΤΕΚ ΕΛΛ ΚΟΛΛΕΓΙΟΥ | Y178: 140 | Z178: Β | AF178: Ε2S-18-wo | AG178: 0 | AI178: 41390Ε1β (Ε)245Sα18 | AJ178: 2013-04-26 | AK178: Ε1β (Ε) | AL178: 245 | AM178: ΟΑ ΝΙΚΑΙΑ ΛΑΡΙΣΑΣ | AN178: S | AO178: α18 | AP178: 8 | AQ178: 177
X179: ΕΑΦΩ ΝΤΕΚΡΟΛΙ | Y179: 459 | Z179: Β | AF179: Ε2D-18-1st | AG179: 0 | AI179: 41390Ε1β (Ε)245Dα18 | AJ179: 2013-04-26 | AK179: Ε1β (Ε) | AL179: 245 | AM179: ΟΑ ΝΙΚΑΙΑ ΛΑΡΙΣΑΣ | AN179: D | AO179: α18 | AP179: 16 | AQ179: 178
X180: ΕΕΠΚΑ ΕΥΡΩΪΔΕΑ ΚΑΡΔΙΤΣΑΣ | Y180: 474 | Z180: Ε | AF180: Ε2D-18-2nd | AG180: 0 | AI180: 41390Ε1β (Ε)245Sκ18 | AJ180: 2013-04-26 | AK180: Ε1β (Ε) | AL180: 245 | AM180: ΟΑ ΝΙΚΑΙΑ ΛΑΡΙΣΑΣ | AN180: S | AO180: κ18 | AP180: 12 | AQ180: 179
X181: ΕΘΝΙΚΟΣ ΠΑΝΟΡΑΜΑΤΟΣ 2005 | Y181: 460 | Z181: Β | AF181: Ε2D-18-3_4 | AG181: 0 | AI181: 41390Ε1β (Ε)245Dκ18 | AJ181: 2013-04-26 | AK181: Ε1β (Ε) | AL181: 245 | AM181: ΟΑ ΝΙΚΑΙΑ ΛΑΡΙΣΑΣ | AN181: D | AO181: κ18 | AP181: 20 | AQ181: 180
X182: ΕΣΟ ΕΠΙΚΟΥΡΟΣ ΠΟΛΙΧΝΗΣ | Y182: 143 | Z182: Β | AF182: Ε2D-18-5_8 | AG182: 0 | AI182: 41393TE (FAMAGUSTA)15Sα16 | AJ182: 2013-04-29 | AK182: TE (FAMAGUSTA) | AL182: 15 | AM182: Tennis Europe | AN182: S | AO182: α16 | AP182: 7 | AQ182: 181
X183: ΕΦΤ ΑΙΟΛΙΚΗ | Y183: 144 | Z183: Β | AF183: Ε2D-18-9_16 | AG183: 0 | AI183: 41393TE (FAMAGUSTA)15Dα16 | AJ183: 2013-04-29 | AK183: TE (FAMAGUSTA) | AL183: 15 | AM183: Tennis Europe | AN183: D | AO183: α16 | AP183: 15 | AQ183: 182
X184: ΖΑΚΥΝΘΙΝΟΣ ΑΟ | Y184: 505 | Z184: ΣΤ | AF184: Ε2D-18-wo | AG184: 0 | AI184: 41393TE (FAMAGUSTA)15Sκ16 | AJ184: 2013-04-29 | AK184: TE (FAMAGUSTA) | AL184: 15 | AM184: Tennis Europe | AN184: S | AO184: κ16 | AP184: 11 | AQ184: 183
X185: ΖΑΚΥΝΘΙΝΟΣ ΑΟΑ | Y185: 278 | Z185: ΣΤ | AF185: Ε2D-18-17_32 | AG185: 0 | AI185: 41393TE (STANLEY)15Sα14 | AJ185: 2013-04-29 | AK185: TE (STANLEY) | AL185: 15 | AM185: Tennis Europe | AN185: S | AO185: α14 | AP185: 6 | AQ185: 184
X186: ΗΠΕΙΡΩΤΙΚΟΣ ΣΑ ΙΩΑΝΝΙΝΩΝ | Y186: 469 | Z186: Δ | AF186: Ε3S-12-1st | AG186: 9 | AI186: 41400ITF (METERRANEAN)14Sα18 | AJ186: 2013-05-06 | AK186: ITF (METERRANEAN) | AL186: 14 | AM186: ITF | AN186: S | AO186: α18 | AP186: 8 | AQ186: 185
X187: ΗΡΑΚΛΕΙΟ ΟΑΑ | Y187: 305 | Z187: Ζ | AF187: Ε3S-12-2nd | AG187: 7.5 | AI187: 41400ITF (METERRANEAN)14Dα18 | AJ187: 2013-05-06 | AK187: ITF (METERRANEAN) | AL187: 14 | AM187: ITF | AN187: D | AO187: α18 | AP187: 16 | AQ187: 186
X188: ΙΚΑΡΟΣ Ν ΣΜΥΡΝΗΣ | Y188: 446 | Z188: ΙΑ | AF188: Ε3S-12-3_4 | AG188: 4.5 | AI188: 41400TE (ELEON TENNIS)15Sα16 | AJ188: 2013-05-06 | AK188: TE (ELEON TENNIS) | AL188: 15 | AM188: Tennis Europe | AN188: S | AO188: α16 | AP188: 7 | AQ188: 187
X189: ΚΑ ΑΓΡΙΝΙΟΥ | Y189: 213 | Z189: Δ | AF189: Ε3S-12-5_8 | AG189: 3 | AI189: 41400TE (ELEON TENNIS)15Dα16 | AJ189: 2013-05-06 | AK189: TE (ELEON TENNIS) | AL189: 15 | AM189: Tennis Europe | AN189: D | AO189: α16 | AP189: 15 | AQ189: 188
X190: ΚΕΝΤΡΟ ΑΝΤΙΣΦ ΛΙΒΑΔΕΙΑΣ | Y190: 235 | Z190: Ε | AF190: Ε3S-12-9_16 | AG190: 2.4 | AI190: 41400TE (ELEON TENNIS)15Sκ16 | AJ190: 2013-05-06 | AK190: TE (ELEON TENNIS) | AL190: 15 | AM190: Tennis Europe | AN190: S | AO190: κ16 | AP190: 11 | AQ190: 189
X191: ΚΕΡΚΥΡΑΪΚΗ ΑΚΑΔ ΤΕΝΝΙΣ | Y191: 214 | Z191: Δ | AF191: Ε3S-12-17_32 | AG191: 1.5 | AI191: 41401Ε1β (Β)151Sα12 | AJ191: 2013-05-07 | AK191: Ε1β (Β) | AL191: 151 | AM191: ΟΑ ΘΕΣΣΑΛΟΝΙΚΗΣ | AN191: S | AO191: α12 | AP191: 5 | AQ191: 190
X192: ΚΕΡΚΥΡΑΪΚΗ ΛΤ | Y192: 215 | Z192: Δ | AF192: Ε3S-12-33_64 | AG192: 0.5 | AI192: 41401Ε1β (Β)151Dα12 | AJ192: 2013-05-07 | AK192: Ε1β (Β) | AL192: 151 | AM192: ΟΑ ΘΕΣΣΑΛΟΝΙΚΗΣ | AN192: D | AO192: α12 | AP192: 13 | AQ192: 191
X193: ΚΕΦΑΛΛΗΝΙΑΚΟΣ ΟΑ | Y193: 279 | Z193: ΣΤ | AF193: Ε3S-12-65_128 | AG193: 0 | AI193: 41401Ε1β (Β)151Sα14 | AJ193: 2013-05-07 | AK193: Ε1β (Β) | AL193: 151 | AM193: ΟΑ ΘΕΣΣΑΛΟΝΙΚΗΣ | AN193: S | AO193: α14 | AP193: 6 | AQ193: 192
X194: Λ ΠΟΛΙΤΙΣΜΟΥ ΦΛΩΡΙΝΑΣ | Y194: 182 | Z194: Γ | AF194: Ε3S-12-q8 | AG194: 0 | AI194: 41401Ε1β (Β)151Dα14 | AJ194: 2013-05-07 | AK194: Ε1β (Β) | AL194: 151 | AM194: ΟΑ ΘΕΣΣΑΛΟΝΙΚΗΣ | AN194: D | AO194: α14 | AP194: 14 | AQ194: 193
X195: ΛΑ ΚΟΜΟΤΗΝΗΣ | Y195: 454 | Z195: Α | AF195: Ε3S-12-q16 | AG195: 0 | AI195: =AJ195&AK195&AL195&AN195&AO195 -> 41401Ε1β (Β)151Sα16 | AJ195: 2013-05-07 | AK195: Ε1β (Β) | AL195: 151 | AM195: ΟΑ ΘΕΣΣΑΛΟΝΙΚΗΣ | AN195: S | AO195: α16 | AP195: 7 | AQ195: 194
X196: ΛΑΡΙΣΑΪΚΟΣ ΟΑ | Y196: 236 | Z196: Ε | AF196: Ε3S-12-q32 | AG196: 0 | AI196: 41401Ε1β (Β)151Dα16 | AJ196: 2013-05-07 | AK196: Ε1β (Β) | AL196: 151 | AM196: ΟΑ ΘΕΣΣΑΛΟΝΙΚΗΣ | AN196: D | AO196: α16 | AP196: 15 | AQ196: 195
X197: ΜΑΣ ΑΕΤΟΣ ΘΕΣ | Y197: 145 | Z197: Β | AF197: Ε3S-12-q64 | AG197: 0 | AI197: 41401Ε1β (Β)151Sκ12 | AJ197: 2013-05-07 | AK197: Ε1β (Β) | AL197: 151 | AM197: ΟΑ ΘΕΣΣΑΛΟΝΙΚΗΣ | AN197: S | AO197: κ12 | AP197: 9 | AQ197: 196
X198: ΜΑΣ ΑΤΡΟΜΗΤΟΣ ΤΡΙΑΔΙΟΥ | Y198: 146 | Z198: Β | AF198: Ε3S-12-q128 | AG198: 0 | AI198: 41401Ε1β (Β)151Dκ12 | AJ198: 2013-05-07 | AK198: Ε1β (Β) | AL198: 151 | AM198: ΟΑ ΘΕΣΣΑΛΟΝΙΚΗΣ | AN198: D | AO198: κ12 | AP198: 17 | AQ198: 197
X199: ΜΓΣ ΑΠΟΛΛΩΝ ΚΑΛΑΜΑΡΙΑΣ | Y199: 147 | Z199: Β | AF199: Ε3S-12-q256 | AG199: 0 | AI199: 41401Ε1β (Β)151Sκ14 | AJ199: 2013-05-07 | AK199: Ε1β (Β) | AL199: 151 | AM199: ΟΑ ΘΕΣΣΑΛΟΝΙΚΗΣ | AN199: S | AO199: κ14 | AP199: 10 | AQ199: 198
X200: ΝΑΣΠ ΑΙΟΛΟΣ ΜΥΤΙΛΗΝΗΣ | Y200: 494 | Z200: Θ | AF200: Ε3S-12-wo | AG200: 0 | AI200: 41401Ε1β (Β)151Dκ14 | AJ200: 2013-05-07 | AK200: Ε1β (Β) | AL200: 151 | AM200: ΟΑ ΘΕΣΣΑΛΟΝΙΚΗΣ | AN200: D | AO200: κ14 | AP200: 18 | AQ200: 199
... 2050 more rows

Sheet matches (hidden)
A1: round | B1: W-ID | C1: winner | D1: L-ID | E1: looser | F1: score | H1: Player | I1: Position | K1: Set-up | N1: draw# | O1: organizer | P1: club | Q1: title | R1: category | S1: drawSize
A2: 32 | B2: =IF(OR(MD!$M$5 =1,MD!$M$5 =2), IF(MD!$M$5 =1,MD!$I$5,MD!$I$6),"#") -> 41418 | C2: =TRIM(LEFT(VLOOKUP(B2,ALMD!$C$3:$D$34,2,FALSE),FIND(" ",VLOOKUP(B2,ALMD!$C$3:$D$34,2,FALSE),1)-1)) -> ΚΑΡΑΝΤΑΛΗΣ | D2: =IF(OR(MD!$M$5 =1,MD!$M$5 =2), IF(MD!$M$5 =2,MD!$I$5,MD!$I$6),"#") -> 0 | E2: =TRIM(LEFT(VLOOKUP(D2,ALMD!$C$3:$D$34,2,FALSE),FIND(" ",VLOOKUP(D2,ALMD!$C$3:$D$34,2,FALSE),1)-1)) ->  | F2: =MD!O6 -> 0 | H2: =B32 -> # | I2: 1st | K2: organizer: | L2: =Setup!$B$3 -> Η' ΕΝΩΣΗ | N2: =IF(COUNTIF(MD!$I:$I,B2)>0,MATCH(B2,MD!$I:$I,0)-4,"")&" "&IF(COUNTIF(MD!$I:$I,D2)>0,MATCH(D2,MD!$I:$I,0)-4,"") -> 1 2 | O2: =Setup!$B$3 -> Η' ΕΝΩΣΗ | P2: =TRIM(LEFT($L$4,10)) -> ΑΟΑ ΑΛΕΞΑΝ | Q2: =TRIM(LEFT($L$3,10)) -> Ε3 47η | R2: =SUBSTITUTE(SUBSTITUTE(TRIM($L$7),"Κ","g"),"Α","b") -> b10 | S2: 32
A3: 32 | B3: =IF(OR(MD!$M$7 =1,MD!$M$7 =2), IF(MD!$M$7 =1,MD!$I$7,MD!$I$8),"#") -> 34987 | C3: =TRIM(LEFT(VLOOKUP(B3,ALMD!$C$3:$D$34,2,FALSE),FIND(" ",VLOOKUP(B3,ALMD!$C$3:$D$34,2,FALSE),1)-1)) -> ΝΕΪΣ | D3: =IF(OR(MD!$M$7 =1,MD!$M$7 =2), IF(MD!$M$7 =2,MD!$I$7,MD!$I$8),"#") -> 0 | E3: =TRIM(LEFT(VLOOKUP(D3,ALMD!$C$3:$D$34,2,FALSE),FIND(" ",VLOOKUP(D3,ALMD!$C$3:$D$34,2,FALSE),1)-1)) ->  | F3: =MD!O8 -> 0 | H3: =D32 -> # | I3: 2nd | K3: title: | L3: =Setup!$B$7 -> Ε3 47η | N3: =IF(COUNTIF(MD!$I:$I,B3)>0,MATCH(B3,MD!$I:$I,0)-4,"")&" "&IF(COUNTIF(MD!$I:$I,D3)>0,MATCH(D3,MD!$I:$I,0)-4,"") -> 3 2 | O3: =Setup!$B$3 -> Η' ΕΝΩΣΗ | P3: =TRIM(LEFT($L$4,10)) -> ΑΟΑ ΑΛΕΞΑΝ | Q3: =TRIM(LEFT($L$3,10)) -> Ε3 47η | R3: =SUBSTITUTE(SUBSTITUTE(TRIM($L$7),"Κ","g"),"Α","b") -> b10 | S3: 32
A4: 32 | B4: =IF(OR(MD!$M$9 =1,MD!$M$9 =2), IF(MD!$M$9 =1,MD!$I$9,MD!$I$10),"#") -> 39384 | C4: =TRIM(LEFT(VLOOKUP(B4,ALMD!$C$3:$D$34,2,FALSE),FIND(" ",VLOOKUP(B4,ALMD!$C$3:$D$34,2,FALSE),1)-1)) -> ΓΚΛΑΒΑΣ | D4: =IF(OR(MD!$M$9 =1,MD!$M$9 =2), IF(MD!$M$9 =2,MD!$I$9,MD!$I$10),"#") -> 0 | E4: =TRIM(LEFT(VLOOKUP(D4,ALMD!$C$3:$D$34,2,FALSE),FIND(" ",VLOOKUP(D4,ALMD!$C$3:$D$34,2,FALSE),1)-1)) ->  | F4: =MD!O10 -> 0 | H4: =D30 -> # | I4: 3_4 | K4: club: | L4: =Setup!$B$4 -> ΑΟΑ ΑΛΕΞΑΝΔΡΟΣ Β | N4: =IF(COUNTIF(MD!$I:$I,B4)>0,MATCH(B4,MD!$I:$I,0)-4,"")&" "&IF(COUNTIF(MD!$I:$I,D4)>0,MATCH(D4,MD!$I:$I,0)-4,"") -> 5 2 | O4: =Setup!$B$3 -> Η' ΕΝΩΣΗ | P4: ΑΟΑ ΑΛΕΞΑΝ | Q4: Ε3 47η | R4: b10 | S4: 32
A5: 32 | B5: =IF(OR(MD!$M$11=1,MD!$M$11=2), IF(MD!$M$11=1,MD!$I$11,MD!$I$12),"#") -> 39226 | C5: =TRIM(LEFT(VLOOKUP(B5,ALMD!$C$3:$D$34,2,FALSE),FIND(" ",VLOOKUP(B5,ALMD!$C$3:$D$34,2,FALSE),1)-1)) -> ΝΙΚΗΤΑΚΗΣ | D5: =IF(OR(MD!$M$11=1,MD!$M$11=2), IF(MD!$M$11=2,MD!$I$11,MD!$I$12),"#") -> 0 | E5: =TRIM(LEFT(VLOOKUP(D5,ALMD!$C$3:$D$34,2,FALSE),FIND(" ",VLOOKUP(D5,ALMD!$C$3:$D$34,2,FALSE),1)-1)) ->  | F5: =MD!O12 -> 0 | H5: =D31 -> # | I5: 3_4 | K5: grade: | L5: =Setup!$B$5 -> Ε3 | N5: =IF(COUNTIF(MD!$I:$I,B5)>0,MATCH(B5,MD!$I:$I,0)-4,"")&" "&IF(COUNTIF(MD!$I:$I,D5)>0,MATCH(D5,MD!$I:$I,0)-4,"") -> 8 2 | O5: =Setup!$B$3 -> Η' ΕΝΩΣΗ | P5: ΑΟΑ ΑΛΕΞΑΝ | Q5: Ε3 47η | R5: b10 | S5: 32
A6: 32 | B6: =IF(OR(MD!$M$13=1,MD!$M$13=2), IF(MD!$M$13=1,MD!$I$13,MD!$I$14),"#") -> 41506 | C6: =TRIM(LEFT(VLOOKUP(B6,ALMD!$C$3:$D$34,2,FALSE),FIND(" ",VLOOKUP(B6,ALMD!$C$3:$D$34,2,FALSE),1)-1)) -> ΧΑΡΑΛΑΜΠΙΔΗΣ | D6: =IF(OR(MD!$M$13=1,MD!$M$13=2), IF(MD!$M$13=2,MD!$I$13,MD!$I$14),"#") -> 0 | E6: =TRIM(LEFT(VLOOKUP(D6,ALMD!$C$3:$D$34,2,FALSE),FIND(" ",VLOOKUP(D6,ALMD!$C$3:$D$34,2,FALSE),1)-1)) ->  | F6: =MD!O14 -> 0 | H6: =D26 -> # | I6: 5_8 | K6: week: | L6: =Setup!B10 -> βδ.: 47η | N6: =IF(COUNTIF(MD!$I:$I,B6)>0,MATCH(B6,MD!$I:$I,0)-4,"")&" "&IF(COUNTIF(MD!$I:$I,D6)>0,MATCH(D6,MD!$I:$I,0)-4,"") -> 9 2 | O6: =Setup!$B$3 -> Η' ΕΝΩΣΗ | P6: ΑΟΑ ΑΛΕΞΑΝ | Q6: Ε3 47η | R6: b10 | S6: 32
A7: 32 | B7: =IF(OR(MD!$M$15=1,MD!$M$15=2), IF(MD!$M$15=1,MD!$I$15,MD!$I$16),"#") -> 38819 | C7: =TRIM(LEFT(VLOOKUP(B7,ALMD!$C$3:$D$34,2,FALSE),FIND(" ",VLOOKUP(B7,ALMD!$C$3:$D$34,2,FALSE),1)-1)) -> ΠΑΠΑΖΗΚΟΣ | D7: =IF(OR(MD!$M$15=1,MD!$M$15=2), IF(MD!$M$15=2,MD!$I$15,MD!$I$16),"#") -> 0 | E7: =TRIM(LEFT(VLOOKUP(D7,ALMD!$C$3:$D$34,2,FALSE),FIND(" ",VLOOKUP(D7,ALMD!$C$3:$D$34,2,FALSE),1)-1)) ->  | F7: =MD!O16 -> 0 | H7: =D27 -> # | I7: 5_8 | K7: category: | L7: =Setup!$B$6 -> Α10 | N7: =IF(COUNTIF(MD!$I:$I,B7)>0,MATCH(B7,MD!$I:$I,0)-4,"")&" "&IF(COUNTIF(MD!$I:$I,D7)>0,MATCH(D7,MD!$I:$I,0)-4,"") -> 11 2 | O7: =Setup!$B$3 -> Η' ΕΝΩΣΗ | P7: ΑΟΑ ΑΛΕΞΑΝ | Q7: Ε3 47η | R7: b10 | S7: 32
A8: 32 | B8: =IF(OR(MD!$M$17=1,MD!$M$17=2), IF(MD!$M$17=1,MD!$I$17,MD!$I$18),"#") -> 40527 | C8: =TRIM(LEFT(VLOOKUP(B8,ALMD!$C$3:$D$34,2,FALSE),FIND(" ",VLOOKUP(B8,ALMD!$C$3:$D$34,2,FALSE),1)-1)) -> ΖΑΧΑΡΑΤΟΣ | D8: =IF(OR(MD!$M$17=1,MD!$M$17=2), IF(MD!$M$17=2,MD!$I$17,MD!$I$18),"#") -> 0 | E8: =TRIM(LEFT(VLOOKUP(D8,ALMD!$C$3:$D$34,2,FALSE),FIND(" ",VLOOKUP(D8,ALMD!$C$3:$D$34,2,FALSE),1)-1)) ->  | F8: =MD!O18 -> 0 | H8: =D28 -> # | I8: 5_8 | K8: period: | L8: =DAY(Setup!$B$8)&"/"&MONTH(Setup!$B$8)&"-"&DAY(Setup!$B$9)&"/"&MONTH(Setup!$B$9)&"/"&YEAR(Setup!$B$9) -> 24/11-26/11/2017 | N8: =IF(COUNTIF(MD!$I:$I,B8)>0,MATCH(B8,MD!$I:$I,0)-4,"")&" "&IF(COUNTIF(MD!$I:$I,D8)>0,MATCH(D8,MD!$I:$I,0)-4,"") -> 13 2 | O8: =Setup!$B$3 -> Η' ΕΝΩΣΗ | P8: ΑΟΑ ΑΛΕΞΑΝ | Q8: Ε3 47η | R8: b10 | S8: 32
A9: 32 | B9: =IF(OR(MD!$M$19=1,MD!$M$19=2), IF(MD!$M$19=1,MD!$I$19,MD!$I$20),"#") -> 36193 | C9: =TRIM(LEFT(VLOOKUP(B9,ALMD!$C$3:$D$34,2,FALSE),FIND(" ",VLOOKUP(B9,ALMD!$C$3:$D$34,2,FALSE),1)-1)) -> ΠΑΣΣΑΣ-ΧΡΗΣΤΟΥ | D9: =IF(OR(MD!$M$19=1,MD!$M$19=2), IF(MD!$M$19=2,MD!$I$19,MD!$I$20),"#") -> 0 | E9: =TRIM(LEFT(VLOOKUP(D9,ALMD!$C$3:$D$34,2,FALSE),FIND(" ",VLOOKUP(D9,ALMD!$C$3:$D$34,2,FALSE),1)-1)) ->  | F9: =MD!O20 -> 0 | H9: =D29 -> # | I9: 5_8 | K9: filename: | L9: =MID(CELL("filename"), (FIND("[",CELL("filename"))+1), FIND("]",CELL("filename"))-FIND("[",CELL("filename"))-1) -> ε3 47η η α10 s md.xlsm | N9: =IF(COUNTIF(MD!$I:$I,B9)>0,MATCH(B9,MD!$I:$I,0)-4,"")&" "&IF(COUNTIF(MD!$I:$I,D9)>0,MATCH(D9,MD!$I:$I,0)-4,"") -> 16 2 | O9: =Setup!$B$3 -> Η' ΕΝΩΣΗ | P9: ΑΟΑ ΑΛΕΞΑΝ | Q9: Ε3 47η | R9: b10 | S9: 32
A10: 32 | B10: =IF(OR(MD!$M$21=1,MD!$M$21=2), IF(MD!$M$21=1,MD!$I$21,MD!$I$22),"#") -> 39937 | C10: =TRIM(LEFT(VLOOKUP(B10,ALMD!$C$3:$D$34,2,FALSE),FIND(" ",VLOOKUP(B10,ALMD!$C$3:$D$34,2,FALSE),1)-1)) -> ΠΑΠΑΧΡΗΣΤΟΥ | D10: =IF(OR(MD!$M$21=1,MD!$M$21=2), IF(MD!$M$21=2,MD!$I$21,MD!$I$22),"#") -> 0 | E10: =TRIM(LEFT(VLOOKUP(D10,ALMD!$C$3:$D$34,2,FALSE),FIND(" ",VLOOKUP(D10,ALMD!$C$3:$D$34,2,FALSE),1)-1)) ->  | F10: =MD!O22 -> 0 | H10: =D18 -> # | I10: 9_16 | N10: =IF(COUNTIF(MD!$I:$I,B10)>0,MATCH(B10,MD!$I:$I,0)-4,"")&" "&IF(COUNTIF(MD!$I:$I,D10)>0,MATCH(D10,MD!$I:$I,0)-4,"") -> 17 2 | O10: =Setup!$B$3 -> Η' ΕΝΩΣΗ | P10: ΑΟΑ ΑΛΕΞΑΝ | Q10: Ε3 47η | R10: b10 | S10: 32
A11: 32 | B11: =IF(OR(MD!$M$23=1,MD!$M$23=2), IF(MD!$M$23=1,MD!$I$23,MD!$I$24),"#") -> 39716 | C11: =TRIM(LEFT(VLOOKUP(B11,ALMD!$C$3:$D$34,2,FALSE),FIND(" ",VLOOKUP(B11,ALMD!$C$3:$D$34,2,FALSE),1)-1)) -> ΙΩΑΝΝΑΤΟΣ | D11: =IF(OR(MD!$M$23=1,MD!$M$23=2), IF(MD!$M$23=2,MD!$I$23,MD!$I$24),"#") -> 0 | E11: =TRIM(LEFT(VLOOKUP(D11,ALMD!$C$3:$D$34,2,FALSE),FIND(" ",VLOOKUP(D11,ALMD!$C$3:$D$34,2,FALSE),1)-1)) ->  | F11: =MD!O24 -> 0 | H11: =D19 -> # | I11: 9_16 | N11: =IF(COUNTIF(MD!$I:$I,B11)>0,MATCH(B11,MD!$I:$I,0)-4,"")&" "&IF(COUNTIF(MD!$I:$I,D11)>0,MATCH(D11,MD!$I:$I,0)-4,"") -> 19 2 | O11: =Setup!$B$3 -> Η' ΕΝΩΣΗ | P11: ΑΟΑ ΑΛΕΞΑΝ | Q11: Ε3 47η | R11: b10 | S11: 32
A12: 32 | B12: =IF(OR(MD!$M$25=1,MD!$M$25=2), IF(MD!$M$25=1,MD!$I$25,MD!$I$26),"#") -> 40952 | C12: =TRIM(LEFT(VLOOKUP(B12,ALMD!$C$3:$D$34,2,FALSE),FIND(" ",VLOOKUP(B12,ALMD!$C$3:$D$34,2,FALSE),1)-1)) -> ΖΟΥΓΑΝΕΛΗΣ | D12: =IF(OR(MD!$M$25=1,MD!$M$25=2), IF(MD!$M$25=2,MD!$I$25,MD!$I$26),"#") -> 0 | E12: =TRIM(LEFT(VLOOKUP(D12,ALMD!$C$3:$D$34,2,FALSE),FIND(" ",VLOOKUP(D12,ALMD!$C$3:$D$34,2,FALSE),1)-1)) ->  | F12: =MD!O26 -> 0 | H12: # | I12: 9_16 | N12: =IF(COUNTIF(MD!$I:$I,B12)>0,MATCH(B12,MD!$I:$I,0)-4,"")&" "&IF(COUNTIF(MD!$I:$I,D12)>0,MATCH(D12,MD!$I:$I,0)-4,"") -> 21 2 | O12: =Setup!$B$3 -> Η' ΕΝΩΣΗ | P12: ΑΟΑ ΑΛΕΞΑΝ | Q12: Ε3 47η | R12: b10 | S12: 32
A13: 32 | B13: =IF(OR(MD!$M$27=1,MD!$M$27=2), IF(MD!$M$27=1,MD!$I$27,MD!$I$28),"#") -> 41505 | C13: =TRIM(LEFT(VLOOKUP(B13,ALMD!$C$3:$D$34,2,FALSE),FIND(" ",VLOOKUP(B13,ALMD!$C$3:$D$34,2,FALSE),1)-1)) -> ΜΠΑΛΩΜΕΝΟΣ | D13: =IF(OR(MD!$M$27=1,MD!$M$27=2), IF(MD!$M$27=2,MD!$I$27,MD!$I$28),"#") -> 0 | E13: =TRIM(LEFT(VLOOKUP(D13,ALMD!$C$3:$D$34,2,FALSE),FIND(" ",VLOOKUP(D13,ALMD!$C$3:$D$34,2,FALSE),1)-1)) ->  | F13: =MD!O28 -> 0 | H13: # | I13: 9_16 | N13: =IF(COUNTIF(MD!$I:$I,B13)>0,MATCH(B13,MD!$I:$I,0)-4,"")&" "&IF(COUNTIF(MD!$I:$I,D13)>0,MATCH(D13,MD!$I:$I,0)-4,"") -> 24 2 | O13: =Setup!$B$3 -> Η' ΕΝΩΣΗ | P13: ΑΟΑ ΑΛΕΞΑΝ | Q13: Ε3 47η | R13: b10 | S13: 32
A14: 32 | B14: =IF(OR(MD!$M$29=1,MD!$M$29=2), IF(MD!$M$29=1,MD!$I$29,MD!$I$30),"#") -> 40818 | C14: =TRIM(LEFT(VLOOKUP(B14,ALMD!$C$3:$D$34,2,FALSE),FIND(" ",VLOOKUP(B14,ALMD!$C$3:$D$34,2,FALSE),1)-1)) -> ΠΑΝΑΓΟΠΟΥΛΟΣ | D14: =IF(OR(MD!$M$29=1,MD!$M$29=2), IF(MD!$M$29=2,MD!$I$29,MD!$I$30),"#") -> 0 | E14: =TRIM(LEFT(VLOOKUP(D14,ALMD!$C$3:$D$34,2,FALSE),FIND(" ",VLOOKUP(D14,ALMD!$C$3:$D$34,2,FALSE),1)-1)) ->  | F14: =MD!O30 -> 0 | H14: # | I14: 9_16 | N14: =IF(COUNTIF(MD!$I:$I,B14)>0,MATCH(B14,MD!$I:$I,0)-4,"")&" "&IF(COUNTIF(MD!$I:$I,D14)>0,MATCH(D14,MD!$I:$I,0)-4,"") -> 25 2 | O14: =Setup!$B$3 -> Η' ΕΝΩΣΗ | P14: ΑΟΑ ΑΛΕΞΑΝ | Q14: Ε3 47η | R14: b10 | S14: 32
A15: 32 | B15: =IF(OR(MD!$M$31=1,MD!$M$31=2), IF(MD!$M$31=1,MD!$I$31,MD!$I$32),"#") -> 40066 | C15: =TRIM(LEFT(VLOOKUP(B15,ALMD!$C$3:$D$34,2,FALSE),FIND(" ",VLOOKUP(B15,ALMD!$C$3:$D$34,2,FALSE),1)-1)) -> ΚΑΛΠΟΓΙΑΝΝΑΚΗΣ | D15: =IF(OR(MD!$M$31=1,MD!$M$31=2), IF(MD!$M$31=2,MD!$I$31,MD!$I$32),"#") -> 0 | E15: =TRIM(LEFT(VLOOKUP(D15,ALMD!$C$3:$D$34,2,FALSE),FIND(" ",VLOOKUP(D15,ALMD!$C$3:$D$34,2,FALSE),1)-1)) ->  | F15: =MD!O32 -> 0 | H15: # | I15: 9_16 | N15: =IF(COUNTIF(MD!$I:$I,B15)>0,MATCH(B15,MD!$I:$I,0)-4,"")&" "&IF(COUNTIF(MD!$I:$I,D15)>0,MATCH(D15,MD!$I:$I,0)-4,"") -> 27 2 | O15: =Setup!$B$3 -> Η' ΕΝΩΣΗ | P15: ΑΟΑ ΑΛΕΞΑΝ | Q15: Ε3 47η | R15: b10 | S15: 32
A16: 32 | B16: =IF(OR(MD!$M$33=1,MD!$M$33=2), IF(MD!$M$33=1,MD!$I$33,MD!$I$34),"#") -> 39208 | C16: =TRIM(LEFT(VLOOKUP(B16,ALMD!$C$3:$D$34,2,FALSE),FIND(" ",VLOOKUP(B16,ALMD!$C$3:$D$34,2,FALSE),1)-1)) -> ΤΑΥΡΙΔΑΚΗΣ | D16: =IF(OR(MD!$M$33=1,MD!$M$33=2), IF(MD!$M$33=2,MD!$I$33,MD!$I$34),"#") -> 40311 | E16: =TRIM(LEFT(VLOOKUP(D16,ALMD!$C$3:$D$34,2,FALSE),FIND(" ",VLOOKUP(D16,ALMD!$C$3:$D$34,2,FALSE),1)-1)) -> ΜΑΛΑΒΑΖΟΣ | F16: =MD!O34 -> 41 42 | H16: # | I16: 9_16 | N16: =IF(COUNTIF(MD!$I:$I,B16)>0,MATCH(B16,MD!$I:$I,0)-4,"")&" "&IF(COUNTIF(MD!$I:$I,D16)>0,MATCH(D16,MD!$I:$I,0)-4,"") -> 30 29 | O16: =Setup!$B$3 -> Η' ΕΝΩΣΗ | P16: ΑΟΑ ΑΛΕΞΑΝ | Q16: Ε3 47η | R16: b10 | S16: 32
A17: 32 | B17: =IF(OR(MD!$M$35=1,MD!$M$35=2), IF(MD!$M$35=1,MD!$I$35,MD!$I$36),"#") -> 41419 | C17: =TRIM(LEFT(VLOOKUP(B17,ALMD!$C$3:$D$34,2,FALSE),FIND(" ",VLOOKUP(B17,ALMD!$C$3:$D$34,2,FALSE),1)-1)) -> ΚΑΡΑΝΤΑΛΗΣ | D17: =IF(OR(MD!$M$35=1,MD!$M$35=2), IF(MD!$M$35=2,MD!$I$35,MD!$I$36),"#") -> 0 | E17: =TRIM(LEFT(VLOOKUP(D17,ALMD!$C$3:$D$34,2,FALSE),FIND(" ",VLOOKUP(D17,ALMD!$C$3:$D$34,2,FALSE),1)-1)) ->  | F17: =MD!O36 -> 0 | H17: # | I17: 9_16 | N17: =IF(COUNTIF(MD!$I:$I,B17)>0,MATCH(B17,MD!$I:$I,0)-4,"")&" "&IF(COUNTIF(MD!$I:$I,D17)>0,MATCH(D17,MD!$I:$I,0)-4,"") -> 32 2 | O17: =Setup!$B$3 -> Η' ΕΝΩΣΗ | P17: ΑΟΑ ΑΛΕΞΑΝ | Q17: Ε3 47η | R17: b10 | S17: 32
A18: 16 | B18: =IF(OR(MD!$P$6 =1,MD!$P$6 =2), IF(MD!$P$6 =1,MD!$N$5,MD!$N$7),"#") -> # | C18: =TRIM(LEFT(VLOOKUP(B18,ALMD!$C$3:$D$34,2,FALSE),FIND(" ",VLOOKUP(B18,ALMD!$C$3:$D$34,2,FALSE),1)-1)) ->  | D18: =IF(OR(MD!$P$6 =1,MD!$P$6 =2), IF(MD!$P$6 =2,MD!$N$5,MD!$N$7),"#") -> # | E18: =TRIM(LEFT(VLOOKUP(D18,ALMD!$C$3:$D$34,2,FALSE),FIND(" ",VLOOKUP(D18,ALMD!$C$3:$D$34,2,FALSE),1)-1)) ->  | F18: =MD!R7 -> 0 | H18: =D2 -> 0 | I18: 17_32 | N18: =IF(COUNTIF(MD!$N:$N,B18)>0,MATCH(B18,MD!$N:$N,0)-4,"")&" "&IF(COUNTIF(MD!$N:$N,D18)>0,MATCH(D18,MD!$N:$N,0)-4,"") ->  | O18: =Setup!$B$3 -> Η' ΕΝΩΣΗ | P18: ΑΟΑ ΑΛΕΞΑΝ | Q18: Ε3 47η | R18: b10 | S18: 32
A19: 16 | B19: =IF(OR(MD!$P$10=1,MD!$P$10=2), IF(MD!$P$10=1,MD!$N$9,MD!$N$11),"#") -> # | C19: =TRIM(LEFT(VLOOKUP(B19,ALMD!$C$3:$D$34,2,FALSE),FIND(" ",VLOOKUP(B19,ALMD!$C$3:$D$34,2,FALSE),1)-1)) ->  | D19: =IF(OR(MD!$P$10=1,MD!$P$10=2), IF(MD!$P$10=2,MD!$N$9,MD!$N$11),"#") -> # | E19: =TRIM(LEFT(VLOOKUP(D19,ALMD!$C$3:$D$34,2,FALSE),FIND(" ",VLOOKUP(D19,ALMD!$C$3:$D$34,2,FALSE),1)-1)) ->  | F19: =MD!R11 -> 0 | H19: =D3 -> 0 | I19: 17_32 | N19: =IF(COUNTIF(MD!$N:$N,B19)>0,MATCH(B19,MD!$N:$N,0)-4,"")&" "&IF(COUNTIF(MD!$N:$N,D19)>0,MATCH(D19,MD!$N:$N,0)-4,"") ->  | O19: =Setup!$B$3 -> Η' ΕΝΩΣΗ | P19: ΑΟΑ ΑΛΕΞΑΝ | Q19: Ε3 47η | R19: b10 | S19: 32
A20: 16 | B20: =IF(OR(MD!$P$14=1,MD!$P$14=2), IF(MD!$P$14=1,MD!$N$13,MD!$N$15),"#") -> # | C20: =TRIM(LEFT(VLOOKUP(B20,ALMD!$C$3:$D$34,2,FALSE),FIND(" ",VLOOKUP(B20,ALMD!$C$3:$D$34,2,FALSE),1)-1)) ->  | D20: =IF(OR(MD!$P$14=1,MD!$P$14=2), IF(MD!$P$14=2,MD!$N$13,MD!$N$15),"#") -> # | E20: =TRIM(LEFT(VLOOKUP(D20,ALMD!$C$3:$D$34,2,FALSE),FIND(" ",VLOOKUP(D20,ALMD!$C$3:$D$34,2,FALSE),1)-1)) ->  | F20: =MD!R15 -> 0 | H20: 0 | I20: 17_32 | N20: =IF(COUNTIF(MD!$N:$N,B20)>0,MATCH(B20,MD!$N:$N,0)-4,"")&" "&IF(COUNTIF(MD!$N:$N,D20)>0,MATCH(D20,MD!$N:$N,0)-4,"") ->  | O20: =Setup!$B$3 -> Η' ΕΝΩΣΗ | P20: ΑΟΑ ΑΛΕΞΑΝ | Q20: Ε3 47η | R20: b10 | S20: 32
A21: 16 | B21: =IF(OR(MD!$P$18=1,MD!$P$18=2), IF(MD!$P$18=1,MD!$N$17,MD!$N$19),"#") -> # | C21: =TRIM(LEFT(VLOOKUP(B21,ALMD!$C$3:$D$34,2,FALSE),FIND(" ",VLOOKUP(B21,ALMD!$C$3:$D$34,2,FALSE),1)-1)) ->  | D21: =IF(OR(MD!$P$18=1,MD!$P$18=2), IF(MD!$P$18=2,MD!$N$17,MD!$N$19),"#") -> # | E21: =TRIM(LEFT(VLOOKUP(D21,ALMD!$C$3:$D$34,2,FALSE),FIND(" ",VLOOKUP(D21,ALMD!$C$3:$D$34,2,FALSE),1)-1)) ->  | F21: =MD!R19 -> 0 | H21: 0 | I21: 17_32 | N21: =IF(COUNTIF(MD!$N:$N,B21)>0,MATCH(B21,MD!$N:$N,0)-4,"")&" "&IF(COUNTIF(MD!$N:$N,D21)>0,MATCH(D21,MD!$N:$N,0)-4,"") ->  | O21: =Setup!$B$3 -> Η' ΕΝΩΣΗ | P21: ΑΟΑ ΑΛΕΞΑΝ | Q21: Ε3 47η | R21: b10 | S21: 32
A22: 16 | B22: =IF(OR(MD!$P$22=1,MD!$P$22=2), IF(MD!$P$22=1,MD!$N$21,MD!$N$23),"#") -> # | C22: =TRIM(LEFT(VLOOKUP(B22,ALMD!$C$3:$D$34,2,FALSE),FIND(" ",VLOOKUP(B22,ALMD!$C$3:$D$34,2,FALSE),1)-1)) ->  | D22: =IF(OR(MD!$P$22=1,MD!$P$22=2), IF(MD!$P$22=2,MD!$N$21,MD!$N$23),"#") -> # | E22: =TRIM(LEFT(VLOOKUP(D22,ALMD!$C$3:$D$34,2,FALSE),FIND(" ",VLOOKUP(D22,ALMD!$C$3:$D$34,2,FALSE),1)-1)) ->  | F22: =MD!R23 -> 0 | H22: 0 | I22: 17_32 | N22: =IF(COUNTIF(MD!$N:$N,B22)>0,MATCH(B22,MD!$N:$N,0)-4,"")&" "&IF(COUNTIF(MD!$N:$N,D22)>0,MATCH(D22,MD!$N:$N,0)-4,"") ->  | O22: =Setup!$B$3 -> Η' ΕΝΩΣΗ | P22: ΑΟΑ ΑΛΕΞΑΝ | Q22: Ε3 47η | R22: b10 | S22: 32
A23: 16 | B23: =IF(OR(MD!$P$26=1,MD!$P$26=2), IF(MD!$P$26=1,MD!$N$25,MD!$N$27),"#") -> # | C23: =TRIM(LEFT(VLOOKUP(B23,ALMD!$C$3:$D$34,2,FALSE),FIND(" ",VLOOKUP(B23,ALMD!$C$3:$D$34,2,FALSE),1)-1)) ->  | D23: =IF(OR(MD!$P$26=1,MD!$P$26=2), IF(MD!$P$26=2,MD!$N$25,MD!$N$27),"#") -> # | E23: =TRIM(LEFT(VLOOKUP(D23,ALMD!$C$3:$D$34,2,FALSE),FIND(" ",VLOOKUP(D23,ALMD!$C$3:$D$34,2,FALSE),1)-1)) ->  | F23: =MD!R27 -> 0 | H23: 0 | I23: 17_32 | N23: =IF(COUNTIF(MD!$N:$N,B23)>0,MATCH(B23,MD!$N:$N,0)-4,"")&" "&IF(COUNTIF(MD!$N:$N,D23)>0,MATCH(D23,MD!$N:$N,0)-4,"") ->  | O23: =Setup!$B$3 -> Η' ΕΝΩΣΗ | P23: ΑΟΑ ΑΛΕΞΑΝ | Q23: Ε3 47η | R23: b10 | S23: 32
A24: 16 | B24: =IF(OR(MD!$P$30=1,MD!$P$30=2), IF(MD!$P$30=1,MD!$N$29,MD!$N$31),"#") -> # | C24: =TRIM(LEFT(VLOOKUP(B24,ALMD!$C$3:$D$34,2,FALSE),FIND(" ",VLOOKUP(B24,ALMD!$C$3:$D$34,2,FALSE),1)-1)) ->  | D24: =IF(OR(MD!$P$30=1,MD!$P$30=2), IF(MD!$P$30=2,MD!$N$29,MD!$N$31),"#") -> # | E24: =TRIM(LEFT(VLOOKUP(D24,ALMD!$C$3:$D$34,2,FALSE),FIND(" ",VLOOKUP(D24,ALMD!$C$3:$D$34,2,FALSE),1)-1)) ->  | F24: =MD!R31 -> 0 | H24: 0 | I24: 17_32 | N24: =IF(COUNTIF(MD!$N:$N,B24)>0,MATCH(B24,MD!$N:$N,0)-4,"")&" "&IF(COUNTIF(MD!$N:$N,D24)>0,MATCH(D24,MD!$N:$N,0)-4,"") ->  | O24: =Setup!$B$3 -> Η' ΕΝΩΣΗ | P24: ΑΟΑ ΑΛΕΞΑΝ | Q24: Ε3 47η | R24: b10 | S24: 32
A25: 16 | B25: =IF(OR(MD!$P$34=1,MD!$P$34=2), IF(MD!$P$34=1,MD!$N$33,MD!$N$35),"#") -> # | C25: =TRIM(LEFT(VLOOKUP(B25,ALMD!$C$3:$D$34,2,FALSE),FIND(" ",VLOOKUP(B25,ALMD!$C$3:$D$34,2,FALSE),1)-1)) ->  | D25: =IF(OR(MD!$P$34=1,MD!$P$34=2), IF(MD!$P$34=2,MD!$N$33,MD!$N$35),"#") -> # | E25: =TRIM(LEFT(VLOOKUP(D25,ALMD!$C$3:$D$34,2,FALSE),FIND(" ",VLOOKUP(D25,ALMD!$C$3:$D$34,2,FALSE),1)-1)) ->  | F25: =MD!R35 -> 0 | H25: 0 | I25: 17_32 | N25: =IF(COUNTIF(MD!$N:$N,B25)>0,MATCH(B25,MD!$N:$N,0)-4,"")&" "&IF(COUNTIF(MD!$N:$N,D25)>0,MATCH(D25,MD!$N:$N,0)-4,"") ->  | O25: =Setup!$B$3 -> Η' ΕΝΩΣΗ | P25: ΑΟΑ ΑΛΕΞΑΝ | Q25: Ε3 47η | R25: b10 | S25: 32
A26: 8 | B26: =IF(OR(MD!$S$8 =1,MD!$S$8 =2), IF(MD!$S$8 =1,MD!$Q$6,MD!$Q$10),"#") -> # | C26: =TRIM(LEFT(VLOOKUP(B26,ALMD!$C$3:$D$34,2,FALSE),FIND(" ",VLOOKUP(B26,ALMD!$C$3:$D$34,2,FALSE),1)-1)) ->  | D26: =IF(OR(MD!$S$8 =1,MD!$S$8 =2), IF(MD!$S$8 =2,MD!$Q$6,MD!$Q$10),"#") -> # | E26: =TRIM(LEFT(VLOOKUP(D26,ALMD!$C$3:$D$34,2,FALSE),FIND(" ",VLOOKUP(D26,ALMD!$C$3:$D$34,2,FALSE),1)-1)) ->  | F26: =MD!U9 -> 0 | H26: 0 | I26: 17_32 | N26: =IF(COUNTIF(MD!$Q:$Q,B26)>0,MATCH(B26,MD!$Q:$Q,0)-4,"")&" "&IF(COUNTIF(MD!$Q:$Q,D26)>0,MATCH(D26,MD!$Q:$Q,0)-4,"") ->  | O26: =Setup!$B$3 -> Η' ΕΝΩΣΗ | P26: ΑΟΑ ΑΛΕΞΑΝ | Q26: Ε3 47η | R26: b10 | S26: 32
A27: 8 | B27: =IF(OR(MD!$S$16=1,MD!$S$16=2), IF(MD!$S$16=1,MD!$Q$14,MD!$Q$18),"#") -> # | C27: =TRIM(LEFT(VLOOKUP(B27,ALMD!$C$3:$D$34,2,FALSE),FIND(" ",VLOOKUP(B27,ALMD!$C$3:$D$34,2,FALSE),1)-1)) ->  | D27: =IF(OR(MD!$S$16=1,MD!$S$16=2), IF(MD!$S$16=2,MD!$Q$14,MD!$Q$18),"#") -> # | E27: =TRIM(LEFT(VLOOKUP(D27,ALMD!$C$3:$D$34,2,FALSE),FIND(" ",VLOOKUP(D27,ALMD!$C$3:$D$34,2,FALSE),1)-1)) ->  | F27: =MD!U17 -> 0 | H27: 0 | I27: 17_32 | N27: =IF(COUNTIF(MD!$Q:$Q,B27)>0,MATCH(B27,MD!$Q:$Q,0)-4,"")&" "&IF(COUNTIF(MD!$Q:$Q,D27)>0,MATCH(D27,MD!$Q:$Q,0)-4,"") ->  | O27: =Setup!$B$3 -> Η' ΕΝΩΣΗ | P27: ΑΟΑ ΑΛΕΞΑΝ | Q27: Ε3 47η | R27: b10 | S27: 32
A28: 8 | B28: =IF(OR(MD!$S$24=1,MD!$S$24=2), IF(MD!$S$24=1,MD!$Q$22,MD!$Q$26),"#") -> # | C28: =TRIM(LEFT(VLOOKUP(B28,ALMD!$C$3:$D$34,2,FALSE),FIND(" ",VLOOKUP(B28,ALMD!$C$3:$D$34,2,FALSE),1)-1)) ->  | D28: =IF(OR(MD!$S$24=1,MD!$S$24=2), IF(MD!$S$24=2,MD!$Q$22,MD!$Q$26),"#") -> # | E28: =TRIM(LEFT(VLOOKUP(D28,ALMD!$C$3:$D$34,2,FALSE),FIND(" ",VLOOKUP(D28,ALMD!$C$3:$D$34,2,FALSE),1)-1)) ->  | F28: =MD!U25 -> 0 | H28: 0 | I28: 17_32 | N28: =IF(COUNTIF(MD!$Q:$Q,B28)>0,MATCH(B28,MD!$Q:$Q,0)-4,"")&" "&IF(COUNTIF(MD!$Q:$Q,D28)>0,MATCH(D28,MD!$Q:$Q,0)-4,"") ->  | O28: =Setup!$B$3 -> Η' ΕΝΩΣΗ | P28: ΑΟΑ ΑΛΕΞΑΝ | Q28: Ε3 47η | R28: b10 | S28: 32
A29: 8 | B29: =IF(OR(MD!$S$32=1,MD!$S$32=2), IF(MD!$S$32=1,MD!$Q$30,MD!$Q$34),"#") -> # | C29: =TRIM(LEFT(VLOOKUP(B29,ALMD!$C$3:$D$34,2,FALSE),FIND(" ",VLOOKUP(B29,ALMD!$C$3:$D$34,2,FALSE),1)-1)) ->  | D29: =IF(OR(MD!$S$32=1,MD!$S$32=2), IF(MD!$S$32=2,MD!$Q$30,MD!$Q$34),"#") -> # | E29: =TRIM(LEFT(VLOOKUP(D29,ALMD!$C$3:$D$34,2,FALSE),FIND(" ",VLOOKUP(D29,ALMD!$C$3:$D$34,2,FALSE),1)-1)) ->  | F29: =MD!U33 -> 0 | H29: 0 | I29: 17_32 | N29: =IF(COUNTIF(MD!$Q:$Q,B29)>0,MATCH(B29,MD!$Q:$Q,0)-4,"")&" "&IF(COUNTIF(MD!$Q:$Q,D29)>0,MATCH(D29,MD!$Q:$Q,0)-4,"") ->  | O29: =Setup!$B$3 -> Η' ΕΝΩΣΗ | P29: ΑΟΑ ΑΛΕΞΑΝ | Q29: Ε3 47η | R29: b10 | S29: 32
A30: 4 | B30: =IF(OR(MD!$V$12=1,MD!$V$12=2), IF(MD!$V$12=1,MD!$T$8,MD!$T$16),"#") -> # | C30: =TRIM(LEFT(VLOOKUP(B30,ALMD!$C$3:$D$34,2,FALSE),FIND(" ",VLOOKUP(B30,ALMD!$C$3:$D$34,2,FALSE),1)-1)) ->  | D30: =IF(OR(MD!$V$12=1,MD!$V$12=2), IF(MD!$V$12=2,MD!$T$8,MD!$T$16),"#") -> # | E30: =TRIM(LEFT(VLOOKUP(D30,ALMD!$C$3:$D$34,2,FALSE),FIND(" ",VLOOKUP(D30,ALMD!$C$3:$D$34,2,FALSE),1)-1)) ->  | F30: =MD!X13 -> 0 | H30: 0 | I30: 17_32 | N30: =IF(COUNTIF(MD!$T:$T,B30)>0,MATCH(B30,MD!$T:$T,0)-4,"")&" "&IF(COUNTIF(MD!$T:$T,D30)>0,MATCH(D30,MD!$T:$T,0)-4,"") ->  | O30: =Setup!$B$3 -> Η' ΕΝΩΣΗ | P30: ΑΟΑ ΑΛΕΞΑΝ | Q30: Ε3 47η | R30: b10 | S30: 32
A31: 4 | B31: =IF(OR(MD!$V$28=1,MD!$V$28=2), IF(MD!$V$28=1,MD!$T$24,MD!$T$32),"#") -> # | C31: =TRIM(LEFT(VLOOKUP(B31,ALMD!$C$3:$D$34,2,FALSE),FIND(" ",VLOOKUP(B31,ALMD!$C$3:$D$34,2,FALSE),1)-1)) ->  | D31: =IF(OR(MD!$V$28=1,MD!$V$28=2), IF(MD!$V$28=2,MD!$T$24,MD!$T$32),"#") -> # | E31: =TRIM(LEFT(VLOOKUP(D31,ALMD!$C$3:$D$34,2,FALSE),FIND(" ",VLOOKUP(D31,ALMD!$C$3:$D$34,2,FALSE),1)-1)) ->  | F31: =MD!X29 -> 0 | H31: 0 | I31: 17_32 | N31: =IF(COUNTIF(MD!$T:$T,B31)>0,MATCH(B31,MD!$T:$T,0)-4,"")&" "&IF(COUNTIF(MD!$T:$T,D31)>0,MATCH(D31,MD!$T:$T,0)-4,"") ->  | O31: =Setup!$B$3 -> Η' ΕΝΩΣΗ | P31: ΑΟΑ ΑΛΕΞΑΝ | Q31: Ε3 47η | R31: b10 | S31: 32
A32: 2 | B32: =IF(OR(MD!$V$20=1,MD!$V$20=2), IF(MD!$V$20=1,MD!$W$12,MD!$W$28),"#") -> # | C32: =TRIM(LEFT(VLOOKUP(B32,ALMD!$C$3:$D$34,2,FALSE),FIND(" ",VLOOKUP(B32,ALMD!$C$3:$D$34,2,FALSE),1)-1)) ->  | D32: =IF(OR(MD!$V$20=1,MD!$V$20=2), IF(MD!$V$20=2,MD!$W$12,MD!$W$28),"#") -> # | E32: =TRIM(LEFT(VLOOKUP(D32,ALMD!$C$3:$D$34,2,FALSE),FIND(" ",VLOOKUP(D32,ALMD!$C$3:$D$34,2,FALSE),1)-1)) ->  | F32: =MD!X21 -> 0 | H32: 40311 | I32: 17_32 | N32: =IF(COUNTIF(MD!$W:$W,B32)>0,MATCH(B32,MD!$W:$W,0)-4,"")&" "&IF(COUNTIF(MD!$W:$W,D32)>0,MATCH(D32,MD!$W:$W,0)-4,"") ->  | O32: =Setup!$B$3 -> Η' ΕΝΩΣΗ | P32: ΑΟΑ ΑΛΕΞΑΝ | Q32: Ε3 47η | R32: b10 | S32: 32
H33: =D17 -> 0 | I33: 17_32 | O33: =Setup!$B$3 -> Η' ΕΝΩΣΗ | P33: ΑΟΑ ΑΛΕΞΑΝ | Q33: Ε3 47η | R33: b10 | S33: 32

Sheet e-efoa (hidden)
A1: organizer | B1: club | C1: title | D1: group | E1: Dsize | F1: MStartDate | G1: TournamentDetailsId | H1: round | I1: WPlayerCode | J1: LPlayerCode | K1: Score | L1: WRow | M1: LRow | N1: WSeed | O1: LSeed | P1: W | Q1: L | R1: wo | T1: seed | U1: cmnt | V1: TournamentDetailsId | W1: PlayerCode | X1: Round | Y1: Wins | Z1: Matches | AA1: PtsQ | AB1: PtsM | AC1: Age | AE1: ID | AF1: name | AG1: row | AH1: seed | AJ1: RankKey | AL1: MatcheNames | AM1: key | AN1: PlayerName 1 | AO1: PlayerName 2
A2: =Setup!$B$3 -> Η' ΕΝΩΣΗ | B2: =Setup!$Z$6 -> 333 | C2: =Setup!$Z$5 -> Ε3 47η (Η) | D2: =SUBSTITUTE(TRIM(Setup!$B$6),"-","") -> Α10 | E2: Smd32 | F2: =TEXT(Setup!$B$8,"ΕΕΕΕ-ΜΜ-ΗΗ") -> 2017-11-24 | G2: =Setup!$T$7 ->  | H2: R32 | I2: =IF(OR(MD!$M$5 =1,MD!$M$5 =2), IF(MD!$M$5 =1,MD!$I$5,MD!$I$6),"") -> 41418 | J2: =IF(OR(MD!$M$5 =1,MD!$M$5 =2), IF(MD!$M$5 =2,MD!$I$5,MD!$I$6),"") -> 0 | K2: =TRIM(MD!O6) ->  | L2: =IF(AND(I2<>"",I2>0),IF(VALUE(I2)>0,VLOOKUP(I2,$AE:$AH,3,FALSE),0),0) -> 1 | M2: =IF(AND(J2<>"",J2>0),IF(VALUE(J2)>0,VLOOKUP(J2,$AE:$AH,3,FALSE),0),0) -> 0 | N2: =IF(AND(I2<>"",I2>0),IF(VALUE(I2)>0,VLOOKUP(I2,$AE:$AH,4,FALSE),0),0) -> 1 | O2: =IF(AND(J2<>"",J2>0),IF(VALUE(J2)>0,VLOOKUP(J2,$AE:$AH,4,FALSE),0),0) -> 0 | P2: =IF($R2="",I2,"") ->  | Q2: =IF($R2="",J2,"") ->  | R2: =IF(OR(J2=0,K2=""),1,IF(TEXT(K2,"0")=SUBSTITUTE(SUBSTITUTE(LOWER(K2),"w",""),"m",""),"",1)) -> 1 | T2: =IF(W2<>"",IF(VALUE(W2)>0,VLOOKUP(W2,$AE:$AH,4,FALSE),""),"") ->  | U2: =IF(NOT(OR(W2=0,W2=" ",W2="")),IF(INDIRECT("ALMD!B"&MATCH(W2,ALMD!$C$3:$C$34,0)+2)>0,INDIRECT("ALMD!B"&MATCH(W2,ALMD!$C$3:$C$34,0)+2),""),"") ->  | V2: =Setup!$T$7 ->  | W2: =I32 ->  | X2: 1st | Y2: =IF($W2>0,COUNTIF($P$2:$P$32,$W2),0) -> 30 | Z2: =IF($W2>0,COUNTIF($P$2:$P$32,$W2)+COUNTIF($Q$2:$Q$32,$W2),0) -> 60 | AA2: 0 | AB2: =IF(OR($Z2=0,$Z2="",$U2="DQ"),0,VLOOKUP($AJ2,tables!$AF:$AG,2,FALSE)) ->  | AC2: =IF(W2>0,YEAR(Setup!$B$8)-VLOOKUP(W2,ALMD!$C:$F,3,FALSE),0) ->  | AE2: =MD!$I5 -> 41418 | AF2: =MD!$K5 -> ΚΑΡΑΝΤΑΛΗΣ Κ | AG2: =IF(AE2>0,MD!$A5,"") -> 1 | AH2: =MD!$G5 -> 1 | AJ2: =SUBSTITUTE(SUBSTITUTE(Setup!$B$5&"S-"&Setup!$B$13&"-"&X2,"Ανδ-",""),"Γυν-","") -> Ε3S-10-1st | AL2: =IF(AO2>" ", IF(OR(AM2=AM3,AM2=AM1), IF(AM2=AM3,AN2&"/"&AN3&" - "&AO2&"/"&AO3, AN1&"/"&AN2&" - "&AO1&"/"&AO2),AN2&" - "&AO2), IF(OR(AM2=AM3,AM2=AM1), IF(AM2=AM3,AN2&"/"&AN3, AN1&"/"&AN2),AN2)) ->  | AM2: =G2&H2&L2 ->  | AN2: =IF(I2<=0,"",TRIM(LEFT(LEFT(VLOOKUP(I2,$AE:$AF,2,FALSE),FIND(" ",VLOOKUP(I2,$AE:$AF,2,FALSE),1)-1),15)&" "&LEFT(MID(VLOOKUP(I2,$AE:$AF,2,FALSE),FIND(" ",VLOOKUP(I2,$AE:$AF,2,FALSE),1)+1,20),3))) -> ΚΑΡΑΝΤΑΛΗΣ Κ
A3: =Setup!$B$3 -> Η' ΕΝΩΣΗ | B3: =Setup!$Z$6 -> 333 | C3: =Setup!$Z$5 -> Ε3 47η (Η) | D3: =SUBSTITUTE(TRIM(Setup!$B$6),"-","") -> Α10 | E3: Smd32 | F3: =TEXT(Setup!$B$8,"ΕΕΕΕ-ΜΜ-ΗΗ") -> 2017-11-24 | G3: =Setup!$T$7 ->  | H3: R32 | I3: =IF(OR(MD!$M$7 =1,MD!$M$7 =2), IF(MD!$M$7 =1,MD!$I$7,MD!$I$8),"") -> 34987 | J3: =IF(OR(MD!$M$7 =1,MD!$M$7 =2), IF(MD!$M$7 =2,MD!$I$7,MD!$I$8),"") -> 0 | K3: =TRIM(MD!O8) ->  | L3: =IF(AND(I3<>"",I3>0),IF(VALUE(I3)>0,VLOOKUP(I3,$AE:$AH,3,FALSE),0),0) -> 3 | M3: =IF(AND(J3<>"",J3>0),IF(VALUE(J3)>0,VLOOKUP(J3,$AE:$AH,3,FALSE),0),0) -> 0 | N3: =IF(AND(I3<>"",I3>0),IF(VALUE(I3)>0,VLOOKUP(I3,$AE:$AH,4,FALSE),0),0) -> 11 | O3: =IF(AND(J3<>"",J3>0),IF(VALUE(J3)>0,VLOOKUP(J3,$AE:$AH,4,FALSE),0),0) -> 0 | P3: =IF($R3="",I3,"") ->  | Q3: =IF($R3="",J3,"") ->  | R3: =IF(OR(J3=0,K3=""),1,IF(TEXT(K3,"0")=SUBSTITUTE(SUBSTITUTE(LOWER(K3),"w",""),"m",""),"",1)) -> 1 | U3: =IF(NOT(OR(W3=0,W3=" ",W3="")),IF(INDIRECT("ALMD!B"&MATCH(W3,ALMD!$C$3:$C$34,0)+2)>0,INDIRECT("ALMD!B"&MATCH(W3,ALMD!$C$3:$C$34,0)+2),""),"") ->  | V3: =Setup!$T$7 ->  | W3: =J32 ->  | X3: 2nd | Y3: =IF($W3>0,COUNTIF($P$2:$P$32,$W3),0) -> 30 | Z3: =IF($W3>0,COUNTIF($P$2:$P$32,$W3)+COUNTIF($Q$2:$Q$32,$W3),0) -> 60 | AA3: 0 | AB3: =IF(OR($Z3=0,$Z3="",$U3="DQ"),0,VLOOKUP($AJ3,tables!$AF:$AG,2,FALSE)) ->  | AC3: =IF(W3>0,YEAR(Setup!$B$8)-VLOOKUP(W3,ALMD!$C:$F,3,FALSE),0) ->  | AE3: =MD!$I6 -> 0 | AF3: =MD!$K6 ->  | AG3: =IF(AE3>0,MD!$A6,"") ->  | AH3: =MD!$G6 -> - | AJ3: =SUBSTITUTE(SUBSTITUTE(Setup!$B$5&"S-"&Setup!$B$13&"-"&X3,"Ανδ-",""),"Γυν-","") -> Ε3S-10-2nd | AN3: ΝΕΪΣ Ε
A4: =Setup!$B$3 -> Η' ΕΝΩΣΗ | B4: =Setup!$Z$6 -> 333 | C4: =Setup!$Z$5 -> Ε3 47η (Η) | D4: =SUBSTITUTE(TRIM(Setup!$B$6),"-","") -> Α10 | E4: Smd32 | F4: =TEXT(Setup!$B$8,"ΕΕΕΕ-ΜΜ-ΗΗ") -> 2017-11-24 | G4: =Setup!$T$7 ->  | H4: R32 | I4: =IF(OR(MD!$M$9 =1,MD!$M$9 =2), IF(MD!$M$9 =1,MD!$I$9,MD!$I$10),"") -> 39384 | J4: =IF(OR(MD!$M$9 =1,MD!$M$9 =2), IF(MD!$M$9 =2,MD!$I$9,MD!$I$10),"") -> 0 | K4: =TRIM(MD!O10) ->  | L4: 5 | M4: 0 | N4: 17 | O4: 0 | R4: 1 | U4: =IF(NOT(OR(W4=0,W4=" ",W4="")),IF(INDIRECT("ALMD!B"&MATCH(W4,ALMD!$C$3:$C$34,0)+2)>0,INDIRECT("ALMD!B"&MATCH(W4,ALMD!$C$3:$C$34,0)+2),""),"") ->  | V4: =Setup!$T$7 ->  | W4: =J30 ->  | X4: 3_4 | Y4: 30 | Z4: 60 | AA4: 0 | AB4: =IF(OR($Z4=0,$Z4="",$U4="DQ"),0,VLOOKUP($AJ4,tables!$AF:$AG,2,FALSE)) ->  | AC4: =IF(W4>0,YEAR(Setup!$B$8)-VLOOKUP(W4,ALMD!$C:$F,3,FALSE),0) ->  | AE4: =MD!$I7 -> 34987 | AF4: =MD!$K7 -> ΝΕΪΣ Ε | AG4: =IF(AE4>0,MD!$A7,"") -> 3 | AH4: =MD!$G7 -> 11 | AJ4: =SUBSTITUTE(SUBSTITUTE(Setup!$B$5&"S-"&Setup!$B$13&"-"&X4,"Ανδ-",""),"Γυν-","") -> Ε3S-10-3_4 | AN4: ΓΚΛΑΒΑΣ Γ
A5: =Setup!$B$3 -> Η' ΕΝΩΣΗ | B5: =Setup!$Z$6 -> 333 | C5: =Setup!$Z$5 -> Ε3 47η (Η) | D5: =SUBSTITUTE(TRIM(Setup!$B$6),"-","") -> Α10 | E5: Smd32 | F5: =TEXT(Setup!$B$8,"ΕΕΕΕ-ΜΜ-ΗΗ") -> 2017-11-24 | G5: =Setup!$T$7 ->  | H5: R32 | I5: =IF(OR(MD!$M$11=1,MD!$M$11=2), IF(MD!$M$11=1,MD!$I$11,MD!$I$12),"") -> 39226 | J5: =IF(OR(MD!$M$11=1,MD!$M$11=2), IF(MD!$M$11=2,MD!$I$11,MD!$I$12),"") -> 0 | K5: =TRIM(MD!O12) ->  | L5: 8 | M5: 0 | N5: 8 | O5: 0 | R5: 1 | U5: =IF(NOT(OR(W5=0,W5=" ",W5="")),IF(INDIRECT("ALMD!B"&MATCH(W5,ALMD!$C$3:$C$34,0)+2)>0,INDIRECT("ALMD!B"&MATCH(W5,ALMD!$C$3:$C$34,0)+2),""),"") ->  | V5: =Setup!$T$7 ->  | W5: =J31 ->  | X5: 3_4 | Y5: 30 | Z5: 60 | AA5: 0 | AB5: =IF(OR($Z5=0,$Z5="",$U5="DQ"),0,VLOOKUP($AJ5,tables!$AF:$AG,2,FALSE)) ->  | AC5: =IF(W5>0,YEAR(Setup!$B$8)-VLOOKUP(W5,ALMD!$C:$F,3,FALSE),0) ->  | AE5: =MD!$I8 -> 0 | AF5: =MD!$K8 ->  | AG5: =IF(AE5>0,MD!$A8,"") ->  | AH5: =MD!$G8 -> - | AJ5: =SUBSTITUTE(SUBSTITUTE(Setup!$B$5&"S-"&Setup!$B$13&"-"&X5,"Ανδ-",""),"Γυν-","") -> Ε3S-10-3_4 | AN5: ΝΙΚΗΤΑΚΗΣ Ι
A6: =Setup!$B$3 -> Η' ΕΝΩΣΗ | B6: =Setup!$Z$6 -> 333 | C6: =Setup!$Z$5 -> Ε3 47η (Η) | D6: =SUBSTITUTE(TRIM(Setup!$B$6),"-","") -> Α10 | E6: Smd32 | F6: =TEXT(Setup!$B$8,"ΕΕΕΕ-ΜΜ-ΗΗ") -> 2017-11-24 | G6: =Setup!$T$7 ->  | H6: R32 | I6: =IF(OR(MD!$M$13=1,MD!$M$13=2), IF(MD!$M$13=1,MD!$I$13,MD!$I$14),"") -> 41506 | J6: =IF(OR(MD!$M$13=1,MD!$M$13=2), IF(MD!$M$13=2,MD!$I$13,MD!$I$14),"") -> 0 | K6: =TRIM(MD!O14) ->  | L6: 9 | M6: 0 | N6: 3 | O6: 0 | R6: 1 | U6: =IF(NOT(OR(W6=0,W6=" ",W6="")),IF(INDIRECT("ALMD!B"&MATCH(W6,ALMD!$C$3:$C$34,0)+2)>0,INDIRECT("ALMD!B"&MATCH(W6,ALMD!$C$3:$C$34,0)+2),""),"") ->  | V6: =Setup!$T$7 ->  | W6: =J26 ->  | X6: 5_8 | Y6: 30 | Z6: 60 | AA6: 0 | AB6: =IF(OR($Z6=0,$Z6="",$U6="DQ"),0,VLOOKUP($AJ6,tables!$AF:$AG,2,FALSE)) ->  | AC6: =IF(W6>0,YEAR(Setup!$B$8)-VLOOKUP(W6,ALMD!$C:$F,3,FALSE),0) ->  | AE6: =MD!$I9 -> 39384 | AF6: =MD!$K9 -> ΓΚΛΑΒΑΣ Γ | AG6: =IF(AE6>0,MD!$A9,"") -> 5 | AH6: =MD!$G9 -> 17 | AJ6: =SUBSTITUTE(SUBSTITUTE(Setup!$B$5&"S-"&Setup!$B$13&"-"&X6,"Ανδ-",""),"Γυν-","") -> Ε3S-10-5_8 | AN6: ΧΑΡΑΛΑΜΠΙΔΗΣ Φ
A7: =Setup!$B$3 -> Η' ΕΝΩΣΗ | B7: =Setup!$Z$6 -> 333 | C7: =Setup!$Z$5 -> Ε3 47η (Η) | D7: =SUBSTITUTE(TRIM(Setup!$B$6),"-","") -> Α10 | E7: Smd32 | F7: =TEXT(Setup!$B$8,"ΕΕΕΕ-ΜΜ-ΗΗ") -> 2017-11-24 | G7: =Setup!$T$7 ->  | H7: R32 | I7: =IF(OR(MD!$M$15=1,MD!$M$15=2), IF(MD!$M$15=1,MD!$I$15,MD!$I$16),"") -> 38819 | J7: =IF(OR(MD!$M$15=1,MD!$M$15=2), IF(MD!$M$15=2,MD!$I$15,MD!$I$16),"") -> 0 | K7: =TRIM(MD!O16) ->  | L7: 11 | M7: 0 | N7: 10 | O7: 0 | R7: 1 | U7: =IF(NOT(OR(W7=0,W7=" ",W7="")),IF(INDIRECT("ALMD!B"&MATCH(W7,ALMD!$C$3:$C$34,0)+2)>0,INDIRECT("ALMD!B"&MATCH(W7,ALMD!$C$3:$C$34,0)+2),""),"") ->  | V7: =Setup!$T$7 ->  | W7: =J27 ->  | X7: 5_8 | Y7: 30 | Z7: 60 | AA7: 0 | AB7: =IF(OR($Z7=0,$Z7="",$U7="DQ"),0,VLOOKUP($AJ7,tables!$AF:$AG,2,FALSE)) ->  | AC7: =IF(W7>0,YEAR(Setup!$B$8)-VLOOKUP(W7,ALMD!$C:$F,3,FALSE),0) ->  | AE7: =MD!$I10 -> 0 | AF7: =MD!$K10 ->  | AG7: =IF(AE7>0,MD!$A10,"") ->  | AH7: =MD!$G10 -> - | AJ7: =SUBSTITUTE(SUBSTITUTE(Setup!$B$5&"S-"&Setup!$B$13&"-"&X7,"Ανδ-",""),"Γυν-","") -> Ε3S-10-5_8 | AN7: ΠΑΠΑΖΗΚΟΣ Π
A8: =Setup!$B$3 -> Η' ΕΝΩΣΗ | B8: =Setup!$Z$6 -> 333 | C8: =Setup!$Z$5 -> Ε3 47η (Η) | D8: =SUBSTITUTE(TRIM(Setup!$B$6),"-","") -> Α10 | E8: Smd32 | F8: =TEXT(Setup!$B$8,"ΕΕΕΕ-ΜΜ-ΗΗ") -> 2017-11-24 | G8: =Setup!$T$7 ->  | H8: R32 | I8: =IF(OR(MD!$M$17=1,MD!$M$17=2), IF(MD!$M$17=1,MD!$I$17,MD!$I$18),"") -> 40527 | J8: =IF(OR(MD!$M$17=1,MD!$M$17=2), IF(MD!$M$17=2,MD!$I$17,MD!$I$18),"") -> 0 | K8: =TRIM(MD!O18) ->  | L8: 13 | M8: 0 | N8: 15 | O8: 0 | R8: 1 | U8: =IF(NOT(OR(W8=0,W8=" ",W8="")),IF(INDIRECT("ALMD!B"&MATCH(W8,ALMD!$C$3:$C$34,0)+2)>0,INDIRECT("ALMD!B"&MATCH(W8,ALMD!$C$3:$C$34,0)+2),""),"") ->  | V8: =Setup!$T$7 ->  | W8: =J28 ->  | X8: 5_8 | Y8: 30 | Z8: 60 | AA8: 0 | AB8: =IF(OR($Z8=0,$Z8="",$U8="DQ"),0,VLOOKUP($AJ8,tables!$AF:$AG,2,FALSE)) ->  | AC8: =IF(W8>0,YEAR(Setup!$B$8)-VLOOKUP(W8,ALMD!$C:$F,3,FALSE),0) ->  | AE8: =MD!$I11 -> 0 | AF8: =MD!$K11 ->  | AG8: =IF(AE8>0,MD!$A11,"") ->  | AH8: =MD!$G11 -> - | AJ8: =SUBSTITUTE(SUBSTITUTE(Setup!$B$5&"S-"&Setup!$B$13&"-"&X8,"Ανδ-",""),"Γυν-","") -> Ε3S-10-5_8 | AN8: ΖΑΧΑΡΑΤΟΣ Σ
A9: =Setup!$B$3 -> Η' ΕΝΩΣΗ | B9: =Setup!$Z$6 -> 333 | C9: =Setup!$Z$5 -> Ε3 47η (Η) | D9: =SUBSTITUTE(TRIM(Setup!$B$6),"-","") -> Α10 | E9: Smd32 | F9: =TEXT(Setup!$B$8,"ΕΕΕΕ-ΜΜ-ΗΗ") -> 2017-11-24 | G9: =Setup!$T$7 ->  | H9: R32 | I9: =IF(OR(MD!$M$19=1,MD!$M$19=2), IF(MD!$M$19=1,MD!$I$19,MD!$I$20),"") -> 36193 | J9: =IF(OR(MD!$M$19=1,MD!$M$19=2), IF(MD!$M$19=2,MD!$I$19,MD!$I$20),"") -> 0 | K9: =TRIM(MD!O20) ->  | L9: 16 | M9: 0 | N9: 6 | O9: 0 | R9: 1 | U9: =IF(NOT(OR(W9=0,W9=" ",W9="")),IF(INDIRECT("ALMD!B"&MATCH(W9,ALMD!$C$3:$C$34,0)+2)>0,INDIRECT("ALMD!B"&MATCH(W9,ALMD!$C$3:$C$34,0)+2),""),"") ->  | V9: =Setup!$T$7 ->  | W9: =J29 ->  | X9: 5_8 | Y9: 30 | Z9: 60 | AA9: 0 | AB9: =IF(OR($Z9=0,$Z9="",$U9="DQ"),0,VLOOKUP($AJ9,tables!$AF:$AG,2,FALSE)) ->  | AC9: =IF(W9>0,YEAR(Setup!$B$8)-VLOOKUP(W9,ALMD!$C:$F,3,FALSE),0) ->  | AE9: =MD!$I12 -> 39226 | AF9: =MD!$K12 -> ΝΙΚΗΤΑΚΗΣ Ι | AG9: =IF(AE9>0,MD!$A12,"") -> 8 | AH9: =MD!$G12 -> 8 | AJ9: =SUBSTITUTE(SUBSTITUTE(Setup!$B$5&"S-"&Setup!$B$13&"-"&X9,"Ανδ-",""),"Γυν-","") -> Ε3S-10-5_8 | AL9: =IF(AO9>" ", IF(OR(AM9=AM10,AM9=AM8), IF(AM9=AM10,AN9&"/"&AN10&" - "&AO9&"/"&AO10, AN8&"/"&AN9&" - "&AO8&"/"&AO9),AN9&" - "&AO9), IF(OR(AM9=AM10,AM9=AM8), IF(AM9=AM10,AN9&"/"&AN10, AN8&"/"&AN9),AN9)) ->  | AM9: =G9&H9&L9 ->  | AN9: =IF(I9<=0,"",TRIM(LEFT(LEFT(VLOOKUP(I9,$AE:$AF,2,FALSE),FIND(" ",VLOOKUP(I9,$AE:$AF,2,FALSE),1)-1),15)&" "&LEFT(MID(VLOOKUP(I9,$AE:$AF,2,FALSE),FIND(" ",VLOOKUP(I9,$AE:$AF,2,FALSE),1)+1,20),3))) -> ΠΑΣΣΑΣ-ΧΡΗΣΤΟΥ Π | AO9: =IF(J9<=0,"",TRIM(LEFT(LEFT(VLOOKUP(J9,$AE:$AF,2,FALSE),FIND(" ",VLOOKUP(J9,$AE:$AF,2,FALSE),1)-1),15)&" "&LEFT(MID(VLOOKUP(J9,$AE:$AF,2,FALSE),FIND(" ",VLOOKUP(J9,$AE:$AF,2,FALSE),1)+1,20),3))) -> 
A10: =Setup!$B$3 -> Η' ΕΝΩΣΗ | B10: =Setup!$Z$6 -> 333 | C10: =Setup!$Z$5 -> Ε3 47η (Η) | D10: =SUBSTITUTE(TRIM(Setup!$B$6),"-","") -> Α10 | E10: Smd32 | F10: =TEXT(Setup!$B$8,"ΕΕΕΕ-ΜΜ-ΗΗ") -> 2017-11-24 | G10: =Setup!$T$7 ->  | H10: R32 | I10: =IF(OR(MD!$M$21=1,MD!$M$21=2), IF(MD!$M$21=1,MD!$I$21,MD!$I$22),"") -> 39937 | J10: =IF(OR(MD!$M$21=1,MD!$M$21=2), IF(MD!$M$21=2,MD!$I$21,MD!$I$22),"") -> 0 | K10: =TRIM(MD!O22) ->  | L10: 17 | M10: 0 | N10: 7 | O10: 0 | R10: 1 | U10: =IF(NOT(OR(W10=0,W10=" ",W10="")),IF(INDIRECT("ALMD!B"&MATCH(W10,ALMD!$C$3:$C$34,0)+2)>0,INDIRECT("ALMD!B"&MATCH(W10,ALMD!$C$3:$C$34,0)+2),""),"") ->  | V10: =Setup!$T$7 ->  | W10: =J18 ->  | X10: 9_16 | Y10: 30 | Z10: 60 | AA10: 0 | AB10: =IF(OR($Z10=0,$Z10="",$U10="DQ"),0,VLOOKUP($AJ10,tables!$AF:$AG,2,FALSE)) ->  | AC10: =IF(W10>0,YEAR(Setup!$B$8)-VLOOKUP(W10,ALMD!$C:$F,3,FALSE),0) ->  | AE10: =MD!$I13 -> 41506 | AF10: =MD!$K13 -> ΧΑΡΑΛΑΜΠΙΔΗΣ Φ | AG10: =IF(AE10>0,MD!$A13,"") -> 9 | AH10: =MD!$G13 -> 3 | AJ10: =IF(AND(Y10=0, Setup!$B$17>""), Setup!$B$5&"S-"&Setup!$B$13&"-"&Setup!$B$17, Setup!$B$5&"S-"&Setup!$B$13&"-"&X10) -> Ε3S-10-9_16 | AN10: ΠΑΠΑΧΡΗΣΤΟΥ Χ
A11: =Setup!$B$3 -> Η' ΕΝΩΣΗ | B11: =Setup!$Z$6 -> 333 | C11: =Setup!$Z$5 -> Ε3 47η (Η) | D11: =SUBSTITUTE(TRIM(Setup!$B$6),"-","") -> Α10 | E11: Smd32 | F11: =TEXT(Setup!$B$8,"ΕΕΕΕ-ΜΜ-ΗΗ") -> 2017-11-24 | G11: =Setup!$T$7 ->  | H11: R32 | I11: =IF(OR(MD!$M$23=1,MD!$M$23=2), IF(MD!$M$23=1,MD!$I$23,MD!$I$24),"") -> 39716 | J11: =IF(OR(MD!$M$23=1,MD!$M$23=2), IF(MD!$M$23=2,MD!$I$23,MD!$I$24),"") -> 0 | K11: =TRIM(MD!O24) ->  | L11: 19 | M11: 0 | N11: 14 | O11: 0 | R11: 1 | U11: =IF(NOT(OR(W11=0,W11=" ",W11="")),IF(INDIRECT("ALMD!B"&MATCH(W11,ALMD!$C$3:$C$34,0)+2)>0,INDIRECT("ALMD!B"&MATCH(W11,ALMD!$C$3:$C$34,0)+2),""),"") ->  | V11: =Setup!$T$7 ->  | W11: =J19 ->  | X11: 9_16 | Y11: 30 | Z11: 60 | AA11: 0 | AB11: =IF(OR($Z11=0,$Z11="",$U11="DQ"),0,VLOOKUP($AJ11,tables!$AF:$AG,2,FALSE)) ->  | AC11: =IF(W11>0,YEAR(Setup!$B$8)-VLOOKUP(W11,ALMD!$C:$F,3,FALSE),0) ->  | AE11: =MD!$I14 -> 0 | AF11: =MD!$K14 ->  | AG11: =IF(AE11>0,MD!$A14,"") ->  | AH11: =MD!$G14 -> - | AJ11: =IF(AND(Y11=0, Setup!$B$17>""), Setup!$B$5&"S-"&Setup!$B$13&"-"&Setup!$B$17, Setup!$B$5&"S-"&Setup!$B$13&"-"&X11) -> Ε3S-10-9_16 | AN11: ΙΩΑΝΝΑΤΟΣ Σ
A12: =Setup!$B$3 -> Η' ΕΝΩΣΗ | B12: =Setup!$Z$6 -> 333 | C12: =Setup!$Z$5 -> Ε3 47η (Η) | D12: =SUBSTITUTE(TRIM(Setup!$B$6),"-","") -> Α10 | E12: Smd32 | F12: =TEXT(Setup!$B$8,"ΕΕΕΕ-ΜΜ-ΗΗ") -> 2017-11-24 | G12: =Setup!$T$7 ->  | H12: R32 | I12: =IF(OR(MD!$M$25=1,MD!$M$25=2), IF(MD!$M$25=1,MD!$I$25,MD!$I$26),"") -> 40952 | J12: =IF(OR(MD!$M$25=1,MD!$M$25=2), IF(MD!$M$25=2,MD!$I$25,MD!$I$26),"") -> 0 | K12: =TRIM(MD!O26) ->  | L12: 21 | M12: 0 | N12: 13 | O12: 0 | R12: 1 | U12: =IF(NOT(OR(W12=0,W12=" ",W12="")),IF(INDIRECT("ALMD!B"&MATCH(W12,ALMD!$C$3:$C$34,0)+2)>0,INDIRECT("ALMD!B"&MATCH(W12,ALMD!$C$3:$C$34,0)+2),""),"") ->  | V12: =Setup!$T$7 ->  | X12: 9_16 | Y12: 30 | Z12: 60 | AA12: 0 | AB12: =IF(OR($Z12=0,$Z12="",$U12="DQ"),0,VLOOKUP($AJ12,tables!$AF:$AG,2,FALSE)) ->  | AC12: =IF(W12>0,YEAR(Setup!$B$8)-VLOOKUP(W12,ALMD!$C:$F,3,FALSE),0) ->  | AE12: =MD!$I15 -> 38819 | AF12: =MD!$K15 -> ΠΑΠΑΖΗΚΟΣ Π | AG12: =IF(AE12>0,MD!$A15,"") -> 11 | AH12: =MD!$G15 -> 10 | AJ12: =IF(AND(Y12=0, Setup!$B$17>""), Setup!$B$5&"S-"&Setup!$B$13&"-"&Setup!$B$17, Setup!$B$5&"S-"&Setup!$B$13&"-"&X12) -> Ε3S-10-9_16 | AN12: ΖΟΥΓΑΝΕΛΗΣ Δ
A13: =Setup!$B$3 -> Η' ΕΝΩΣΗ | B13: =Setup!$Z$6 -> 333 | C13: =Setup!$Z$5 -> Ε3 47η (Η) | D13: =SUBSTITUTE(TRIM(Setup!$B$6),"-","") -> Α10 | E13: Smd32 | F13: =TEXT(Setup!$B$8,"ΕΕΕΕ-ΜΜ-ΗΗ") -> 2017-11-24 | G13: =Setup!$T$7 ->  | H13: R32 | I13: =IF(OR(MD!$M$27=1,MD!$M$27=2), IF(MD!$M$27=1,MD!$I$27,MD!$I$28),"") -> 41505 | J13: =IF(OR(MD!$M$27=1,MD!$M$27=2), IF(MD!$M$27=2,MD!$I$27,MD!$I$28),"") -> 0 | K13: =TRIM(MD!O28) ->  | L13: 24 | M13: 0 | N13: 4 | O13: 0 | R13: 1 | U13: =IF(NOT(OR(W13=0,W13=" ",W13="")),IF(INDIRECT("ALMD!B"&MATCH(W13,ALMD!$C$3:$C$34,0)+2)>0,INDIRECT("ALMD!B"&MATCH(W13,ALMD!$C$3:$C$34,0)+2),""),"") ->  | V13: =Setup!$T$7 ->  | X13: 9_16 | Y13: 30 | Z13: 60 | AA13: 0 | AB13: =IF(OR($Z13=0,$Z13="",$U13="DQ"),0,VLOOKUP($AJ13,tables!$AF:$AG,2,FALSE)) ->  | AC13: =IF(W13>0,YEAR(Setup!$B$8)-VLOOKUP(W13,ALMD!$C:$F,3,FALSE),0) ->  | AE13: =MD!$I16 -> 0 | AF13: =MD!$K16 ->  | AG13: =IF(AE13>0,MD!$A16,"") ->  | AH13: =MD!$G16 -> - | AJ13: =IF(AND(Y13=0, Setup!$B$17>""), Setup!$B$5&"S-"&Setup!$B$13&"-"&Setup!$B$17, Setup!$B$5&"S-"&Setup!$B$13&"-"&X13) -> Ε3S-10-9_16 | AN13: ΜΠΑΛΩΜΕΝΟΣ Α
A14: =Setup!$B$3 -> Η' ΕΝΩΣΗ | B14: =Setup!$Z$6 -> 333 | C14: =Setup!$Z$5 -> Ε3 47η (Η) | D14: =SUBSTITUTE(TRIM(Setup!$B$6),"-","") -> Α10 | E14: Smd32 | F14: =TEXT(Setup!$B$8,"ΕΕΕΕ-ΜΜ-ΗΗ") -> 2017-11-24 | G14: =Setup!$T$7 ->  | H14: R32 | I14: =IF(OR(MD!$M$29=1,MD!$M$29=2), IF(MD!$M$29=1,MD!$I$29,MD!$I$30),"") -> 40818 | J14: =IF(OR(MD!$M$29=1,MD!$M$29=2), IF(MD!$M$29=2,MD!$I$29,MD!$I$30),"") -> 0 | K14: =TRIM(MD!O30) ->  | L14: 25 | M14: 0 | N14: 5 | O14: 0 | R14: 1 | U14: =IF(NOT(OR(W14=0,W14=" ",W14="")),IF(INDIRECT("ALMD!B"&MATCH(W14,ALMD!$C$3:$C$34,0)+2)>0,INDIRECT("ALMD!B"&MATCH(W14,ALMD!$C$3:$C$34,0)+2),""),"") ->  | V14: =Setup!$T$7 ->  | X14: 9_16 | Y14: 30 | Z14: 60 | AA14: 0 | AB14: =IF(OR($Z14=0,$Z14="",$U14="DQ"),0,VLOOKUP($AJ14,tables!$AF:$AG,2,FALSE)) ->  | AC14: =IF(W14>0,YEAR(Setup!$B$8)-VLOOKUP(W14,ALMD!$C:$F,3,FALSE),0) ->  | AE14: =MD!$I17 -> 40527 | AF14: =MD!$K17 -> ΖΑΧΑΡΑΤΟΣ Σ | AG14: =IF(AE14>0,MD!$A17,"") -> 13 | AH14: =MD!$G17 -> 15 | AJ14: =IF(AND(Y14=0, Setup!$B$17>""), Setup!$B$5&"S-"&Setup!$B$13&"-"&Setup!$B$17, Setup!$B$5&"S-"&Setup!$B$13&"-"&X14) -> Ε3S-10-9_16 | AN14: ΠΑΝΑΓΟΠΟΥΛΟΣ Ι
A15: =Setup!$B$3 -> Η' ΕΝΩΣΗ | B15: =Setup!$Z$6 -> 333 | C15: =Setup!$Z$5 -> Ε3 47η (Η) | D15: =SUBSTITUTE(TRIM(Setup!$B$6),"-","") -> Α10 | E15: Smd32 | F15: =TEXT(Setup!$B$8,"ΕΕΕΕ-ΜΜ-ΗΗ") -> 2017-11-24 | G15: =Setup!$T$7 ->  | H15: R32 | I15: =IF(OR(MD!$M$31=1,MD!$M$31=2), IF(MD!$M$31=1,MD!$I$31,MD!$I$32),"") -> 40066 | J15: =IF(OR(MD!$M$31=1,MD!$M$31=2), IF(MD!$M$31=2,MD!$I$31,MD!$I$32),"") -> 0 | K15: =TRIM(MD!O32) ->  | L15: 27 | M15: 0 | N15: 9 | O15: 0 | R15: 1 | U15: =IF(NOT(OR(W15=0,W15=" ",W15="")),IF(INDIRECT("ALMD!B"&MATCH(W15,ALMD!$C$3:$C$34,0)+2)>0,INDIRECT("ALMD!B"&MATCH(W15,ALMD!$C$3:$C$34,0)+2),""),"") ->  | V15: =Setup!$T$7 ->  | X15: 9_16 | Y15: 30 | Z15: 60 | AA15: 0 | AB15: =IF(OR($Z15=0,$Z15="",$U15="DQ"),0,VLOOKUP($AJ15,tables!$AF:$AG,2,FALSE)) ->  | AC15: =IF(W15>0,YEAR(Setup!$B$8)-VLOOKUP(W15,ALMD!$C:$F,3,FALSE),0) ->  | AE15: =MD!$I18 -> 0 | AF15: =MD!$K18 ->  | AG15: =IF(AE15>0,MD!$A18,"") ->  | AH15: =MD!$G18 -> - | AJ15: =IF(AND(Y15=0, Setup!$B$17>""), Setup!$B$5&"S-"&Setup!$B$13&"-"&Setup!$B$17, Setup!$B$5&"S-"&Setup!$B$13&"-"&X15) -> Ε3S-10-9_16 | AN15: ΚΑΛΠΟΓΙΑΝΝΑΚΗΣ Σ
A16: =Setup!$B$3 -> Η' ΕΝΩΣΗ | B16: =Setup!$Z$6 -> 333 | C16: =Setup!$Z$5 -> Ε3 47η (Η) | D16: =SUBSTITUTE(TRIM(Setup!$B$6),"-","") -> Α10 | E16: Smd32 | F16: =TEXT(Setup!$B$8,"ΕΕΕΕ-ΜΜ-ΗΗ") -> 2017-11-24 | G16: =Setup!$T$7 ->  | H16: R32 | I16: =IF(OR(MD!$M$33=1,MD!$M$33=2), IF(MD!$M$33=1,MD!$I$33,MD!$I$34),"") -> 39208 | J16: =IF(OR(MD!$M$33=1,MD!$M$33=2), IF(MD!$M$33=2,MD!$I$33,MD!$I$34),"") -> 40311 | K16: =TRIM(MD!O34) -> 41 42 | L16: 30 | M16: 29 | N16: 16 | O16: 12 | P16: 39208 | Q16: 40311 | U16: =IF(NOT(OR(W16=0,W16=" ",W16="")),IF(INDIRECT("ALMD!B"&MATCH(W16,ALMD!$C$3:$C$34,0)+2)>0,INDIRECT("ALMD!B"&MATCH(W16,ALMD!$C$3:$C$34,0)+2),""),"") ->  | V16: =Setup!$T$7 ->  | X16: 9_16 | Y16: 30 | Z16: 60 | AA16: 0 | AB16: =IF(OR($Z16=0,$Z16="",$U16="DQ"),0,VLOOKUP($AJ16,tables!$AF:$AG,2,FALSE)) ->  | AC16: =IF(W16>0,YEAR(Setup!$B$8)-VLOOKUP(W16,ALMD!$C:$F,3,FALSE),0) ->  | AE16: =MD!$I19 -> 0 | AF16: =MD!$K19 ->  | AG16: =IF(AE16>0,MD!$A19,"") ->  | AH16: =MD!$G19 -> - | AJ16: =IF(AND(Y16=0, Setup!$B$17>""), Setup!$B$5&"S-"&Setup!$B$13&"-"&Setup!$B$17, Setup!$B$5&"S-"&Setup!$B$13&"-"&X16) -> Ε3S-10-9_16 | AN16: ΤΑΥΡΙΔΑΚΗΣ Κ | AO16: ΜΑΛΑΒΑΖΟΣ Α
A17: =Setup!$B$3 -> Η' ΕΝΩΣΗ | B17: =Setup!$Z$6 -> 333 | C17: =Setup!$Z$5 -> Ε3 47η (Η) | D17: =SUBSTITUTE(TRIM(Setup!$B$6),"-","") -> Α10 | E17: Smd32 | F17: =TEXT(Setup!$B$8,"ΕΕΕΕ-ΜΜ-ΗΗ") -> 2017-11-24 | G17: =Setup!$T$7 ->  | H17: R32 | I17: =IF(OR(MD!$M$35=1,MD!$M$35=2), IF(MD!$M$35=1,MD!$I$35,MD!$I$36),"") -> 41419 | J17: =IF(OR(MD!$M$35=1,MD!$M$35=2), IF(MD!$M$35=2,MD!$I$35,MD!$I$36),"") -> 0 | K17: =TRIM(MD!O36) ->  | L17: 32 | M17: 0 | N17: 2 | O17: 0 | R17: 1 | U17: =IF(NOT(OR(W17=0,W17=" ",W17="")),IF(INDIRECT("ALMD!B"&MATCH(W17,ALMD!$C$3:$C$34,0)+2)>0,INDIRECT("ALMD!B"&MATCH(W17,ALMD!$C$3:$C$34,0)+2),""),"") ->  | V17: =Setup!$T$7 ->  | X17: 9_16 | Y17: 30 | Z17: 60 | AA17: 0 | AB17: =IF(OR($Z17=0,$Z17="",$U17="DQ"),0,VLOOKUP($AJ17,tables!$AF:$AG,2,FALSE)) ->  | AC17: =IF(W17>0,YEAR(Setup!$B$8)-VLOOKUP(W17,ALMD!$C:$F,3,FALSE),0) ->  | AE17: =MD!$I20 -> 36193 | AF17: =MD!$K20 -> ΠΑΣΣΑΣ-ΧΡΗΣΤΟΥ Π | AG17: =IF(AE17>0,MD!$A20,"") -> 16 | AH17: =MD!$G20 -> 6 | AJ17: =IF(AND(Y17=0, Setup!$B$17>""), Setup!$B$5&"S-"&Setup!$B$13&"-"&Setup!$B$17, Setup!$B$5&"S-"&Setup!$B$13&"-"&X17) -> Ε3S-10-9_16 | AN17: ΚΑΡΑΝΤΑΛΗΣ Ι
A18: =Setup!$B$3 -> Η' ΕΝΩΣΗ | B18: =Setup!$Z$6 -> 333 | C18: =Setup!$Z$5 -> Ε3 47η (Η) | D18: =SUBSTITUTE(TRIM(Setup!$B$6),"-","") -> Α10 | E18: Smd32 | F18: =TEXT(Setup!$B$8,"ΕΕΕΕ-ΜΜ-ΗΗ") -> 2017-11-24 | G18: =Setup!$T$7 ->  | H18: R16 | I18: =IF(OR(MD!$P$6 =1,MD!$P$6 =2), IF(MD!$P$6 =1,MD!$N$5,MD!$N$7),"") ->  | J18: =IF(OR(MD!$P$6 =1,MD!$P$6 =2), IF(MD!$P$6 =2,MD!$N$5,MD!$N$7),"") ->  | K18: =TRIM(MD!R7) ->  | L18: 0 | M18: 0 | N18: 0 | O18: 0 | R18: 1 | U18: =IF(NOT(OR(W18=0,W18=" ",W18="")),IF(INDIRECT("ALMD!B"&MATCH(W18,ALMD!$C$3:$C$34,0)+2)>0,INDIRECT("ALMD!B"&MATCH(W18,ALMD!$C$3:$C$34,0)+2),""),"") ->  | V18: =Setup!$T$7 ->  | W18: =J2 -> 0 | X18: 17_32 | Y18: 0 | Z18: 0 | AA18: 0 | AB18: =IF(OR($Z18=0,$Z18="",$U18="DQ"),0,VLOOKUP($AJ18,tables!$AF:$AG,2,FALSE)) -> 0 | AC18: =IF(W18>0,YEAR(Setup!$B$8)-VLOOKUP(W18,ALMD!$C:$F,3,FALSE),0) -> 0 | AE18: =MD!$I21 -> 39937 | AF18: =MD!$K21 -> ΠΑΠΑΧΡΗΣΤΟΥ Χ | AG18: =IF(AE18>0,MD!$A21,"") -> 17 | AH18: =MD!$G21 -> 7 | AJ18: =SUBSTITUTE(SUBSTITUTE(Setup!$B$5&"S-"&Setup!$B$13&"-"&X18,"Ανδ-",""),"Γυν-","") -> Ε3S-10-17_32
A19: =Setup!$B$3 -> Η' ΕΝΩΣΗ | B19: =Setup!$Z$6 -> 333 | C19: =Setup!$Z$5 -> Ε3 47η (Η) | D19: =SUBSTITUTE(TRIM(Setup!$B$6),"-","") -> Α10 | E19: Smd32 | F19: =TEXT(Setup!$B$8,"ΕΕΕΕ-ΜΜ-ΗΗ") -> 2017-11-24 | G19: =Setup!$T$7 ->  | H19: R16 | I19: =IF(OR(MD!$P$10=1,MD!$P$10=2), IF(MD!$P$10=1,MD!$N$9,MD!$N$11),"") ->  | J19: =IF(OR(MD!$P$10=1,MD!$P$10=2), IF(MD!$P$10=2,MD!$N$9,MD!$N$11),"") ->  | K19: =TRIM(MD!R11) ->  | L19: 0 | M19: 0 | N19: 0 | O19: 0 | R19: 1 | U19: =IF(NOT(OR(W19=0,W19=" ",W19="")),IF(INDIRECT("ALMD!B"&MATCH(W19,ALMD!$C$3:$C$34,0)+2)>0,INDIRECT("ALMD!B"&MATCH(W19,ALMD!$C$3:$C$34,0)+2),""),"") ->  | V19: =Setup!$T$7 ->  | W19: =J3 -> 0 | X19: 17_32 | Y19: 0 | Z19: 0 | AA19: 0 | AB19: =IF(OR($Z19=0,$Z19="",$U19="DQ"),0,VLOOKUP($AJ19,tables!$AF:$AG,2,FALSE)) -> 0 | AC19: =IF(W19>0,YEAR(Setup!$B$8)-VLOOKUP(W19,ALMD!$C:$F,3,FALSE),0) -> 0 | AE19: =MD!$I22 -> 0 | AF19: =MD!$K22 ->  | AG19: =IF(AE19>0,MD!$A22,"") ->  | AH19: =MD!$G22 -> - | AJ19: =SUBSTITUTE(SUBSTITUTE(Setup!$B$5&"S-"&Setup!$B$13&"-"&X19,"Ανδ-",""),"Γυν-","") -> Ε3S-10-17_32
A20: =Setup!$B$3 -> Η' ΕΝΩΣΗ | B20: =Setup!$Z$6 -> 333 | C20: =Setup!$Z$5 -> Ε3 47η (Η) | D20: =SUBSTITUTE(TRIM(Setup!$B$6),"-","") -> Α10 | E20: Smd32 | F20: =TEXT(Setup!$B$8,"ΕΕΕΕ-ΜΜ-ΗΗ") -> 2017-11-24 | G20: =Setup!$T$7 ->  | H20: R16 | I20: =IF(OR(MD!$P$14=1,MD!$P$14=2), IF(MD!$P$14=1,MD!$N$13,MD!$N$15),"") ->  | J20: =IF(OR(MD!$P$14=1,MD!$P$14=2), IF(MD!$P$14=2,MD!$N$13,MD!$N$15),"") ->  | K20: =TRIM(MD!R15) ->  | L20: 0 | M20: 0 | N20: 0 | O20: 0 | R20: 1 | U20: =IF(NOT(OR(W20=0,W20=" ",W20="")),IF(INDIRECT("ALMD!B"&MATCH(W20,ALMD!$C$3:$C$34,0)+2)>0,INDIRECT("ALMD!B"&MATCH(W20,ALMD!$C$3:$C$34,0)+2),""),"") ->  | V20: =Setup!$T$7 ->  | W20: 0 | X20: 17_32 | Y20: 0 | Z20: 0 | AA20: 0 | AB20: =IF(OR($Z20=0,$Z20="",$U20="DQ"),0,VLOOKUP($AJ20,tables!$AF:$AG,2,FALSE)) -> 0 | AC20: =IF(W20>0,YEAR(Setup!$B$8)-VLOOKUP(W20,ALMD!$C:$F,3,FALSE),0) -> 0 | AE20: =MD!$I23 -> 39716 | AF20: =MD!$K23 -> ΙΩΑΝΝΑΤΟΣ Σ | AG20: =IF(AE20>0,MD!$A23,"") -> 19 | AH20: =MD!$G23 -> 14 | AJ20: =SUBSTITUTE(SUBSTITUTE(Setup!$B$5&"S-"&Setup!$B$13&"-"&X20,"Ανδ-",""),"Γυν-","") -> Ε3S-10-17_32
A21: =Setup!$B$3 -> Η' ΕΝΩΣΗ | B21: =Setup!$Z$6 -> 333 | C21: =Setup!$Z$5 -> Ε3 47η (Η) | D21: =SUBSTITUTE(TRIM(Setup!$B$6),"-","") -> Α10 | E21: Smd32 | F21: =TEXT(Setup!$B$8,"ΕΕΕΕ-ΜΜ-ΗΗ") -> 2017-11-24 | G21: =Setup!$T$7 ->  | H21: R16 | I21: =IF(OR(MD!$P$18=1,MD!$P$18=2), IF(MD!$P$18=1,MD!$N$17,MD!$N$19),"") ->  | J21: =IF(OR(MD!$P$18=1,MD!$P$18=2), IF(MD!$P$18=2,MD!$N$17,MD!$N$19),"") ->  | K21: =TRIM(MD!R19) ->  | L21: 0 | M21: 0 | N21: 0 | O21: 0 | R21: 1 | U21: =IF(NOT(OR(W21=0,W21=" ",W21="")),IF(INDIRECT("ALMD!B"&MATCH(W21,ALMD!$C$3:$C$34,0)+2)>0,INDIRECT("ALMD!B"&MATCH(W21,ALMD!$C$3:$C$34,0)+2),""),"") ->  | V21: =Setup!$T$7 ->  | W21: 0 | X21: 17_32 | Y21: 0 | Z21: 0 | AA21: 0 | AB21: =IF(OR($Z21=0,$Z21="",$U21="DQ"),0,VLOOKUP($AJ21,tables!$AF:$AG,2,FALSE)) -> 0 | AC21: =IF(W21>0,YEAR(Setup!$B$8)-VLOOKUP(W21,ALMD!$C:$F,3,FALSE),0) -> 0 | AE21: =MD!$I24 -> 0 | AF21: =MD!$K24 ->  | AG21: =IF(AE21>0,MD!$A24,"") ->  | AH21: =MD!$G24 -> - | AJ21: =SUBSTITUTE(SUBSTITUTE(Setup!$B$5&"S-"&Setup!$B$13&"-"&X21,"Ανδ-",""),"Γυν-","") -> Ε3S-10-17_32
A22: =Setup!$B$3 -> Η' ΕΝΩΣΗ | B22: =Setup!$Z$6 -> 333 | C22: =Setup!$Z$5 -> Ε3 47η (Η) | D22: =SUBSTITUTE(TRIM(Setup!$B$6),"-","") -> Α10 | E22: Smd32 | F22: =TEXT(Setup!$B$8,"ΕΕΕΕ-ΜΜ-ΗΗ") -> 2017-11-24 | G22: =Setup!$T$7 ->  | H22: R16 | I22: =IF(OR(MD!$P$22=1,MD!$P$22=2), IF(MD!$P$22=1,MD!$N$21,MD!$N$23),"") ->  | J22: =IF(OR(MD!$P$22=1,MD!$P$22=2), IF(MD!$P$22=2,MD!$N$21,MD!$N$23),"") ->  | K22: =TRIM(MD!R23) ->  | L22: 0 | M22: 0 | N22: 0 | O22: 0 | R22: 1 | U22: =IF(NOT(OR(W22=0,W22=" ",W22="")),IF(INDIRECT("ALMD!B"&MATCH(W22,ALMD!$C$3:$C$34,0)+2)>0,INDIRECT("ALMD!B"&MATCH(W22,ALMD!$C$3:$C$34,0)+2),""),"") ->  | V22: =Setup!$T$7 ->  | W22: 0 | X22: 17_32 | Y22: 0 | Z22: 0 | AA22: 0 | AB22: =IF(OR($Z22=0,$Z22="",$U22="DQ"),0,VLOOKUP($AJ22,tables!$AF:$AG,2,FALSE)) -> 0 | AC22: =IF(W22>0,YEAR(Setup!$B$8)-VLOOKUP(W22,ALMD!$C:$F,3,FALSE),0) -> 0 | AE22: =MD!$I25 -> 40952 | AF22: =MD!$K25 -> ΖΟΥΓΑΝΕΛΗΣ Δ | AG22: =IF(AE22>0,MD!$A25,"") -> 21 | AH22: =MD!$G25 -> 13 | AJ22: =SUBSTITUTE(SUBSTITUTE(Setup!$B$5&"S-"&Setup!$B$13&"-"&X22,"Ανδ-",""),"Γυν-","") -> Ε3S-10-17_32
A23: =Setup!$B$3 -> Η' ΕΝΩΣΗ | B23: =Setup!$Z$6 -> 333 | C23: =Setup!$Z$5 -> Ε3 47η (Η) | D23: =SUBSTITUTE(TRIM(Setup!$B$6),"-","") -> Α10 | E23: Smd32 | F23: =TEXT(Setup!$B$8,"ΕΕΕΕ-ΜΜ-ΗΗ") -> 2017-11-24 | G23: =Setup!$T$7 ->  | H23: R16 | I23: =IF(OR(MD!$P$26=1,MD!$P$26=2), IF(MD!$P$26=1,MD!$N$25,MD!$N$27),"") ->  | J23: =IF(OR(MD!$P$26=1,MD!$P$26=2), IF(MD!$P$26=2,MD!$N$25,MD!$N$27),"") ->  | K23: =TRIM(MD!R27) ->  | L23: 0 | M23: 0 | N23: 0 | O23: 0 | R23: 1 | U23: =IF(NOT(OR(W23=0,W23=" ",W23="")),IF(INDIRECT("ALMD!B"&MATCH(W23,ALMD!$C$3:$C$34,0)+2)>0,INDIRECT("ALMD!B"&MATCH(W23,ALMD!$C$3:$C$34,0)+2),""),"") ->  | V23: =Setup!$T$7 ->  | W23: 0 | X23: 17_32 | Y23: 0 | Z23: 0 | AA23: 0 | AB23: =IF(OR($Z23=0,$Z23="",$U23="DQ"),0,VLOOKUP($AJ23,tables!$AF:$AG,2,FALSE)) -> 0 | AC23: =IF(W23>0,YEAR(Setup!$B$8)-VLOOKUP(W23,ALMD!$C:$F,3,FALSE),0) -> 0 | AE23: =MD!$I26 -> 0 | AF23: =MD!$K26 ->  | AG23: =IF(AE23>0,MD!$A26,"") ->  | AH23: =MD!$G26 -> - | AJ23: =SUBSTITUTE(SUBSTITUTE(Setup!$B$5&"S-"&Setup!$B$13&"-"&X23,"Ανδ-",""),"Γυν-","") -> Ε3S-10-17_32
A24: =Setup!$B$3 -> Η' ΕΝΩΣΗ | B24: =Setup!$Z$6 -> 333 | C24: =Setup!$Z$5 -> Ε3 47η (Η) | D24: =SUBSTITUTE(TRIM(Setup!$B$6),"-","") -> Α10 | E24: Smd32 | F24: =TEXT(Setup!$B$8,"ΕΕΕΕ-ΜΜ-ΗΗ") -> 2017-11-24 | G24: =Setup!$T$7 ->  | H24: R16 | I24: =IF(OR(MD!$P$30=1,MD!$P$30=2), IF(MD!$P$30=1,MD!$N$29,MD!$N$31),"") ->  | J24: =IF(OR(MD!$P$30=1,MD!$P$30=2), IF(MD!$P$30=2,MD!$N$29,MD!$N$31),"") ->  | K24: =TRIM(MD!R31) ->  | L24: 0 | M24: 0 | N24: 0 | O24: 0 | R24: 1 | U24: =IF(NOT(OR(W24=0,W24=" ",W24="")),IF(INDIRECT("ALMD!B"&MATCH(W24,ALMD!$C$3:$C$34,0)+2)>0,INDIRECT("ALMD!B"&MATCH(W24,ALMD!$C$3:$C$34,0)+2),""),"") ->  | V24: =Setup!$T$7 ->  | W24: 0 | X24: 17_32 | Y24: 0 | Z24: 0 | AA24: 0 | AB24: =IF(OR($Z24=0,$Z24="",$U24="DQ"),0,VLOOKUP($AJ24,tables!$AF:$AG,2,FALSE)) -> 0 | AC24: =IF(W24>0,YEAR(Setup!$B$8)-VLOOKUP(W24,ALMD!$C:$F,3,FALSE),0) -> 0 | AE24: =MD!$I27 -> 0 | AF24: =MD!$K27 ->  | AG24: =IF(AE24>0,MD!$A27,"") ->  | AH24: =MD!$G27 -> - | AJ24: =SUBSTITUTE(SUBSTITUTE(Setup!$B$5&"S-"&Setup!$B$13&"-"&X24,"Ανδ-",""),"Γυν-","") -> Ε3S-10-17_32
A25: =Setup!$B$3 -> Η' ΕΝΩΣΗ | B25: =Setup!$Z$6 -> 333 | C25: =Setup!$Z$5 -> Ε3 47η (Η) | D25: =SUBSTITUTE(TRIM(Setup!$B$6),"-","") -> Α10 | E25: Smd32 | F25: =TEXT(Setup!$B$8,"ΕΕΕΕ-ΜΜ-ΗΗ") -> 2017-11-24 | G25: =Setup!$T$7 ->  | H25: R16 | I25: =IF(OR(MD!$P$34=1,MD!$P$34=2), IF(MD!$P$34=1,MD!$N$33,MD!$N$35),"") ->  | J25: =IF(OR(MD!$P$34=1,MD!$P$34=2), IF(MD!$P$34=2,MD!$N$33,MD!$N$35),"") ->  | K25: =TRIM(MD!R35) ->  | L25: 0 | M25: 0 | N25: 0 | O25: 0 | R25: 1 | U25: =IF(NOT(OR(W25=0,W25=" ",W25="")),IF(INDIRECT("ALMD!B"&MATCH(W25,ALMD!$C$3:$C$34,0)+2)>0,INDIRECT("ALMD!B"&MATCH(W25,ALMD!$C$3:$C$34,0)+2),""),"") ->  | V25: =Setup!$T$7 ->  | W25: 0 | X25: 17_32 | Y25: 0 | Z25: 0 | AA25: 0 | AB25: =IF(OR($Z25=0,$Z25="",$U25="DQ"),0,VLOOKUP($AJ25,tables!$AF:$AG,2,FALSE)) -> 0 | AC25: =IF(W25>0,YEAR(Setup!$B$8)-VLOOKUP(W25,ALMD!$C:$F,3,FALSE),0) -> 0 | AE25: =MD!$I28 -> 41505 | AF25: =MD!$K28 -> ΜΠΑΛΩΜΕΝΟΣ Α | AG25: =IF(AE25>0,MD!$A28,"") -> 24 | AH25: =MD!$G28 -> 4 | AJ25: =SUBSTITUTE(SUBSTITUTE(Setup!$B$5&"S-"&Setup!$B$13&"-"&X25,"Ανδ-",""),"Γυν-","") -> Ε3S-10-17_32
A26: =Setup!$B$3 -> Η' ΕΝΩΣΗ | B26: =Setup!$Z$6 -> 333 | C26: =Setup!$Z$5 -> Ε3 47η (Η) | D26: =SUBSTITUTE(TRIM(Setup!$B$6),"-","") -> Α10 | E26: Smd32 | F26: =TEXT(Setup!$B$8,"ΕΕΕΕ-ΜΜ-ΗΗ") -> 2017-11-24 | G26: =Setup!$T$7 ->  | H26: R08 | I26: =IF(OR(MD!$S$8 =1,MD!$S$8 =2), IF(MD!$S$8 =1,MD!$Q$6,MD!$Q$10),"") ->  | J26: =IF(OR(MD!$S$8 =1,MD!$S$8 =2), IF(MD!$S$8 =2,MD!$Q$6,MD!$Q$10),"") ->  | K26: =TRIM(MD!U9) ->  | L26: 0 | M26: 0 | N26: 0 | O26: 0 | R26: 1 | U26: =IF(NOT(OR(W26=0,W26=" ",W26="")),IF(INDIRECT("ALMD!B"&MATCH(W26,ALMD!$C$3:$C$34,0)+2)>0,INDIRECT("ALMD!B"&MATCH(W26,ALMD!$C$3:$C$34,0)+2),""),"") ->  | V26: =Setup!$T$7 ->  | W26: 0 | X26: 17_32 | Y26: 0 | Z26: 0 | AA26: 0 | AB26: =IF(OR($Z26=0,$Z26="",$U26="DQ"),0,VLOOKUP($AJ26,tables!$AF:$AG,2,FALSE)) -> 0 | AC26: =IF(W26>0,YEAR(Setup!$B$8)-VLOOKUP(W26,ALMD!$C:$F,3,FALSE),0) -> 0 | AE26: =MD!$I29 -> 40818 | AF26: =MD!$K29 -> ΠΑΝΑΓΟΠΟΥΛΟΣ Ι | AG26: =IF(AE26>0,MD!$A29,"") -> 25 | AH26: =MD!$G29 -> 5 | AJ26: =SUBSTITUTE(SUBSTITUTE(Setup!$B$5&"S-"&Setup!$B$13&"-"&X26,"Ανδ-",""),"Γυν-","") -> Ε3S-10-17_32
A27: =Setup!$B$3 -> Η' ΕΝΩΣΗ | B27: =Setup!$Z$6 -> 333 | C27: =Setup!$Z$5 -> Ε3 47η (Η) | D27: =SUBSTITUTE(TRIM(Setup!$B$6),"-","") -> Α10 | E27: Smd32 | F27: =TEXT(Setup!$B$8,"ΕΕΕΕ-ΜΜ-ΗΗ") -> 2017-11-24 | G27: =Setup!$T$7 ->  | H27: R08 | I27: =IF(OR(MD!$S$16=1,MD!$S$16=2), IF(MD!$S$16=1,MD!$Q$14,MD!$Q$18),"") ->  | J27: =IF(OR(MD!$S$16=1,MD!$S$16=2), IF(MD!$S$16=2,MD!$Q$14,MD!$Q$18),"") ->  | K27: =TRIM(MD!U17) ->  | L27: 0 | M27: 0 | N27: 0 | O27: 0 | R27: 1 | U27: =IF(NOT(OR(W27=0,W27=" ",W27="")),IF(INDIRECT("ALMD!B"&MATCH(W27,ALMD!$C$3:$C$34,0)+2)>0,INDIRECT("ALMD!B"&MATCH(W27,ALMD!$C$3:$C$34,0)+2),""),"") ->  | V27: =Setup!$T$7 ->  | W27: 0 | X27: 17_32 | Y27: 0 | Z27: 0 | AA27: 0 | AB27: =IF(OR($Z27=0,$Z27="",$U27="DQ"),0,VLOOKUP($AJ27,tables!$AF:$AG,2,FALSE)) -> 0 | AC27: =IF(W27>0,YEAR(Setup!$B$8)-VLOOKUP(W27,ALMD!$C:$F,3,FALSE),0) -> 0 | AE27: =MD!$I30 -> 0 | AF27: =MD!$K30 ->  | AG27: =IF(AE27>0,MD!$A30,"") ->  | AH27: =MD!$G30 -> - | AJ27: =SUBSTITUTE(SUBSTITUTE(Setup!$B$5&"S-"&Setup!$B$13&"-"&X27,"Ανδ-",""),"Γυν-","") -> Ε3S-10-17_32
A28: =Setup!$B$3 -> Η' ΕΝΩΣΗ | B28: =Setup!$Z$6 -> 333 | C28: =Setup!$Z$5 -> Ε3 47η (Η) | D28: =SUBSTITUTE(TRIM(Setup!$B$6),"-","") -> Α10 | E28: Smd32 | F28: =TEXT(Setup!$B$8,"ΕΕΕΕ-ΜΜ-ΗΗ") -> 2017-11-24 | G28: =Setup!$T$7 ->  | H28: R08 | I28: =IF(OR(MD!$S$24=1,MD!$S$24=2), IF(MD!$S$24=1,MD!$Q$22,MD!$Q$26),"") ->  | J28: =IF(OR(MD!$S$24=1,MD!$S$24=2), IF(MD!$S$24=2,MD!$Q$22,MD!$Q$26),"") ->  | K28: =TRIM(MD!U25) ->  | L28: 0 | M28: 0 | N28: 0 | O28: 0 | R28: 1 | U28: =IF(NOT(OR(W28=0,W28=" ",W28="")),IF(INDIRECT("ALMD!B"&MATCH(W28,ALMD!$C$3:$C$34,0)+2)>0,INDIRECT("ALMD!B"&MATCH(W28,ALMD!$C$3:$C$34,0)+2),""),"") ->  | V28: =Setup!$T$7 ->  | W28: 0 | X28: 17_32 | Y28: 0 | Z28: 0 | AA28: 0 | AB28: =IF(OR($Z28=0,$Z28="",$U28="DQ"),0,VLOOKUP($AJ28,tables!$AF:$AG,2,FALSE)) -> 0 | AC28: =IF(W28>0,YEAR(Setup!$B$8)-VLOOKUP(W28,ALMD!$C:$F,3,FALSE),0) -> 0 | AE28: =MD!$I31 -> 40066 | AF28: =MD!$K31 -> ΚΑΛΠΟΓΙΑΝΝΑΚΗΣ Σ | AG28: =IF(AE28>0,MD!$A31,"") -> 27 | AH28: =MD!$G31 -> 9 | AJ28: =SUBSTITUTE(SUBSTITUTE(Setup!$B$5&"S-"&Setup!$B$13&"-"&X28,"Ανδ-",""),"Γυν-","") -> Ε3S-10-17_32
A29: =Setup!$B$3 -> Η' ΕΝΩΣΗ | B29: =Setup!$Z$6 -> 333 | C29: =Setup!$Z$5 -> Ε3 47η (Η) | D29: =SUBSTITUTE(TRIM(Setup!$B$6),"-","") -> Α10 | E29: Smd32 | F29: =TEXT(Setup!$B$8,"ΕΕΕΕ-ΜΜ-ΗΗ") -> 2017-11-24 | G29: =Setup!$T$7 ->  | H29: R08 | I29: =IF(OR(MD!$S$32=1,MD!$S$32=2), IF(MD!$S$32=1,MD!$Q$30,MD!$Q$34),"") ->  | J29: =IF(OR(MD!$S$32=1,MD!$S$32=2), IF(MD!$S$32=2,MD!$Q$30,MD!$Q$34),"") ->  | K29: =TRIM(MD!U33) ->  | L29: 0 | M29: 0 | N29: 0 | O29: 0 | R29: 1 | U29: =IF(NOT(OR(W29=0,W29=" ",W29="")),IF(INDIRECT("ALMD!B"&MATCH(W29,ALMD!$C$3:$C$34,0)+2)>0,INDIRECT("ALMD!B"&MATCH(W29,ALMD!$C$3:$C$34,0)+2),""),"") ->  | V29: =Setup!$T$7 ->  | W29: 0 | X29: 17_32 | Y29: 0 | Z29: 0 | AA29: 0 | AB29: =IF(OR($Z29=0,$Z29="",$U29="DQ"),0,VLOOKUP($AJ29,tables!$AF:$AG,2,FALSE)) -> 0 | AC29: =IF(W29>0,YEAR(Setup!$B$8)-VLOOKUP(W29,ALMD!$C:$F,3,FALSE),0) -> 0 | AE29: =MD!$I32 -> 0 | AF29: =MD!$K32 ->  | AG29: =IF(AE29>0,MD!$A32,"") ->  | AH29: =MD!$G32 -> - | AJ29: =SUBSTITUTE(SUBSTITUTE(Setup!$B$5&"S-"&Setup!$B$13&"-"&X29,"Ανδ-",""),"Γυν-","") -> Ε3S-10-17_32
A30: =Setup!$B$3 -> Η' ΕΝΩΣΗ | B30: =Setup!$Z$6 -> 333 | C30: =Setup!$Z$5 -> Ε3 47η (Η) | D30: =SUBSTITUTE(TRIM(Setup!$B$6),"-","") -> Α10 | E30: Smd32 | F30: =TEXT(Setup!$B$8,"ΕΕΕΕ-ΜΜ-ΗΗ") -> 2017-11-24 | G30: =Setup!$T$7 ->  | H30: Ημιτελ | I30: =IF(OR(MD!$V$12=1,MD!$V$12=2), IF(MD!$V$12=1,MD!$T$8,MD!$T$16),"") ->  | J30: =IF(OR(MD!$V$12=1,MD!$V$12=2), IF(MD!$V$12=2,MD!$T$8,MD!$T$16),"") ->  | K30: =TRIM(MD!X13) ->  | L30: 0 | M30: 0 | N30: 0 | O30: 0 | R30: 1 | U30: =IF(NOT(OR(W30=0,W30=" ",W30="")),IF(INDIRECT("ALMD!B"&MATCH(W30,ALMD!$C$3:$C$34,0)+2)>0,INDIRECT("ALMD!B"&MATCH(W30,ALMD!$C$3:$C$34,0)+2),""),"") ->  | V30: =Setup!$T$7 ->  | W30: 0 | X30: 17_32 | Y30: 0 | Z30: 0 | AA30: 0 | AB30: =IF(OR($Z30=0,$Z30="",$U30="DQ"),0,VLOOKUP($AJ30,tables!$AF:$AG,2,FALSE)) -> 0 | AC30: =IF(W30>0,YEAR(Setup!$B$8)-VLOOKUP(W30,ALMD!$C:$F,3,FALSE),0) -> 0 | AE30: =MD!$I33 -> 40311 | AF30: =MD!$K33 -> ΜΑΛΑΒΑΖΟΣ Α | AG30: =IF(AE30>0,MD!$A33,"") -> 29 | AH30: =MD!$G33 -> 12 | AJ30: =SUBSTITUTE(SUBSTITUTE(Setup!$B$5&"S-"&Setup!$B$13&"-"&X30,"Ανδ-",""),"Γυν-","") -> Ε3S-10-17_32
A31: =Setup!$B$3 -> Η' ΕΝΩΣΗ | B31: =Setup!$Z$6 -> 333 | C31: =Setup!$Z$5 -> Ε3 47η (Η) | D31: =SUBSTITUTE(TRIM(Setup!$B$6),"-","") -> Α10 | E31: Smd32 | F31: =TEXT(Setup!$B$8,"ΕΕΕΕ-ΜΜ-ΗΗ") -> 2017-11-24 | G31: =Setup!$T$7 ->  | H31: Ημιτελ | I31: =IF(OR(MD!$V$28=1,MD!$V$28=2), IF(MD!$V$28=1,MD!$T$24,MD!$T$32),"") ->  | J31: =IF(OR(MD!$V$28=1,MD!$V$28=2), IF(MD!$V$28=2,MD!$T$24,MD!$T$32),"") ->  | K31: =TRIM(MD!X29) ->  | L31: 0 | M31: 0 | N31: 0 | O31: 0 | R31: 1 | U31: =IF(NOT(OR(W31=0,W31=" ",W31="")),IF(INDIRECT("ALMD!B"&MATCH(W31,ALMD!$C$3:$C$34,0)+2)>0,INDIRECT("ALMD!B"&MATCH(W31,ALMD!$C$3:$C$34,0)+2),""),"") ->  | V31: =Setup!$T$7 ->  | W31: 0 | X31: 17_32 | Y31: 0 | Z31: 0 | AA31: 0 | AB31: =IF(OR($Z31=0,$Z31="",$U31="DQ"),0,VLOOKUP($AJ31,tables!$AF:$AG,2,FALSE)) -> 0 | AC31: =IF(W31>0,YEAR(Setup!$B$8)-VLOOKUP(W31,ALMD!$C:$F,3,FALSE),0) -> 0 | AE31: =MD!$I34 -> 39208 | AF31: =MD!$K34 -> ΤΑΥΡΙΔΑΚΗΣ Κ | AG31: =IF(AE31>0,MD!$A34,"") -> 30 | AH31: =MD!$G34 -> 16 | AJ31: =SUBSTITUTE(SUBSTITUTE(Setup!$B$5&"S-"&Setup!$B$13&"-"&X31,"Ανδ-",""),"Γυν-","") -> Ε3S-10-17_32
A32: =Setup!$B$3 -> Η' ΕΝΩΣΗ | B32: =Setup!$Z$6 -> 333 | C32: =Setup!$Z$5 -> Ε3 47η (Η) | D32: =SUBSTITUTE(TRIM(Setup!$B$6),"-","") -> Α10 | E32: Smd32 | F32: =TEXT(Setup!$B$8,"ΕΕΕΕ-ΜΜ-ΗΗ") -> 2017-11-24 | G32: =Setup!$T$7 ->  | H32: Τελικός | I32: =IF(OR(MD!$V$20=1,MD!$V$20=2), IF(MD!$V$20=1,MD!$W$12,MD!$W$28),"") ->  | J32: =IF(OR(MD!$V$20=1,MD!$V$20=2), IF(MD!$V$20=2,MD!$W$12,MD!$W$28),"") ->  | K32: =TRIM(MD!X21) ->  | L32: 0 | M32: 0 | N32: 0 | O32: 0 | R32: 1 | T32: 12 | U32: =IF(NOT(OR(W32=0,W32=" ",W32="")),IF(INDIRECT("ALMD!B"&MATCH(W32,ALMD!$C$3:$C$34,0)+2)>0,INDIRECT("ALMD!B"&MATCH(W32,ALMD!$C$3:$C$34,0)+2),""),"") ->  | V32: =Setup!$T$7 ->  | W32: 40311 | X32: 17_32 | Y32: 0 | Z32: 1 | AA32: 0 | AB32: =IF(OR($Z32=0,$Z32="",$U32="DQ"),0,VLOOKUP($AJ32,tables!$AF:$AG,2,FALSE)) ->  | AC32: =IF(W32>0,YEAR(Setup!$B$8)-VLOOKUP(W32,ALMD!$C:$F,3,FALSE),0) -> 9 | AE32: =MD!$I35 -> 0 | AF32: =MD!$K35 ->  | AG32: =IF(AE32>0,MD!$A35,"") ->  | AH32: =MD!$G35 -> - | AJ32: =SUBSTITUTE(SUBSTITUTE(Setup!$B$5&"S-"&Setup!$B$13&"-"&X32,"Ανδ-",""),"Γυν-","") -> Ε3S-10-17_32
A33: =Setup!$B$3 -> Η' ΕΝΩΣΗ | B33: =Setup!$Z$6 -> 333 | C33: =Setup!$Z$5 -> Ε3 47η (Η) | D33: =SUBSTITUTE(TRIM(Setup!$B$6),"-","") -> Α10 | E33: Smd32 | F33: =TEXT(Setup!$B$8,"ΕΕΕΕ-ΜΜ-ΗΗ") -> 2017-11-24 | U33: =IF(NOT(OR(W33=0,W33=" ",W33="")),IF(INDIRECT("ALMD!B"&MATCH(W33,ALMD!$C$3:$C$34,0)+2)>0,INDIRECT("ALMD!B"&MATCH(W33,ALMD!$C$3:$C$34,0)+2),""),"") ->  | V33: =Setup!$T$7 ->  | W33: =J17 -> 0 | X33: 17_32 | Y33: 0 | Z33: 0 | AA33: 0 | AB33: =IF(OR($Z33=0,$Z33="",$U33="DQ"),0,VLOOKUP($AJ33,tables!$AF:$AG,2,FALSE)) -> 0 | AC33: =IF(W33>0,YEAR(Setup!$B$8)-VLOOKUP(W33,ALMD!$C:$F,3,FALSE),0) -> 0 | AE33: =MD!$I36 -> 41419 | AF33: =MD!$K36 -> ΚΑΡΑΝΤΑΛΗΣ Ι | AG33: =IF(AE33>0,MD!$A36,"") -> 32 | AH33: =MD!$G36 -> 2 | AJ33: =SUBSTITUTE(SUBSTITUTE(Setup!$B$5&"S-"&Setup!$B$13&"-"&X33,"Ανδ-",""),"Γυν-","") -> Ε3S-10-17_32
